Department Family,Entity,Date,Expense Type,Expense Area,Supplier,Transaction Number,Amount,Item Description
BEIS,UKRI - AHRC,02/12/2019,T&S Overseas - Flights,Newton Programme,University of Greenwich,98640923,78,T&S Overseas - Flights
BEIS,UKRI - AHRC,02/12/2019,Meetings & Catering,"History, Heritage, Languages and Literature",Harbour & Jones Ltd T/A Dartmouth House,98641300,437.76,Meetings & Catering
BEIS,UKRI - AHRC,02/12/2019,Contract Staff,PSU JRS,Alexander Mann Solutions Ltd,98641396,3423.12,Contract Staff
BEIS,UKRI - AHRC,02/12/2019,Contract Staff,PSU Project Office,Alexander Mann Solutions Ltd,98641402,2795.58,Contract Staff
BEIS,UKRI - AHRC,02/12/2019,Education Fees & Study Materials,Digital Arts and Humanities and Creative Industries,Unspecified,98642108,11.01,Education Fees & Study Materials
BEIS,UKRI - AHRC,02/12/2019,Health & Safety (inc. Medicals & Opticians),Digital Arts and Humanities and Creative Industries,Unspecified,98642108,9.99,Health & Safety (inc. Medicals & Opticians)
BEIS,UKRI - AHRC,02/12/2019,T&S UK - Mileage,Digital Arts and Humanities and Creative Industries,Unspecified,98642108,65.25,T&S UK - Mileage
BEIS,UKRI - AHRC,02/12/2019,T&S UK - Other Charges,Digital Arts and Humanities and Creative Industries,Unspecified,98642108,7.25,T&S UK - Other Charges
BEIS,UKRI - AHRC,02/12/2019,T&S UK - Parking Tolls Congestion Charges,Digital Arts and Humanities and Creative Industries,Unspecified,98642108,6.4,T&S UK - Parking Tolls Congestion Charges
BEIS,UKRI - AHRC,02/12/2019,T&S UK - Public Transport,Digital Arts and Humanities and Creative Industries,Unspecified,98642108,4.5,T&S UK - Public Transport
BEIS,UKRI - AHRC,02/12/2019,T&S UK - Public Transport,Digital Arts and Humanities and Creative Industries,Unspecified,98642108,27,T&S UK - Public Transport
BEIS,UKRI - AHRC,02/12/2019,T&S UK - Subsistence,Digital Arts and Humanities and Creative Industries,Unspecified,98642108,6.45,T&S UK - Subsistence
BEIS,UKRI - AHRC,02/12/2019,T&S UK - Subsistence,Digital Arts and Humanities and Creative Industries,Unspecified,98642108,57.9,T&S UK - Subsistence
BEIS,UKRI - AHRC,02/12/2019,T&S UK - Subsistence,Digital Arts and Humanities and Creative Industries,Unspecified,98642108,23,T&S UK - Subsistence
BEIS,UKRI - AHRC,02/12/2019,T&S UK - Subsistence,Digital Arts and Humanities and Creative Industries,Unspecified,98642108,20,T&S UK - Subsistence
BEIS,UKRI - AHRC,02/12/2019,T&S UK - Public Transport,International,Unspecified,98642109,41.65,T&S UK - Public Transport
BEIS,UKRI - AHRC,03/12/2019,Recruitment Costs,Corporate Services,Onefix Recruitment Ltd,98641603,150,Recruitment Costs
BEIS,UKRI - AHRC,03/12/2019,Security Services,Public and Stakeholder Engagement,Cardiff University,98641699,98.5,Security Services
BEIS,UKRI - AHRC,03/12/2019,Non-staff travel and subsistance,Funds for International Collaboration (FIC 20 US),Non Employee Expenses Supplier,98641891,173.61,Non-staff travel and subsistance
BEIS,UKRI - AHRC,03/12/2019,Non-staff travel and subsistance,JPI Cultural Heritage Project,Non Employee Expenses Supplier,98641892,210.23,Non-staff travel and subsistance
BEIS,UKRI - AHRC,03/12/2019,Non-staff travel and subsistance,Funds for International Collaboration (FIC 20 US),Non Employee Expenses Supplier,98641893,1935.25,Non-staff travel and subsistance
BEIS,UKRI - AHRC,03/12/2019,Non-staff travel and subsistance,Funds for International Collaboration (FIC 20 US),Non Employee Expenses Supplier,98641894,165.98,Non-staff travel and subsistance
BEIS,UKRI - AHRC,03/12/2019,T&S UK - Other Charges,Newton Programme Delivery,Unspecified,98644245,3.15,T&S UK - Other Charges
BEIS,UKRI - AHRC,03/12/2019,T&S UK - Subsistence,Newton Programme Delivery,Unspecified,98644245,5,T&S UK - Subsistence
BEIS,UKRI - AHRC,03/12/2019,T&S UK - Parking Tolls Congestion Charges,Public and Stakeholder Engagement,Unspecified,98644246,5.6,T&S UK - Parking Tolls Congestion Charges
BEIS,UKRI - AHRC,03/12/2019,T&S UK - Subsistence,Public and Stakeholder Engagement,Unspecified,98644246,5.7,T&S UK - Subsistence
BEIS,UKRI - AHRC,04/12/2019,Health & Safety (inc. Medicals & Opticians),HR,Swindon Occupational Medical Services Ltd,98644456,525,Health & Safety (inc. Medicals & Opticians)
BEIS,UKRI - AHRC,04/12/2019,T&S UK - Vehicle Hire,Operations,Enterprise Rent-A-Car UK Ltd,98647219,0.87,T&S UK - Vehicle Hire
BEIS,UKRI - AHRC,04/12/2019,T&S UK - Vehicle Hire,Operations,Enterprise Rent-A-Car UK Ltd,98647219,144,T&S UK - Vehicle Hire
BEIS,UKRI - AHRC,04/12/2019,T&S UK - Vehicle Hire,Operations,Enterprise Rent-A-Car UK Ltd,98647219,4.37,T&S UK - Vehicle Hire
BEIS,UKRI - AHRC,04/12/2019,T&S UK - Public Transport,Industrial Strategy Challenge Fund (ISCF) - Creative Clusters,Unspecified,98647538,115.63,T&S UK - Public Transport
BEIS,UKRI - AHRC,04/12/2019,T&S UK - Public Transport,Industrial Strategy Challenge Fund (ISCF) - Creative Clusters,Unspecified,98647538,8.5,T&S UK - Public Transport
BEIS,UKRI - AHRC,04/12/2019,T&S UK - Subsistence,Industrial Strategy Challenge Fund (ISCF) - Creative Clusters,Unspecified,98647538,38.24,T&S UK - Subsistence
BEIS,UKRI - AHRC,04/12/2019,T&S UK - Subsistence,Industrial Strategy Challenge Fund (ISCF) - Creative Clusters,Unspecified,98647538,17.53,T&S UK - Subsistence
BEIS,UKRI - AHRC,04/12/2019,T&S UK - Subsistence,Industrial Strategy Challenge Fund (ISCF) - Creative Clusters,Unspecified,98647538,10,T&S UK - Subsistence
BEIS,UKRI - AHRC,04/12/2019,T&S UK - Subsistence,Industrial Strategy Challenge Fund (ISCF) - Creative Clusters,Unspecified,98647538,3.45,T&S UK - Subsistence
BEIS,UKRI - AHRC,04/12/2019,T&S UK - Subsistence,Operations,Unspecified,98647539,66.96,T&S UK - Subsistence
BEIS,UKRI - AHRC,05/12/2019,Non-staff travel and subsistance,GCRF - Programme Delivery,Non Employee Expenses Supplier,98648298,299.4,Non-staff travel and subsistance
BEIS,UKRI - AHRC,05/12/2019,Non-staff travel and subsistance,Operations,Non Employee Expenses Supplier,98648299,90.78,Non-staff travel and subsistance
BEIS,UKRI - AHRC,05/12/2019,Non-staff travel and subsistance,"History, Heritage, Languages and Literature",Non Employee Expenses Supplier,98648300,246.75,Non-staff travel and subsistance
BEIS,UKRI - AHRC,05/12/2019,T&S UK - Subsistence,International Partnership and Engagement,Unspecified,98650185,5.1,T&S UK - Subsistence
BEIS,UKRI - AHRC,05/12/2019,T&S UK - Subsistence,International Partnership and Engagement,Unspecified,98650185,24.5,T&S UK - Subsistence
BEIS,UKRI - AHRC,05/12/2019,T&S UK - Subsistence,International Partnership and Engagement,Unspecified,98650185,10,T&S UK - Subsistence
BEIS,UKRI - AHRC,05/12/2019,T&S UK - Subsistence,Health and Environmental Humanities,Unspecified,98650186,7.9,T&S UK - Subsistence
BEIS,UKRI - AHRC,05/12/2019,T&S UK - Subsistence,Health and Environmental Humanities,Unspecified,98650186,5,T&S UK - Subsistence
BEIS,UKRI - AHRC,06/12/2019,Conferences & Seminars,Public and Stakeholder Engagement,Calder Conference Ltd,98648622,324.6,Conferences & Seminars
BEIS,UKRI - AHRC,06/12/2019,Non-staff travel and subsistance,Funds for International Collaboration (FIC 20 US),Non Employee Expenses Supplier,98648624,379.58,Non-staff travel and subsistance
BEIS,UKRI - AHRC,06/12/2019,Non-staff travel and subsistance,Funds for International Collaboration (FIC 20 US),Non Employee Expenses Supplier,98648625,241.48,Non-staff travel and subsistance
BEIS,UKRI - AHRC,06/12/2019,Non-staff travel and subsistance,GCRF - Programme Delivery,Non Employee Expenses Supplier,98648626,105.5,Non-staff travel and subsistance
BEIS,UKRI - AHRC,06/12/2019,Non-staff travel and subsistance,"History, Heritage, Languages and Literature",Non Employee Expenses Supplier,98648627,287.21,Non-staff travel and subsistance
BEIS,UKRI - AHRC,06/12/2019,Non-staff travel and subsistance,"History, Heritage, Languages and Literature",Non Employee Expenses Supplier,98648628,141,Non-staff travel and subsistance
BEIS,UKRI - AHRC,06/12/2019,Non-staff travel and subsistance,Newton Programme,Non Employee Expenses Supplier,98648629,55,Non-staff travel and subsistance
BEIS,UKRI - AHRC,06/12/2019,Non-staff travel and subsistance,Newton Programme,Non Employee Expenses Supplier,98648630,134.74,Non-staff travel and subsistance
BEIS,UKRI - AHRC,06/12/2019,Non-staff travel and subsistance,Newton Programme,Non Employee Expenses Supplier,98648631,92.15,Non-staff travel and subsistance
BEIS,UKRI - AHRC,06/12/2019,Non-staff travel and subsistance,Newton Programme,Non Employee Expenses Supplier,98648632,485.77,Non-staff travel and subsistance
BEIS,UKRI - AHRC,06/12/2019,Non-staff travel and subsistance,Newton Programme,Non Employee Expenses Supplier,98648633,477.05,Non-staff travel and subsistance
BEIS,UKRI - AHRC,06/12/2019,Non-staff travel and subsistance,GCRF - Programme Delivery,Corporate Travel Management (North) Ltd,98650562,0.8,Non-staff travel and subsistance
BEIS,UKRI - AHRC,06/12/2019,Non-staff travel and subsistance,GCRF - Programme Delivery,Corporate Travel Management (North) Ltd,98650562,170.85,Non-staff travel and subsistance
BEIS,UKRI - AHRC,06/12/2019,Non-staff travel and subsistance,GCRF - Programme Delivery,Corporate Travel Management (North) Ltd,98650562,0.8,Non-staff travel and subsistance
BEIS,UKRI - AHRC,06/12/2019,Non-staff travel and subsistance,GCRF - Programme Delivery,Corporate Travel Management (North) Ltd,98650562,130,Non-staff travel and subsistance
BEIS,UKRI - AHRC,06/12/2019,Non-staff travel and subsistance,GCRF - Programme Delivery,Corporate Travel Management (North) Ltd,98650562,0.8,Non-staff travel and subsistance
BEIS,UKRI - AHRC,06/12/2019,Non-staff travel and subsistance,GCRF - Programme Delivery,Corporate Travel Management (North) Ltd,98650562,130,Non-staff travel and subsistance
BEIS,UKRI - AHRC,06/12/2019,Non-staff travel and subsistance,GCRF - Programme Delivery,Corporate Travel Management (North) Ltd,98650562,0.8,Non-staff travel and subsistance
BEIS,UKRI - AHRC,06/12/2019,Non-staff travel and subsistance,GCRF - Programme Delivery,Corporate Travel Management (North) Ltd,98650562,65,Non-staff travel and subsistance
BEIS,UKRI - AHRC,06/12/2019,Non-staff travel and subsistance,GCRF - Programme Delivery,Corporate Travel Management (North) Ltd,98650562,0.8,Non-staff travel and subsistance
BEIS,UKRI - AHRC,06/12/2019,Non-staff travel and subsistance,GCRF - Programme Delivery,Corporate Travel Management (North) Ltd,98650562,130,Non-staff travel and subsistance
BEIS,UKRI - AHRC,06/12/2019,Non-staff travel and subsistance,GCRF - Programme Delivery,Corporate Travel Management (North) Ltd,98650562,0.8,Non-staff travel and subsistance
BEIS,UKRI - AHRC,06/12/2019,Non-staff travel and subsistance,GCRF - Programme Delivery,Corporate Travel Management (North) Ltd,98650562,92,Non-staff travel and subsistance
BEIS,UKRI - AHRC,06/12/2019,Non-staff travel and subsistance,GCRF - Programme Delivery,Corporate Travel Management (North) Ltd,98650562,0.8,Non-staff travel and subsistance
BEIS,UKRI - AHRC,06/12/2019,Non-staff travel and subsistance,GCRF - Programme Delivery,Corporate Travel Management (North) Ltd,98650562,65,Non-staff travel and subsistance
BEIS,UKRI - AHRC,06/12/2019,Non-staff travel and subsistance,GCRF - Programme Delivery,Corporate Travel Management (North) Ltd,98650562,0.8,Non-staff travel and subsistance
BEIS,UKRI - AHRC,06/12/2019,Non-staff travel and subsistance,GCRF - Programme Delivery,Corporate Travel Management (North) Ltd,98650562,75,Non-staff travel and subsistance
BEIS,UKRI - AHRC,06/12/2019,Non-staff travel and subsistance,GCRF - Programme Delivery,Corporate Travel Management (North) Ltd,98650562,0.8,Non-staff travel and subsistance
BEIS,UKRI - AHRC,06/12/2019,Non-staff travel and subsistance,GCRF - Programme Delivery,Corporate Travel Management (North) Ltd,98650562,75,Non-staff travel and subsistance
BEIS,UKRI - AHRC,06/12/2019,Non-staff travel and subsistance,GCRF - Programme Delivery,Corporate Travel Management (North) Ltd,98650562,0.8,Non-staff travel and subsistance
BEIS,UKRI - AHRC,06/12/2019,Non-staff travel and subsistance,GCRF - Programme Delivery,Corporate Travel Management (North) Ltd,98650562,75,Non-staff travel and subsistance
BEIS,UKRI - AHRC,06/12/2019,Non-staff travel and subsistance,GCRF - Programme Delivery,Corporate Travel Management (North) Ltd,98650562,0.8,Non-staff travel and subsistance
BEIS,UKRI - AHRC,06/12/2019,Non-staff travel and subsistance,GCRF - Programme Delivery,Corporate Travel Management (North) Ltd,98650562,159,Non-staff travel and subsistance
BEIS,UKRI - AHRC,06/12/2019,Non-staff travel and subsistance,GCRF - Programme Delivery,Corporate Travel Management (North) Ltd,98650562,1.76,Non-staff travel and subsistance
BEIS,UKRI - AHRC,06/12/2019,Non-staff travel and subsistance,Operations,Corporate Travel Management (North) Ltd,98650562,0.8,Non-staff travel and subsistance
BEIS,UKRI - AHRC,06/12/2019,Non-staff travel and subsistance,Operations,Corporate Travel Management (North) Ltd,98650562,116.1,Non-staff travel and subsistance
BEIS,UKRI - AHRC,06/12/2019,Non-staff travel and subsistance,Operations,Corporate Travel Management (North) Ltd,98650562,0.8,Non-staff travel and subsistance
BEIS,UKRI - AHRC,06/12/2019,Non-staff travel and subsistance,Operations,Corporate Travel Management (North) Ltd,98650562,75,Non-staff travel and subsistance
BEIS,UKRI - AHRC,06/12/2019,Non-staff travel and subsistance,Operations,Corporate Travel Management (North) Ltd,98650562,0.8,Non-staff travel and subsistance
BEIS,UKRI - AHRC,06/12/2019,Non-staff travel and subsistance,Operations,Corporate Travel Management (North) Ltd,98650562,75,Non-staff travel and subsistance
BEIS,UKRI - AHRC,06/12/2019,Non-staff travel and subsistance,Operations,Corporate Travel Management (North) Ltd,98650562,0.48,Non-staff travel and subsistance
BEIS,UKRI - AHRC,06/12/2019,T&S Overseas - Accommodation,FIC- US,Corporate Travel Management (North) Ltd,98650562,2,T&S Overseas - Accommodation
BEIS,UKRI - AHRC,06/12/2019,T&S Overseas - Accommodation,FIC- US,Corporate Travel Management (North) Ltd,98650562,24766.42,T&S Overseas - Accommodation
BEIS,UKRI - AHRC,06/12/2019,T&S Overseas - Accommodation,FIC- US,Corporate Travel Management (North) Ltd,98650562,0.4,T&S Overseas - Accommodation
BEIS,UKRI - AHRC,06/12/2019,T&S Overseas - Accommodation,Funds for International Collaboration (FIC 20 US),Corporate Travel Management (North) Ltd,98650562,2,T&S Overseas - Accommodation
BEIS,UKRI - AHRC,06/12/2019,T&S Overseas - Accommodation,Funds for International Collaboration (FIC 20 US),Corporate Travel Management (North) Ltd,98650562,10887.64,T&S Overseas - Accommodation
BEIS,UKRI - AHRC,06/12/2019,T&S Overseas - Accommodation,Funds for International Collaboration (FIC 20 US),Corporate Travel Management (North) Ltd,98650562,0.4,T&S Overseas - Accommodation
BEIS,UKRI - AHRC,06/12/2019,T&S Overseas - Accommodation,JPI Cultural Heritage Project,Corporate Travel Management (North) Ltd,98650562,1.17,T&S Overseas - Accommodation
BEIS,UKRI - AHRC,06/12/2019,T&S Overseas - Accommodation,JPI Cultural Heritage Project,Corporate Travel Management (North) Ltd,98650562,0.23,T&S Overseas - Accommodation
BEIS,UKRI - AHRC,06/12/2019,T&S Overseas - Accommodation,SMT,Corporate Travel Management (North) Ltd,98650562,165.76,T&S Overseas - Accommodation
BEIS,UKRI - AHRC,06/12/2019,T&S Overseas - Flights,FIC- US,Corporate Travel Management (North) Ltd,98650562,9.5,T&S Overseas - Flights
BEIS,UKRI - AHRC,06/12/2019,T&S Overseas - Flights,FIC- US,Corporate Travel Management (North) Ltd,98650562,10,T&S Overseas - Flights
BEIS,UKRI - AHRC,06/12/2019,T&S Overseas - Flights,FIC- US,Corporate Travel Management (North) Ltd,98650562,190,T&S Overseas - Flights
BEIS,UKRI - AHRC,06/12/2019,T&S Overseas - Flights,FIC- US,Corporate Travel Management (North) Ltd,98650562,104,T&S Overseas - Flights
BEIS,UKRI - AHRC,06/12/2019,T&S Overseas - Flights,FIC- US,Corporate Travel Management (North) Ltd,98650562,41.9,T&S Overseas - Flights
BEIS,UKRI - AHRC,06/12/2019,T&S Overseas - Flights,GCRF - Programme Delivery,Corporate Travel Management (North) Ltd,98650562,9.5,T&S Overseas - Flights
BEIS,UKRI - AHRC,06/12/2019,T&S Overseas - Flights,GCRF - Programme Delivery,Corporate Travel Management (North) Ltd,98650562,1217.74,T&S Overseas - Flights
BEIS,UKRI - AHRC,06/12/2019,T&S Overseas - Flights,International,Corporate Travel Management (North) Ltd,98650562,2.5,T&S Overseas - Flights
BEIS,UKRI - AHRC,06/12/2019,T&S Overseas - Flights,International,Corporate Travel Management (North) Ltd,98650562,281.94,T&S Overseas - Flights
BEIS,UKRI - AHRC,06/12/2019,T&S Overseas - Flights,International Partnership and Engagement,Corporate Travel Management (North) Ltd,98650562,2.5,T&S Overseas - Flights
BEIS,UKRI - AHRC,06/12/2019,T&S Overseas - Flights,International Partnership and Engagement,Corporate Travel Management (North) Ltd,98650562,127.32,T&S Overseas - Flights
BEIS,UKRI - AHRC,06/12/2019,T&S Overseas - Flights,JPI Cultural Heritage Project,Corporate Travel Management (North) Ltd,98650562,2.5,T&S Overseas - Flights
BEIS,UKRI - AHRC,06/12/2019,T&S Overseas - Flights,JPI Cultural Heritage Project,Corporate Travel Management (North) Ltd,98650562,71.48,T&S Overseas - Flights
BEIS,UKRI - AHRC,06/12/2019,T&S Overseas - Flights,JPI Cultural Heritage Project,Corporate Travel Management (North) Ltd,98650562,2.5,T&S Overseas - Flights
BEIS,UKRI - AHRC,06/12/2019,T&S Overseas - Flights,JPI Cultural Heritage Project,Corporate Travel Management (North) Ltd,98650562,65.6,T&S Overseas - Flights
BEIS,UKRI - AHRC,06/12/2019,T&S Overseas - Flights,SMT,Corporate Travel Management (North) Ltd,98650562,4.5,T&S Overseas - Flights
BEIS,UKRI - AHRC,06/12/2019,T&S Overseas - Flights,SMT,Corporate Travel Management (North) Ltd,98650562,12,T&S Overseas - Flights
BEIS,UKRI - AHRC,06/12/2019,T&S Overseas - Flights,SMT,Corporate Travel Management (North) Ltd,98650562,9.5,T&S Overseas - Flights
BEIS,UKRI - AHRC,06/12/2019,T&S Overseas - Flights,SMT,Corporate Travel Management (North) Ltd,98650562,2209.3,T&S Overseas - Flights
BEIS,UKRI - AHRC,06/12/2019,T&S Overseas - Flights,SMT,Corporate Travel Management (North) Ltd,98650562,132,T&S Overseas - Flights
BEIS,UKRI - AHRC,06/12/2019,T&S Overseas - Flights,SMT,Corporate Travel Management (North) Ltd,98650562,5,T&S Overseas - Flights
BEIS,UKRI - AHRC,06/12/2019,T&S Overseas - Flights,SMT,Corporate Travel Management (North) Ltd,98650562,456,T&S Overseas - Flights
BEIS,UKRI - AHRC,06/12/2019,T&S Overseas - Flights,SMT,Corporate Travel Management (North) Ltd,98650562,2.5,T&S Overseas - Flights
BEIS,UKRI - AHRC,06/12/2019,T&S Overseas - Flights,SMT,Corporate Travel Management (North) Ltd,98650562,268,T&S Overseas - Flights
BEIS,UKRI - AHRC,06/12/2019,T&S Overseas - Flights,Secretariat,Corporate Travel Management (North) Ltd,98650562,2.5,T&S Overseas - Flights
BEIS,UKRI - AHRC,06/12/2019,T&S Overseas - Flights,Secretariat,Corporate Travel Management (North) Ltd,98650562,554.8,T&S Overseas - Flights
BEIS,UKRI - AHRC,06/12/2019,T&S Overseas - Other Charges,HERA JRP Project,Corporate Travel Management (North) Ltd,98650562,2.5,T&S Overseas - Other Charges
BEIS,UKRI - AHRC,06/12/2019,T&S Overseas - Other Charges,HERA JRP Project,Corporate Travel Management (North) Ltd,98650562,243,T&S Overseas - Other Charges
BEIS,UKRI - AHRC,06/12/2019,T&S UK - Accommodation,Digital Arts and Humanities and Creative Industries,Corporate Travel Management (North) Ltd,98650562,0.8,T&S UK - Accommodation
BEIS,UKRI - AHRC,06/12/2019,T&S UK - Accommodation,Digital Arts and Humanities and Creative Industries,Corporate Travel Management (North) Ltd,98650562,105,T&S UK - Accommodation
BEIS,UKRI - AHRC,06/12/2019,T&S UK - Accommodation,Digital Arts and Humanities and Creative Industries,Corporate Travel Management (North) Ltd,98650562,1.6,T&S UK - Accommodation
BEIS,UKRI - AHRC,06/12/2019,T&S UK - Accommodation,Digital Arts and Humanities and Creative Industries,Corporate Travel Management (North) Ltd,98650562,243,T&S UK - Accommodation
BEIS,UKRI - AHRC,06/12/2019,T&S UK - Accommodation,Digital Arts and Humanities and Creative Industries,Corporate Travel Management (North) Ltd,98650562,0.5,T&S UK - Accommodation
BEIS,UKRI - AHRC,06/12/2019,T&S UK - Accommodation,Digital Arts and Humanities and Creative Industries,Corporate Travel Management (North) Ltd,98650562,188,T&S UK - Accommodation
BEIS,UKRI - AHRC,06/12/2019,T&S UK - Accommodation,Digital Arts and Humanities and Creative Industries,Corporate Travel Management (North) Ltd,98650562,0.5,T&S UK - Accommodation
BEIS,UKRI - AHRC,06/12/2019,T&S UK - Accommodation,Digital Arts and Humanities and Creative Industries,Corporate Travel Management (North) Ltd,98650562,188,T&S UK - Accommodation
BEIS,UKRI - AHRC,06/12/2019,T&S UK - Accommodation,Digital Arts and Humanities and Creative Industries,Corporate Travel Management (North) Ltd,98650562,0.8,T&S UK - Accommodation
BEIS,UKRI - AHRC,06/12/2019,T&S UK - Accommodation,Digital Arts and Humanities and Creative Industries,Corporate Travel Management (North) Ltd,98650562,438.7,T&S UK - Accommodation
BEIS,UKRI - AHRC,06/12/2019,T&S UK - Accommodation,Digital Arts and Humanities and Creative Industries,Corporate Travel Management (North) Ltd,98650562,0.84,T&S UK - Accommodation
BEIS,UKRI - AHRC,06/12/2019,T&S UK - Accommodation,FIC- US,Corporate Travel Management (North) Ltd,98650562,1.6,T&S UK - Accommodation
BEIS,UKRI - AHRC,06/12/2019,T&S UK - Accommodation,FIC- US,Corporate Travel Management (North) Ltd,98650562,0.32,T&S UK - Accommodation
BEIS,UKRI - AHRC,06/12/2019,T&S UK - Accommodation,GCRF - Programme Delivery,Corporate Travel Management (North) Ltd,98650562,0.8,T&S UK - Accommodation
BEIS,UKRI - AHRC,06/12/2019,T&S UK - Accommodation,GCRF - Programme Delivery,Corporate Travel Management (North) Ltd,98650562,0.8,T&S UK - Accommodation
BEIS,UKRI - AHRC,06/12/2019,T&S UK - Accommodation,GCRF - Programme Delivery,Corporate Travel Management (North) Ltd,98650562,0.32,T&S UK - Accommodation
BEIS,UKRI - AHRC,06/12/2019,T&S UK - Accommodation,HR,Corporate Travel Management (North) Ltd,98650562,0.8,T&S UK - Accommodation
BEIS,UKRI - AHRC,06/12/2019,T&S UK - Accommodation,HR,Corporate Travel Management (North) Ltd,98650562,55,T&S UK - Accommodation
BEIS,UKRI - AHRC,06/12/2019,T&S UK - Accommodation,HR,Corporate Travel Management (North) Ltd,98650562,0.8,T&S UK - Accommodation
BEIS,UKRI - AHRC,06/12/2019,T&S UK - Accommodation,HR,Corporate Travel Management (North) Ltd,98650562,84.16,T&S UK - Accommodation
BEIS,UKRI - AHRC,06/12/2019,T&S UK - Accommodation,HR,Corporate Travel Management (North) Ltd,98650562,0.8,T&S UK - Accommodation
BEIS,UKRI - AHRC,06/12/2019,T&S UK - Accommodation,HR,Corporate Travel Management (North) Ltd,98650562,132.24,T&S UK - Accommodation
BEIS,UKRI - AHRC,06/12/2019,T&S UK - Accommodation,HR,Corporate Travel Management (North) Ltd,98650562,0.48,T&S UK - Accommodation
BEIS,UKRI - AHRC,06/12/2019,T&S UK - Accommodation,"History, Heritage, Languages and Literature",Corporate Travel Management (North) Ltd,98650562,0.8,T&S UK - Accommodation
BEIS,UKRI - AHRC,06/12/2019,T&S UK - Accommodation,"History, Heritage, Languages and Literature",Corporate Travel Management (North) Ltd,98650562,154.45,T&S UK - Accommodation
BEIS,UKRI - AHRC,06/12/2019,T&S UK - Accommodation,"History, Heritage, Languages and Literature",Corporate Travel Management (North) Ltd,98650562,0.16,T&S UK - Accommodation
BEIS,UKRI - AHRC,06/12/2019,T&S UK - Accommodation,Industrial Strategy Challenge Fund (ISCF) - Creative Clusters,Corporate Travel Management (North) Ltd,98650562,0.8,T&S UK - Accommodation
BEIS,UKRI - AHRC,06/12/2019,T&S UK - Accommodation,Industrial Strategy Challenge Fund (ISCF) - Creative Clusters,Corporate Travel Management (North) Ltd,98650562,69,T&S UK - Accommodation
BEIS,UKRI - AHRC,06/12/2019,T&S UK - Accommodation,Industrial Strategy Challenge Fund (ISCF) - Creative Clusters,Corporate Travel Management (North) Ltd,98650562,0.8,T&S UK - Accommodation
BEIS,UKRI - AHRC,06/12/2019,T&S UK - Accommodation,Industrial Strategy Challenge Fund (ISCF) - Creative Clusters,Corporate Travel Management (North) Ltd,98650562,327.6,T&S UK - Accommodation
BEIS,UKRI - AHRC,06/12/2019,T&S UK - Accommodation,Industrial Strategy Challenge Fund (ISCF) - Creative Clusters,Corporate Travel Management (North) Ltd,98650562,0.8,T&S UK - Accommodation
BEIS,UKRI - AHRC,06/12/2019,T&S UK - Accommodation,Industrial Strategy Challenge Fund (ISCF) - Creative Clusters,Corporate Travel Management (North) Ltd,98650562,252.45,T&S UK - Accommodation
BEIS,UKRI - AHRC,06/12/2019,T&S UK - Accommodation,Industrial Strategy Challenge Fund (ISCF) - Creative Clusters,Corporate Travel Management (North) Ltd,98650562,0.8,T&S UK - Accommodation
BEIS,UKRI - AHRC,06/12/2019,T&S UK - Accommodation,Industrial Strategy Challenge Fund (ISCF) - Creative Clusters,Corporate Travel Management (North) Ltd,98650562,327.6,T&S UK - Accommodation
BEIS,UKRI - AHRC,06/12/2019,T&S UK - Accommodation,Industrial Strategy Challenge Fund (ISCF) - Creative Clusters,Corporate Travel Management (North) Ltd,98650562,0.8,T&S UK - Accommodation
BEIS,UKRI - AHRC,06/12/2019,T&S UK - Accommodation,Industrial Strategy Challenge Fund (ISCF) - Creative Clusters,Corporate Travel Management (North) Ltd,98650562,285.6,T&S UK - Accommodation
BEIS,UKRI - AHRC,06/12/2019,T&S UK - Accommodation,Industrial Strategy Challenge Fund (ISCF) - Creative Clusters,Corporate Travel Management (North) Ltd,98650562,0.8,T&S UK - Accommodation
BEIS,UKRI - AHRC,06/12/2019,T&S UK - Accommodation,Industrial Strategy Challenge Fund (ISCF) - Creative Clusters,Corporate Travel Management (North) Ltd,98650562,162.7,T&S UK - Accommodation
BEIS,UKRI - AHRC,06/12/2019,T&S UK - Accommodation,Industrial Strategy Challenge Fund (ISCF) - Creative Clusters,Corporate Travel Management (North) Ltd,98650562,0.8,T&S UK - Accommodation
BEIS,UKRI - AHRC,06/12/2019,T&S UK - Accommodation,Industrial Strategy Challenge Fund (ISCF) - Creative Clusters,Corporate Travel Management (North) Ltd,98650562,285.6,T&S UK - Accommodation
BEIS,UKRI - AHRC,06/12/2019,T&S UK - Accommodation,Industrial Strategy Challenge Fund (ISCF) - Creative Clusters,Corporate Travel Management (North) Ltd,98650562,0.8,T&S UK - Accommodation
BEIS,UKRI - AHRC,06/12/2019,T&S UK - Accommodation,Industrial Strategy Challenge Fund (ISCF) - Creative Clusters,Corporate Travel Management (North) Ltd,98650562,252.45,T&S UK - Accommodation
BEIS,UKRI - AHRC,06/12/2019,T&S UK - Accommodation,Industrial Strategy Challenge Fund (ISCF) - Creative Clusters,Corporate Travel Management (North) Ltd,98650562,0.8,T&S UK - Accommodation
BEIS,UKRI - AHRC,06/12/2019,T&S UK - Accommodation,Industrial Strategy Challenge Fund (ISCF) - Creative Clusters,Corporate Travel Management (North) Ltd,98650562,75,T&S UK - Accommodation
BEIS,UKRI - AHRC,06/12/2019,T&S UK - Accommodation,Industrial Strategy Challenge Fund (ISCF) - Creative Clusters,Corporate Travel Management (North) Ltd,98650562,1.44,T&S UK - Accommodation
BEIS,UKRI - AHRC,06/12/2019,T&S UK - Accommodation,International,Corporate Travel Management (North) Ltd,98650562,0.8,T&S UK - Accommodation
BEIS,UKRI - AHRC,06/12/2019,T&S UK - Accommodation,International,Corporate Travel Management (North) Ltd,98650562,0.16,T&S UK - Accommodation
BEIS,UKRI - AHRC,06/12/2019,T&S UK - Accommodation,International Partnership and Engagement,Corporate Travel Management (North) Ltd,98650562,0.8,T&S UK - Accommodation
BEIS,UKRI - AHRC,06/12/2019,T&S UK - Accommodation,International Partnership and Engagement,Corporate Travel Management (North) Ltd,98650562,79.9,T&S UK - Accommodation
BEIS,UKRI - AHRC,06/12/2019,T&S UK - Accommodation,International Partnership and Engagement,Corporate Travel Management (North) Ltd,98650562,0.16,T&S UK - Accommodation
BEIS,UKRI - AHRC,06/12/2019,T&S UK - Accommodation,Newton Programme,Corporate Travel Management (North) Ltd,98650562,0.8,T&S UK - Accommodation
BEIS,UKRI - AHRC,06/12/2019,T&S UK - Accommodation,Newton Programme,Corporate Travel Management (North) Ltd,98650562,130,T&S UK - Accommodation
BEIS,UKRI - AHRC,06/12/2019,T&S UK - Accommodation,Newton Programme,Corporate Travel Management (North) Ltd,98650562,0.8,T&S UK - Accommodation
BEIS,UKRI - AHRC,06/12/2019,T&S UK - Accommodation,Newton Programme,Corporate Travel Management (North) Ltd,98650562,130,T&S UK - Accommodation
BEIS,UKRI - AHRC,06/12/2019,T&S UK - Accommodation,Newton Programme,Corporate Travel Management (North) Ltd,98650562,0.8,T&S UK - Accommodation
BEIS,UKRI - AHRC,06/12/2019,T&S UK - Accommodation,Newton Programme,Corporate Travel Management (North) Ltd,98650562,130,T&S UK - Accommodation
BEIS,UKRI - AHRC,06/12/2019,T&S UK - Accommodation,Newton Programme,Corporate Travel Management (North) Ltd,98650562,0.8,T&S UK - Accommodation
BEIS,UKRI - AHRC,06/12/2019,T&S UK - Accommodation,Newton Programme,Corporate Travel Management (North) Ltd,98650562,130,T&S UK - Accommodation
BEIS,UKRI - AHRC,06/12/2019,T&S UK - Accommodation,Newton Programme,Corporate Travel Management (North) Ltd,98650562,0.8,T&S UK - Accommodation
BEIS,UKRI - AHRC,06/12/2019,T&S UK - Accommodation,Newton Programme,Corporate Travel Management (North) Ltd,98650562,130,T&S UK - Accommodation
BEIS,UKRI - AHRC,06/12/2019,T&S UK - Accommodation,Newton Programme,Corporate Travel Management (North) Ltd,98650562,0.8,T&S UK - Accommodation
BEIS,UKRI - AHRC,06/12/2019,T&S UK - Accommodation,Operations,Corporate Travel Management (North) Ltd,98650562,0.8,T&S UK - Accommodation
BEIS,UKRI - AHRC,06/12/2019,T&S UK - Accommodation,Operations,Corporate Travel Management (North) Ltd,98650562,44.1,T&S UK - Accommodation
BEIS,UKRI - AHRC,06/12/2019,T&S UK - Accommodation,Operations,Corporate Travel Management (North) Ltd,98650562,0.8,T&S UK - Accommodation
BEIS,UKRI - AHRC,06/12/2019,T&S UK - Accommodation,Operations,Corporate Travel Management (North) Ltd,98650562,44.1,T&S UK - Accommodation
BEIS,UKRI - AHRC,06/12/2019,T&S UK - Accommodation,Operations,Corporate Travel Management (North) Ltd,98650562,0.8,T&S UK - Accommodation
BEIS,UKRI - AHRC,06/12/2019,T&S UK - Accommodation,Operations,Corporate Travel Management (North) Ltd,98650562,2,T&S UK - Accommodation
BEIS,UKRI - AHRC,06/12/2019,T&S UK - Accommodation,Operations,Corporate Travel Management (North) Ltd,98650562,130,T&S UK - Accommodation
BEIS,UKRI - AHRC,06/12/2019,T&S UK - Accommodation,Operations,Corporate Travel Management (North) Ltd,98650562,0.8,T&S UK - Accommodation
BEIS,UKRI - AHRC,06/12/2019,T&S UK - Accommodation,Operations,Corporate Travel Management (North) Ltd,98650562,55,T&S UK - Accommodation
BEIS,UKRI - AHRC,06/12/2019,T&S UK - Accommodation,Operations,Corporate Travel Management (North) Ltd,98650562,0.8,T&S UK - Accommodation
BEIS,UKRI - AHRC,06/12/2019,T&S UK - Accommodation,Operations,Corporate Travel Management (North) Ltd,98650562,56,T&S UK - Accommodation
BEIS,UKRI - AHRC,06/12/2019,T&S UK - Accommodation,Operations,Corporate Travel Management (North) Ltd,98650562,0.8,T&S UK - Accommodation
BEIS,UKRI - AHRC,06/12/2019,T&S UK - Accommodation,Operations,Corporate Travel Management (North) Ltd,98650562,55,T&S UK - Accommodation
BEIS,UKRI - AHRC,06/12/2019,T&S UK - Accommodation,Operations,Corporate Travel Management (North) Ltd,98650562,1.6,T&S UK - Accommodation
BEIS,UKRI - AHRC,06/12/2019,T&S UK - Accommodation,Operations,Corporate Travel Management (North) Ltd,98650562,110,T&S UK - Accommodation
BEIS,UKRI - AHRC,06/12/2019,T&S UK - Accommodation,Operations,Corporate Travel Management (North) Ltd,98650562,55,T&S UK - Accommodation
BEIS,UKRI - AHRC,06/12/2019,T&S UK - Accommodation,Operations,Corporate Travel Management (North) Ltd,98650562,0.8,T&S UK - Accommodation
BEIS,UKRI - AHRC,06/12/2019,T&S UK - Accommodation,Operations,Corporate Travel Management (North) Ltd,98650562,110,T&S UK - Accommodation
BEIS,UKRI - AHRC,06/12/2019,T&S UK - Accommodation,Operations,Corporate Travel Management (North) Ltd,98650562,1.6,T&S UK - Accommodation
BEIS,UKRI - AHRC,06/12/2019,T&S UK - Accommodation,Operations,Corporate Travel Management (North) Ltd,98650562,110,T&S UK - Accommodation
BEIS,UKRI - AHRC,06/12/2019,T&S UK - Accommodation,Operations,Corporate Travel Management (North) Ltd,98650562,55,T&S UK - Accommodation
BEIS,UKRI - AHRC,06/12/2019,T&S UK - Accommodation,Operations,Corporate Travel Management (North) Ltd,98650562,0.8,T&S UK - Accommodation
BEIS,UKRI - AHRC,06/12/2019,T&S UK - Accommodation,Operations,Corporate Travel Management (North) Ltd,98650562,65,T&S UK - Accommodation
BEIS,UKRI - AHRC,06/12/2019,T&S UK - Accommodation,Operations,Corporate Travel Management (North) Ltd,98650562,0.8,T&S UK - Accommodation
BEIS,UKRI - AHRC,06/12/2019,T&S UK - Accommodation,Operations,Corporate Travel Management (North) Ltd,98650562,55,T&S UK - Accommodation
BEIS,UKRI - AHRC,06/12/2019,T&S UK - Accommodation,Operations,Corporate Travel Management (North) Ltd,98650562,0.8,T&S UK - Accommodation
BEIS,UKRI - AHRC,06/12/2019,T&S UK - Accommodation,Operations,Corporate Travel Management (North) Ltd,98650562,2.64,T&S UK - Accommodation
BEIS,UKRI - AHRC,06/12/2019,T&S UK - Accommodation,PSU JRS,Corporate Travel Management (North) Ltd,98650562,0.8,T&S UK - Accommodation
BEIS,UKRI - AHRC,06/12/2019,T&S UK - Accommodation,PSU JRS,Corporate Travel Management (North) Ltd,98650562,128,T&S UK - Accommodation
BEIS,UKRI - AHRC,06/12/2019,T&S UK - Accommodation,PSU JRS,Corporate Travel Management (North) Ltd,98650562,0.8,T&S UK - Accommodation
BEIS,UKRI - AHRC,06/12/2019,T&S UK - Accommodation,PSU JRS,Corporate Travel Management (North) Ltd,98650562,427,T&S UK - Accommodation
BEIS,UKRI - AHRC,06/12/2019,T&S UK - Accommodation,PSU JRS,Corporate Travel Management (North) Ltd,98650562,0.32,T&S UK - Accommodation
BEIS,UKRI - AHRC,06/12/2019,T&S UK - Accommodation,Public and Stakeholder Engagement,Corporate Travel Management (North) Ltd,98650562,0.8,T&S UK - Accommodation
BEIS,UKRI - AHRC,06/12/2019,T&S UK - Accommodation,Public and Stakeholder Engagement,Corporate Travel Management (North) Ltd,98650562,159.24,T&S UK - Accommodation
BEIS,UKRI - AHRC,06/12/2019,T&S UK - Accommodation,Public and Stakeholder Engagement,Corporate Travel Management (North) Ltd,98650562,0.16,T&S UK - Accommodation
BEIS,UKRI - AHRC,06/12/2019,T&S UK - Accommodation,SMT,Corporate Travel Management (North) Ltd,98650562,0.8,T&S UK - Accommodation
BEIS,UKRI - AHRC,06/12/2019,T&S UK - Accommodation,SMT,Corporate Travel Management (North) Ltd,98650562,57.5,T&S UK - Accommodation
BEIS,UKRI - AHRC,06/12/2019,T&S UK - Accommodation,SMT,Corporate Travel Management (North) Ltd,98650562,0.8,T&S UK - Accommodation
BEIS,UKRI - AHRC,06/12/2019,T&S UK - Accommodation,SMT,Corporate Travel Management (North) Ltd,98650562,0.8,T&S UK - Accommodation
BEIS,UKRI - AHRC,06/12/2019,T&S UK - Accommodation,SMT,Corporate Travel Management (North) Ltd,98650562,185,T&S UK - Accommodation
BEIS,UKRI - AHRC,06/12/2019,T&S UK - Accommodation,SMT,Corporate Travel Management (North) Ltd,98650562,0.8,T&S UK - Accommodation
BEIS,UKRI - AHRC,06/12/2019,T&S UK - Accommodation,SMT,Corporate Travel Management (North) Ltd,98650562,162.5,T&S UK - Accommodation
BEIS,UKRI - AHRC,06/12/2019,T&S UK - Accommodation,SMT,Corporate Travel Management (North) Ltd,98650562,0.8,T&S UK - Accommodation
BEIS,UKRI - AHRC,06/12/2019,T&S UK - Accommodation,SMT,Corporate Travel Management (North) Ltd,98650562,162.5,T&S UK - Accommodation
BEIS,UKRI - AHRC,06/12/2019,T&S UK - Accommodation,SMT,Corporate Travel Management (North) Ltd,98650562,0.8,T&S UK - Accommodation
BEIS,UKRI - AHRC,06/12/2019,T&S UK - Accommodation,SMT,Corporate Travel Management (North) Ltd,98650562,341.1,T&S UK - Accommodation
BEIS,UKRI - AHRC,06/12/2019,T&S UK - Accommodation,SMT,Corporate Travel Management (North) Ltd,98650562,0.8,T&S UK - Accommodation
BEIS,UKRI - AHRC,06/12/2019,T&S UK - Accommodation,SMT,Corporate Travel Management (North) Ltd,98650562,155,T&S UK - Accommodation
BEIS,UKRI - AHRC,06/12/2019,T&S UK - Accommodation,SMT,Corporate Travel Management (North) Ltd,98650562,1.12,T&S UK - Accommodation
BEIS,UKRI - AHRC,06/12/2019,T&S UK - Accommodation,Secretariat,Corporate Travel Management (North) Ltd,98650562,0.8,T&S UK - Accommodation
BEIS,UKRI - AHRC,06/12/2019,T&S UK - Accommodation,Secretariat,Corporate Travel Management (North) Ltd,98650562,290.02,T&S UK - Accommodation
BEIS,UKRI - AHRC,06/12/2019,T&S UK - Accommodation,Secretariat,Corporate Travel Management (North) Ltd,98650562,0.8,T&S UK - Accommodation
BEIS,UKRI - AHRC,06/12/2019,T&S UK - Accommodation,Secretariat,Corporate Travel Management (North) Ltd,98650562,0.8,T&S UK - Accommodation
BEIS,UKRI - AHRC,06/12/2019,T&S UK - Accommodation,Secretariat,Corporate Travel Management (North) Ltd,98650562,162.5,T&S UK - Accommodation
BEIS,UKRI - AHRC,06/12/2019,T&S UK - Accommodation,Secretariat,Corporate Travel Management (North) Ltd,98650562,0.48,T&S UK - Accommodation
BEIS,UKRI - AHRC,06/12/2019,T&S UK - Accommodation,Skills Strategy,Corporate Travel Management (North) Ltd,98650562,0.8,T&S UK - Accommodation
BEIS,UKRI - AHRC,06/12/2019,T&S UK - Accommodation,Skills Strategy,Corporate Travel Management (North) Ltd,98650562,0.8,T&S UK - Accommodation
BEIS,UKRI - AHRC,06/12/2019,T&S UK - Accommodation,Skills Strategy,Corporate Travel Management (North) Ltd,98650562,74.8,T&S UK - Accommodation
BEIS,UKRI - AHRC,06/12/2019,T&S UK - Accommodation,Skills Strategy,Corporate Travel Management (North) Ltd,98650562,0.8,T&S UK - Accommodation
BEIS,UKRI - AHRC,06/12/2019,T&S UK - Accommodation,Skills Strategy,Corporate Travel Management (North) Ltd,98650562,67.5,T&S UK - Accommodation
BEIS,UKRI - AHRC,06/12/2019,T&S UK - Accommodation,Skills Strategy,Corporate Travel Management (North) Ltd,98650562,0.48,T&S UK - Accommodation
BEIS,UKRI - AHRC,06/12/2019,T&S UK - Flights,FIC- US,Corporate Travel Management (North) Ltd,98650562,0.83,T&S UK - Flights
BEIS,UKRI - AHRC,06/12/2019,T&S UK - Flights,FIC- US,Corporate Travel Management (North) Ltd,98650562,399.34,T&S UK - Flights
BEIS,UKRI - AHRC,06/12/2019,T&S UK - Flights,Industrial Strategy Challenge Fund (ISCF) - Creative Clusters,Corporate Travel Management (North) Ltd,98650562,2.5,T&S UK - Flights
BEIS,UKRI - AHRC,06/12/2019,T&S UK - Flights,Industrial Strategy Challenge Fund (ISCF) - Creative Clusters,Corporate Travel Management (North) Ltd,98650562,105.96,T&S UK - Flights
BEIS,UKRI - AHRC,06/12/2019,T&S UK - Flights,Industrial Strategy Challenge Fund (ISCF) - Creative Clusters,Corporate Travel Management (North) Ltd,98650562,2.5,T&S UK - Flights
BEIS,UKRI - AHRC,06/12/2019,T&S UK - Flights,Industrial Strategy Challenge Fund (ISCF) - Creative Clusters,Corporate Travel Management (North) Ltd,98650562,105.96,T&S UK - Flights
BEIS,UKRI - AHRC,06/12/2019,T&S UK - Flights,SMT,Corporate Travel Management (North) Ltd,98650562,2.5,T&S UK - Flights
BEIS,UKRI - AHRC,06/12/2019,T&S UK - Flights,SMT,Corporate Travel Management (North) Ltd,98650562,220,T&S UK - Flights
BEIS,UKRI - AHRC,06/12/2019,T&S UK - Flights,SMT,Corporate Travel Management (North) Ltd,98650562,2.5,T&S UK - Flights
BEIS,UKRI - AHRC,06/12/2019,T&S UK - Flights,SMT,Corporate Travel Management (North) Ltd,98650562,186.46,T&S UK - Flights
BEIS,UKRI - AHRC,06/12/2019,T&S UK - Other Charges,PSU Project Office,Corporate Travel Management (North) Ltd,98650562,19.86,T&S UK - Other Charges
BEIS,UKRI - AHRC,06/12/2019,T&S UK - Other Charges,PSU Project Office,Corporate Travel Management (North) Ltd,98650562,19.86,T&S UK - Other Charges
BEIS,UKRI - AHRC,06/12/2019,T&S UK - Other Charges,SMT,Corporate Travel Management (North) Ltd,98650562,0.25,T&S UK - Other Charges
BEIS,UKRI - AHRC,06/12/2019,T&S UK - Other Charges,SMT,Corporate Travel Management (North) Ltd,98650562,116.4,T&S UK - Other Charges
BEIS,UKRI - AHRC,06/12/2019,T&S UK - Public Transport,Digital Arts and Humanities and Creative Industries,Corporate Travel Management (North) Ltd,98650562,0.25,T&S UK - Public Transport
BEIS,UKRI - AHRC,06/12/2019,T&S UK - Public Transport,Digital Arts and Humanities and Creative Industries,Corporate Travel Management (North) Ltd,98650562,41.9,T&S UK - Public Transport
BEIS,UKRI - AHRC,06/12/2019,T&S UK - Public Transport,Digital Arts and Humanities and Creative Industries,Corporate Travel Management (North) Ltd,98650562,0.25,T&S UK - Public Transport
BEIS,UKRI - AHRC,06/12/2019,T&S UK - Public Transport,Digital Arts and Humanities and Creative Industries,Corporate Travel Management (North) Ltd,98650562,82.1,T&S UK - Public Transport
BEIS,UKRI - AHRC,06/12/2019,T&S UK - Public Transport,Digital Arts and Humanities and Creative Industries,Corporate Travel Management (North) Ltd,98650562,0.25,T&S UK - Public Transport
BEIS,UKRI - AHRC,06/12/2019,T&S UK - Public Transport,Digital Arts and Humanities and Creative Industries,Corporate Travel Management (North) Ltd,98650562,63.9,T&S UK - Public Transport
BEIS,UKRI - AHRC,06/12/2019,T&S UK - Public Transport,Digital Arts and Humanities and Creative Industries,Corporate Travel Management (North) Ltd,98650562,0.5,T&S UK - Public Transport
BEIS,UKRI - AHRC,06/12/2019,T&S UK - Public Transport,Digital Arts and Humanities and Creative Industries,Corporate Travel Management (North) Ltd,98650562,43,T&S UK - Public Transport
BEIS,UKRI - AHRC,06/12/2019,T&S UK - Public Transport,Digital Arts and Humanities and Creative Industries,Corporate Travel Management (North) Ltd,98650562,18.6,T&S UK - Public Transport
BEIS,UKRI - AHRC,06/12/2019,T&S UK - Public Transport,Digital Arts and Humanities and Creative Industries,Corporate Travel Management (North) Ltd,98650562,0.25,T&S UK - Public Transport
BEIS,UKRI - AHRC,06/12/2019,T&S UK - Public Transport,Digital Arts and Humanities and Creative Industries,Corporate Travel Management (North) Ltd,98650562,43.1,T&S UK - Public Transport
BEIS,UKRI - AHRC,06/12/2019,T&S UK - Public Transport,Digital Arts and Humanities and Creative Industries,Corporate Travel Management (North) Ltd,98650562,0.25,T&S UK - Public Transport
BEIS,UKRI - AHRC,06/12/2019,T&S UK - Public Transport,Digital Arts and Humanities and Creative Industries,Corporate Travel Management (North) Ltd,98650562,95.5,T&S UK - Public Transport
BEIS,UKRI - AHRC,06/12/2019,T&S UK - Public Transport,Digital Arts and Humanities and Creative Industries,Corporate Travel Management (North) Ltd,98650562,0.25,T&S UK - Public Transport
BEIS,UKRI - AHRC,06/12/2019,T&S UK - Public Transport,Digital Arts and Humanities and Creative Industries,Corporate Travel Management (North) Ltd,98650562,126.7,T&S UK - Public Transport
BEIS,UKRI - AHRC,06/12/2019,T&S UK - Public Transport,Digital Arts and Humanities and Creative Industries,Corporate Travel Management (North) Ltd,98650562,0.25,T&S UK - Public Transport
BEIS,UKRI - AHRC,06/12/2019,T&S UK - Public Transport,Digital Arts and Humanities and Creative Industries,Corporate Travel Management (North) Ltd,98650562,144.7,T&S UK - Public Transport
BEIS,UKRI - AHRC,06/12/2019,T&S UK - Public Transport,Digital Arts and Humanities and Creative Industries,Corporate Travel Management (North) Ltd,98650562,19.25,T&S UK - Public Transport
BEIS,UKRI - AHRC,06/12/2019,T&S UK - Public Transport,Executive Office,Corporate Travel Management (North) Ltd,98650562,0.25,T&S UK - Public Transport
BEIS,UKRI - AHRC,06/12/2019,T&S UK - Public Transport,Executive Office,Corporate Travel Management (North) Ltd,98650562,37,T&S UK - Public Transport
BEIS,UKRI - AHRC,06/12/2019,T&S UK - Public Transport,Executive Office,Corporate Travel Management (North) Ltd,98650562,0.25,T&S UK - Public Transport
BEIS,UKRI - AHRC,06/12/2019,T&S UK - Public Transport,Executive Office,Corporate Travel Management (North) Ltd,98650562,28.8,T&S UK - Public Transport
BEIS,UKRI - AHRC,06/12/2019,T&S UK - Public Transport,Executive Office,Corporate Travel Management (North) Ltd,98650562,0.25,T&S UK - Public Transport
BEIS,UKRI - AHRC,06/12/2019,T&S UK - Public Transport,Executive Office,Corporate Travel Management (North) Ltd,98650562,14.3,T&S UK - Public Transport
BEIS,UKRI - AHRC,06/12/2019,T&S UK - Public Transport,FIC- US,Corporate Travel Management (North) Ltd,98650562,0.25,T&S UK - Public Transport
BEIS,UKRI - AHRC,06/12/2019,T&S UK - Public Transport,FIC- US,Corporate Travel Management (North) Ltd,98650562,69.9,T&S UK - Public Transport
BEIS,UKRI - AHRC,06/12/2019,T&S UK - Public Transport,FIC- US,Corporate Travel Management (North) Ltd,98650562,0.5,T&S UK - Public Transport
BEIS,UKRI - AHRC,06/12/2019,T&S UK - Public Transport,FIC- US,Corporate Travel Management (North) Ltd,98650562,32.1,T&S UK - Public Transport
BEIS,UKRI - AHRC,06/12/2019,T&S UK - Public Transport,FIC- US,Corporate Travel Management (North) Ltd,98650562,12.5,T&S UK - Public Transport
BEIS,UKRI - AHRC,06/12/2019,T&S UK - Public Transport,FIC- US,Corporate Travel Management (North) Ltd,98650562,0.25,T&S UK - Public Transport
BEIS,UKRI - AHRC,06/12/2019,T&S UK - Public Transport,FIC- US,Corporate Travel Management (North) Ltd,98650562,102.2,T&S UK - Public Transport
BEIS,UKRI - AHRC,06/12/2019,T&S UK - Public Transport,FIC- US,Corporate Travel Management (North) Ltd,98650562,0.25,T&S UK - Public Transport
BEIS,UKRI - AHRC,06/12/2019,T&S UK - Public Transport,FIC- US,Corporate Travel Management (North) Ltd,98650562,194.4,T&S UK - Public Transport
BEIS,UKRI - AHRC,06/12/2019,T&S UK - Public Transport,Finance,Corporate Travel Management (North) Ltd,98650562,0.25,T&S UK - Public Transport
BEIS,UKRI - AHRC,06/12/2019,T&S UK - Public Transport,Finance,Corporate Travel Management (North) Ltd,98650562,23.7,T&S UK - Public Transport
BEIS,UKRI - AHRC,06/12/2019,T&S UK - Public Transport,Finance,Corporate Travel Management (North) Ltd,98650562,0.25,T&S UK - Public Transport
BEIS,UKRI - AHRC,06/12/2019,T&S UK - Public Transport,Finance,Corporate Travel Management (North) Ltd,98650562,23.7,T&S UK - Public Transport
BEIS,UKRI - AHRC,06/12/2019,T&S UK - Public Transport,Finance,Corporate Travel Management (North) Ltd,98650562,0.25,T&S UK - Public Transport
BEIS,UKRI - AHRC,06/12/2019,T&S UK - Public Transport,Finance,Corporate Travel Management (North) Ltd,98650562,23.7,T&S UK - Public Transport
BEIS,UKRI - AHRC,06/12/2019,T&S UK - Public Transport,Finance,Corporate Travel Management (North) Ltd,98650562,0.25,T&S UK - Public Transport
BEIS,UKRI - AHRC,06/12/2019,T&S UK - Public Transport,Finance,Corporate Travel Management (North) Ltd,98650562,23.7,T&S UK - Public Transport
BEIS,UKRI - AHRC,06/12/2019,T&S UK - Public Transport,GCRF - Programme Delivery,Corporate Travel Management (North) Ltd,98650562,0.25,T&S UK - Public Transport
BEIS,UKRI - AHRC,06/12/2019,T&S UK - Public Transport,GCRF - Programme Delivery,Corporate Travel Management (North) Ltd,98650562,72.5,T&S UK - Public Transport
BEIS,UKRI - AHRC,06/12/2019,T&S UK - Public Transport,GCRF - Programme Delivery,Corporate Travel Management (North) Ltd,98650562,0.25,T&S UK - Public Transport
BEIS,UKRI - AHRC,06/12/2019,T&S UK - Public Transport,GCRF - Programme Delivery,Corporate Travel Management (North) Ltd,98650562,111.2,T&S UK - Public Transport
BEIS,UKRI - AHRC,06/12/2019,T&S UK - Public Transport,GCRF - Programme Delivery,Corporate Travel Management (North) Ltd,98650562,0.25,T&S UK - Public Transport
BEIS,UKRI - AHRC,06/12/2019,T&S UK - Public Transport,GCRF - Programme Delivery,Corporate Travel Management (North) Ltd,98650562,111.15,T&S UK - Public Transport
BEIS,UKRI - AHRC,06/12/2019,T&S UK - Public Transport,GCRF - Programme Delivery,Corporate Travel Management (North) Ltd,98650562,0.25,T&S UK - Public Transport
BEIS,UKRI - AHRC,06/12/2019,T&S UK - Public Transport,GCRF - Programme Delivery,Corporate Travel Management (North) Ltd,98650562,218,T&S UK - Public Transport
BEIS,UKRI - AHRC,06/12/2019,T&S UK - Public Transport,GCRF - Programme Delivery,Corporate Travel Management (North) Ltd,98650562,0.25,T&S UK - Public Transport
BEIS,UKRI - AHRC,06/12/2019,T&S UK - Public Transport,GCRF - Programme Delivery,Corporate Travel Management (North) Ltd,98650562,105.25,T&S UK - Public Transport
BEIS,UKRI - AHRC,06/12/2019,T&S UK - Public Transport,GCRF - Programme Delivery,Corporate Travel Management (North) Ltd,98650562,0.25,T&S UK - Public Transport
BEIS,UKRI - AHRC,06/12/2019,T&S UK - Public Transport,GCRF - Programme Delivery,Corporate Travel Management (North) Ltd,98650562,54.35,T&S UK - Public Transport
BEIS,UKRI - AHRC,06/12/2019,T&S UK - Public Transport,GCRF - Programme Delivery,Corporate Travel Management (North) Ltd,98650562,-134.4,T&S UK - Public Transport
BEIS,UKRI - AHRC,06/12/2019,T&S UK - Public Transport,GCRF - Programme Delivery,Corporate Travel Management (North) Ltd,98650562,0.25,T&S UK - Public Transport
BEIS,UKRI - AHRC,06/12/2019,T&S UK - Public Transport,GCRF - Programme Delivery,Corporate Travel Management (North) Ltd,98650562,114.4,T&S UK - Public Transport
BEIS,UKRI - AHRC,06/12/2019,T&S UK - Public Transport,GCRF - Programme Delivery,Corporate Travel Management (North) Ltd,98650562,0.25,T&S UK - Public Transport
BEIS,UKRI - AHRC,06/12/2019,T&S UK - Public Transport,GCRF - Programme Delivery,Corporate Travel Management (North) Ltd,98650562,46.15,T&S UK - Public Transport
BEIS,UKRI - AHRC,06/12/2019,T&S UK - Public Transport,GCRF - Programme Delivery,Corporate Travel Management (North) Ltd,98650562,0.25,T&S UK - Public Transport
BEIS,UKRI - AHRC,06/12/2019,T&S UK - Public Transport,GCRF - Programme Delivery,Corporate Travel Management (North) Ltd,98650562,157.6,T&S UK - Public Transport
BEIS,UKRI - AHRC,06/12/2019,T&S UK - Public Transport,GCRF - Programme Delivery,Corporate Travel Management (North) Ltd,98650562,0.25,T&S UK - Public Transport
BEIS,UKRI - AHRC,06/12/2019,T&S UK - Public Transport,GCRF - Programme Delivery,Corporate Travel Management (North) Ltd,98650562,358.6,T&S UK - Public Transport
BEIS,UKRI - AHRC,06/12/2019,T&S UK - Public Transport,GCRF - Programme Delivery,Corporate Travel Management (North) Ltd,98650562,0.25,T&S UK - Public Transport
BEIS,UKRI - AHRC,06/12/2019,T&S UK - Public Transport,GCRF - Programme Delivery,Corporate Travel Management (North) Ltd,98650562,42.3,T&S UK - Public Transport
BEIS,UKRI - AHRC,06/12/2019,T&S UK - Public Transport,GCRF - Programme Delivery,Corporate Travel Management (North) Ltd,98650562,15,T&S UK - Public Transport
BEIS,UKRI - AHRC,06/12/2019,T&S UK - Public Transport,GCRF - Programme Delivery,Corporate Travel Management (North) Ltd,98650562,-54.5,T&S UK - Public Transport
BEIS,UKRI - AHRC,06/12/2019,T&S UK - Public Transport,GCRF - Programme Delivery,Corporate Travel Management (North) Ltd,98650562,-77.5,T&S UK - Public Transport
BEIS,UKRI - AHRC,06/12/2019,T&S UK - Public Transport,GCRF - Programme Delivery,Corporate Travel Management (North) Ltd,98650562,-26.9,T&S UK - Public Transport
BEIS,UKRI - AHRC,06/12/2019,T&S UK - Public Transport,GCRF - Programme Delivery,Corporate Travel Management (North) Ltd,98650562,0.5,T&S UK - Public Transport
BEIS,UKRI - AHRC,06/12/2019,T&S UK - Public Transport,GCRF - Programme Delivery,Corporate Travel Management (North) Ltd,98650562,32.1,T&S UK - Public Transport
BEIS,UKRI - AHRC,06/12/2019,T&S UK - Public Transport,GCRF - Programme Delivery,Corporate Travel Management (North) Ltd,98650562,12.5,T&S UK - Public Transport
BEIS,UKRI - AHRC,06/12/2019,T&S UK - Public Transport,HR,Corporate Travel Management (North) Ltd,98650562,0.25,T&S UK - Public Transport
BEIS,UKRI - AHRC,06/12/2019,T&S UK - Public Transport,HR,Corporate Travel Management (North) Ltd,98650562,75.7,T&S UK - Public Transport
BEIS,UKRI - AHRC,06/12/2019,T&S UK - Public Transport,HR,Corporate Travel Management (North) Ltd,98650562,0.25,T&S UK - Public Transport
BEIS,UKRI - AHRC,06/12/2019,T&S UK - Public Transport,HR,Corporate Travel Management (North) Ltd,98650562,177,T&S UK - Public Transport
BEIS,UKRI - AHRC,06/12/2019,T&S UK - Public Transport,HR,Corporate Travel Management (North) Ltd,98650562,0.25,T&S UK - Public Transport
BEIS,UKRI - AHRC,06/12/2019,T&S UK - Public Transport,HR,Corporate Travel Management (North) Ltd,98650562,96.1,T&S UK - Public Transport
BEIS,UKRI - AHRC,06/12/2019,T&S UK - Public Transport,HR,Corporate Travel Management (North) Ltd,98650562,0.25,T&S UK - Public Transport
BEIS,UKRI - AHRC,06/12/2019,T&S UK - Public Transport,HR,Corporate Travel Management (North) Ltd,98650562,96.1,T&S UK - Public Transport
BEIS,UKRI - AHRC,06/12/2019,T&S UK - Public Transport,"History, Heritage, Languages and Literature",Corporate Travel Management (North) Ltd,98650562,-104,T&S UK - Public Transport
BEIS,UKRI - AHRC,06/12/2019,T&S UK - Public Transport,"History, Heritage, Languages and Literature",Corporate Travel Management (North) Ltd,98650562,0.25,T&S UK - Public Transport
BEIS,UKRI - AHRC,06/12/2019,T&S UK - Public Transport,"History, Heritage, Languages and Literature",Corporate Travel Management (North) Ltd,98650562,151.1,T&S UK - Public Transport
BEIS,UKRI - AHRC,06/12/2019,T&S UK - Public Transport,"History, Heritage, Languages and Literature",Corporate Travel Management (North) Ltd,98650562,0.25,T&S UK - Public Transport
BEIS,UKRI - AHRC,06/12/2019,T&S UK - Public Transport,"History, Heritage, Languages and Literature",Corporate Travel Management (North) Ltd,98650562,72.2,T&S UK - Public Transport
BEIS,UKRI - AHRC,06/12/2019,T&S UK - Public Transport,"History, Heritage, Languages and Literature",Corporate Travel Management (North) Ltd,98650562,0.25,T&S UK - Public Transport
BEIS,UKRI - AHRC,06/12/2019,T&S UK - Public Transport,"History, Heritage, Languages and Literature",Corporate Travel Management (North) Ltd,98650562,36.05,T&S UK - Public Transport
BEIS,UKRI - AHRC,06/12/2019,T&S UK - Public Transport,"History, Heritage, Languages and Literature",Corporate Travel Management (North) Ltd,98650562,0.25,T&S UK - Public Transport
BEIS,UKRI - AHRC,06/12/2019,T&S UK - Public Transport,"History, Heritage, Languages and Literature",Corporate Travel Management (North) Ltd,98650562,60.4,T&S UK - Public Transport
BEIS,UKRI - AHRC,06/12/2019,T&S UK - Public Transport,"History, Heritage, Languages and Literature",Corporate Travel Management (North) Ltd,98650562,0.5,T&S UK - Public Transport
BEIS,UKRI - AHRC,06/12/2019,T&S UK - Public Transport,"History, Heritage, Languages and Literature",Corporate Travel Management (North) Ltd,98650562,16.6,T&S UK - Public Transport
BEIS,UKRI - AHRC,06/12/2019,T&S UK - Public Transport,"History, Heritage, Languages and Literature",Corporate Travel Management (North) Ltd,98650562,43.3,T&S UK - Public Transport
BEIS,UKRI - AHRC,06/12/2019,T&S UK - Public Transport,"History, Heritage, Languages and Literature",Corporate Travel Management (North) Ltd,98650562,0.25,T&S UK - Public Transport
BEIS,UKRI - AHRC,06/12/2019,T&S UK - Public Transport,"History, Heritage, Languages and Literature",Corporate Travel Management (North) Ltd,98650562,188.1,T&S UK - Public Transport
BEIS,UKRI - AHRC,06/12/2019,T&S UK - Public Transport,"History, Heritage, Languages and Literature",Corporate Travel Management (North) Ltd,98650562,0.25,T&S UK - Public Transport
BEIS,UKRI - AHRC,06/12/2019,T&S UK - Public Transport,"History, Heritage, Languages and Literature",Corporate Travel Management (North) Ltd,98650562,130.3,T&S UK - Public Transport
BEIS,UKRI - AHRC,06/12/2019,T&S UK - Public Transport,"History, Heritage, Languages and Literature",Corporate Travel Management (North) Ltd,98650562,0.25,T&S UK - Public Transport
BEIS,UKRI - AHRC,06/12/2019,T&S UK - Public Transport,"History, Heritage, Languages and Literature",Corporate Travel Management (North) Ltd,98650562,144,T&S UK - Public Transport
BEIS,UKRI - AHRC,06/12/2019,T&S UK - Public Transport,"History, Heritage, Languages and Literature",Corporate Travel Management (North) Ltd,98650562,0.25,T&S UK - Public Transport
BEIS,UKRI - AHRC,06/12/2019,T&S UK - Public Transport,"History, Heritage, Languages and Literature",Corporate Travel Management (North) Ltd,98650562,243,T&S UK - Public Transport
BEIS,UKRI - AHRC,06/12/2019,T&S UK - Public Transport,"History, Heritage, Languages and Literature",Corporate Travel Management (North) Ltd,98650562,0.25,T&S UK - Public Transport
BEIS,UKRI - AHRC,06/12/2019,T&S UK - Public Transport,"History, Heritage, Languages and Literature",Corporate Travel Management (North) Ltd,98650562,171.9,T&S UK - Public Transport
BEIS,UKRI - AHRC,06/12/2019,T&S UK - Public Transport,"History, Heritage, Languages and Literature",Corporate Travel Management (North) Ltd,98650562,0.25,T&S UK - Public Transport
BEIS,UKRI - AHRC,06/12/2019,T&S UK - Public Transport,"History, Heritage, Languages and Literature",Corporate Travel Management (North) Ltd,98650562,97.3,T&S UK - Public Transport
BEIS,UKRI - AHRC,06/12/2019,T&S UK - Public Transport,"History, Heritage, Languages and Literature",Corporate Travel Management (North) Ltd,98650562,0.25,T&S UK - Public Transport
BEIS,UKRI - AHRC,06/12/2019,T&S UK - Public Transport,"History, Heritage, Languages and Literature",Corporate Travel Management (North) Ltd,98650562,113.35,T&S UK - Public Transport
BEIS,UKRI - AHRC,06/12/2019,T&S UK - Public Transport,"History, Heritage, Languages and Literature",Corporate Travel Management (North) Ltd,98650562,0.25,T&S UK - Public Transport
BEIS,UKRI - AHRC,06/12/2019,T&S UK - Public Transport,"History, Heritage, Languages and Literature",Corporate Travel Management (North) Ltd,98650562,157.5,T&S UK - Public Transport
BEIS,UKRI - AHRC,06/12/2019,T&S UK - Public Transport,"History, Heritage, Languages and Literature",Corporate Travel Management (North) Ltd,98650562,0.25,T&S UK - Public Transport
BEIS,UKRI - AHRC,06/12/2019,T&S UK - Public Transport,"History, Heritage, Languages and Literature",Corporate Travel Management (North) Ltd,98650562,87,T&S UK - Public Transport
BEIS,UKRI - AHRC,06/12/2019,T&S UK - Public Transport,"History, Heritage, Languages and Literature",Corporate Travel Management (North) Ltd,98650562,0.25,T&S UK - Public Transport
BEIS,UKRI - AHRC,06/12/2019,T&S UK - Public Transport,"History, Heritage, Languages and Literature",Corporate Travel Management (North) Ltd,98650562,144,T&S UK - Public Transport
BEIS,UKRI - AHRC,06/12/2019,T&S UK - Public Transport,"History, Heritage, Languages and Literature",Corporate Travel Management (North) Ltd,98650562,0.25,T&S UK - Public Transport
BEIS,UKRI - AHRC,06/12/2019,T&S UK - Public Transport,"History, Heritage, Languages and Literature",Corporate Travel Management (North) Ltd,98650562,144,T&S UK - Public Transport
BEIS,UKRI - AHRC,06/12/2019,T&S UK - Public Transport,"History, Heritage, Languages and Literature",Corporate Travel Management (North) Ltd,98650562,0.5,T&S UK - Public Transport
BEIS,UKRI - AHRC,06/12/2019,T&S UK - Public Transport,"History, Heritage, Languages and Literature",Corporate Travel Management (North) Ltd,98650562,72.6,T&S UK - Public Transport
BEIS,UKRI - AHRC,06/12/2019,T&S UK - Public Transport,"History, Heritage, Languages and Literature",Corporate Travel Management (North) Ltd,98650562,51,T&S UK - Public Transport
BEIS,UKRI - AHRC,06/12/2019,T&S UK - Public Transport,Industrial Strategy Challenge Fund (ISCF) - Creative Clusters,Corporate Travel Management (North) Ltd,98650562,0.25,T&S UK - Public Transport
BEIS,UKRI - AHRC,06/12/2019,T&S UK - Public Transport,Industrial Strategy Challenge Fund (ISCF) - Creative Clusters,Corporate Travel Management (North) Ltd,98650562,144.7,T&S UK - Public Transport
BEIS,UKRI - AHRC,06/12/2019,T&S UK - Public Transport,Industrial Strategy Challenge Fund (ISCF) - Creative Clusters,Corporate Travel Management (North) Ltd,98650562,0.25,T&S UK - Public Transport
BEIS,UKRI - AHRC,06/12/2019,T&S UK - Public Transport,Industrial Strategy Challenge Fund (ISCF) - Creative Clusters,Corporate Travel Management (North) Ltd,98650562,103.9,T&S UK - Public Transport
BEIS,UKRI - AHRC,06/12/2019,T&S UK - Public Transport,Industrial Strategy Challenge Fund (ISCF) - Creative Clusters,Corporate Travel Management (North) Ltd,98650562,0.25,T&S UK - Public Transport
BEIS,UKRI - AHRC,06/12/2019,T&S UK - Public Transport,Industrial Strategy Challenge Fund (ISCF) - Creative Clusters,Corporate Travel Management (North) Ltd,98650562,114.4,T&S UK - Public Transport
BEIS,UKRI - AHRC,06/12/2019,T&S UK - Public Transport,Industrial Strategy Challenge Fund (ISCF) - Creative Clusters,Corporate Travel Management (North) Ltd,98650562,0.25,T&S UK - Public Transport
BEIS,UKRI - AHRC,06/12/2019,T&S UK - Public Transport,Industrial Strategy Challenge Fund (ISCF) - Creative Clusters,Corporate Travel Management (North) Ltd,98650562,122.9,T&S UK - Public Transport
BEIS,UKRI - AHRC,06/12/2019,T&S UK - Public Transport,Industrial Strategy Challenge Fund (ISCF) - Creative Clusters,Corporate Travel Management (North) Ltd,98650562,-119.75,T&S UK - Public Transport
BEIS,UKRI - AHRC,06/12/2019,T&S UK - Public Transport,Industrial Strategy Challenge Fund (ISCF) - Creative Clusters,Corporate Travel Management (North) Ltd,98650562,0.25,T&S UK - Public Transport
BEIS,UKRI - AHRC,06/12/2019,T&S UK - Public Transport,Industrial Strategy Challenge Fund (ISCF) - Creative Clusters,Corporate Travel Management (North) Ltd,98650562,36,T&S UK - Public Transport
BEIS,UKRI - AHRC,06/12/2019,T&S UK - Public Transport,Industrial Strategy Challenge Fund (ISCF) - Creative Clusters,Corporate Travel Management (North) Ltd,98650562,0.25,T&S UK - Public Transport
BEIS,UKRI - AHRC,06/12/2019,T&S UK - Public Transport,Industrial Strategy Challenge Fund (ISCF) - Creative Clusters,Corporate Travel Management (North) Ltd,98650562,34.2,T&S UK - Public Transport
BEIS,UKRI - AHRC,06/12/2019,T&S UK - Public Transport,Industrial Strategy Challenge Fund (ISCF) - Creative Clusters,Corporate Travel Management (North) Ltd,98650562,0.25,T&S UK - Public Transport
BEIS,UKRI - AHRC,06/12/2019,T&S UK - Public Transport,Industrial Strategy Challenge Fund (ISCF) - Creative Clusters,Corporate Travel Management (North) Ltd,98650562,30.6,T&S UK - Public Transport
BEIS,UKRI - AHRC,06/12/2019,T&S UK - Public Transport,Industrial Strategy Challenge Fund (ISCF) - Creative Clusters,Corporate Travel Management (North) Ltd,98650562,0.25,T&S UK - Public Transport
BEIS,UKRI - AHRC,06/12/2019,T&S UK - Public Transport,Industrial Strategy Challenge Fund (ISCF) - Creative Clusters,Corporate Travel Management (North) Ltd,98650562,32,T&S UK - Public Transport
BEIS,UKRI - AHRC,06/12/2019,T&S UK - Public Transport,Industrial Strategy Challenge Fund (ISCF) - Creative Clusters,Corporate Travel Management (North) Ltd,98650562,5,T&S UK - Public Transport
BEIS,UKRI - AHRC,06/12/2019,T&S UK - Public Transport,Industrial Strategy Challenge Fund (ISCF) - Creative Clusters,Corporate Travel Management (North) Ltd,98650562,-15.9,T&S UK - Public Transport
BEIS,UKRI - AHRC,06/12/2019,T&S UK - Public Transport,Industrial Strategy Challenge Fund (ISCF) - Creative Clusters,Corporate Travel Management (North) Ltd,98650562,0.25,T&S UK - Public Transport
BEIS,UKRI - AHRC,06/12/2019,T&S UK - Public Transport,Industrial Strategy Challenge Fund (ISCF) - Creative Clusters,Corporate Travel Management (North) Ltd,98650562,137.5,T&S UK - Public Transport
BEIS,UKRI - AHRC,06/12/2019,T&S UK - Public Transport,Industrial Strategy Challenge Fund (ISCF) - Creative Clusters,Corporate Travel Management (North) Ltd,98650562,0.25,T&S UK - Public Transport
BEIS,UKRI - AHRC,06/12/2019,T&S UK - Public Transport,Industrial Strategy Challenge Fund (ISCF) - Creative Clusters,Corporate Travel Management (North) Ltd,98650562,16.4,T&S UK - Public Transport
BEIS,UKRI - AHRC,06/12/2019,T&S UK - Public Transport,International,Corporate Travel Management (North) Ltd,98650562,0.25,T&S UK - Public Transport
BEIS,UKRI - AHRC,06/12/2019,T&S UK - Public Transport,International,Corporate Travel Management (North) Ltd,98650562,13.2,T&S UK - Public Transport
BEIS,UKRI - AHRC,06/12/2019,T&S UK - Public Transport,International,Corporate Travel Management (North) Ltd,98650562,0.25,T&S UK - Public Transport
BEIS,UKRI - AHRC,06/12/2019,T&S UK - Public Transport,International,Corporate Travel Management (North) Ltd,98650562,71.2,T&S UK - Public Transport
BEIS,UKRI - AHRC,06/12/2019,T&S UK - Public Transport,International,Corporate Travel Management (North) Ltd,98650562,0.25,T&S UK - Public Transport
BEIS,UKRI - AHRC,06/12/2019,T&S UK - Public Transport,International,Corporate Travel Management (North) Ltd,98650562,13.9,T&S UK - Public Transport
BEIS,UKRI - AHRC,06/12/2019,T&S UK - Public Transport,International,Corporate Travel Management (North) Ltd,98650562,0.25,T&S UK - Public Transport
BEIS,UKRI - AHRC,06/12/2019,T&S UK - Public Transport,International,Corporate Travel Management (North) Ltd,98650562,23.6,T&S UK - Public Transport
BEIS,UKRI - AHRC,06/12/2019,T&S UK - Public Transport,International,Corporate Travel Management (North) Ltd,98650562,0.25,T&S UK - Public Transport
BEIS,UKRI - AHRC,06/12/2019,T&S UK - Public Transport,International,Corporate Travel Management (North) Ltd,98650562,45.55,T&S UK - Public Transport
BEIS,UKRI - AHRC,06/12/2019,T&S UK - Public Transport,International,Corporate Travel Management (North) Ltd,98650562,0.25,T&S UK - Public Transport
BEIS,UKRI - AHRC,06/12/2019,T&S UK - Public Transport,International,Corporate Travel Management (North) Ltd,98650562,187.2,T&S UK - Public Transport
BEIS,UKRI - AHRC,06/12/2019,T&S UK - Public Transport,International,Corporate Travel Management (North) Ltd,98650562,0.25,T&S UK - Public Transport
BEIS,UKRI - AHRC,06/12/2019,T&S UK - Public Transport,International,Corporate Travel Management (North) Ltd,98650562,72.8,T&S UK - Public Transport
BEIS,UKRI - AHRC,06/12/2019,T&S UK - Public Transport,International,Corporate Travel Management (North) Ltd,98650562,0.25,T&S UK - Public Transport
BEIS,UKRI - AHRC,06/12/2019,T&S UK - Public Transport,International,Corporate Travel Management (North) Ltd,98650562,128,T&S UK - Public Transport
BEIS,UKRI - AHRC,06/12/2019,T&S UK - Public Transport,International Development and Area Studies,Corporate Travel Management (North) Ltd,98650562,0.5,T&S UK - Public Transport
BEIS,UKRI - AHRC,06/12/2019,T&S UK - Public Transport,International Development and Area Studies,Corporate Travel Management (North) Ltd,98650562,4.4,T&S UK - Public Transport
BEIS,UKRI - AHRC,06/12/2019,T&S UK - Public Transport,International Development and Area Studies,Corporate Travel Management (North) Ltd,98650562,13.8,T&S UK - Public Transport
BEIS,UKRI - AHRC,06/12/2019,T&S UK - Public Transport,International Development and Area Studies,Corporate Travel Management (North) Ltd,98650562,0.25,T&S UK - Public Transport
BEIS,UKRI - AHRC,06/12/2019,T&S UK - Public Transport,International Development and Area Studies,Corporate Travel Management (North) Ltd,98650562,69.9,T&S UK - Public Transport
BEIS,UKRI - AHRC,06/12/2019,T&S UK - Public Transport,International Partnership and Engagement,Corporate Travel Management (North) Ltd,98650562,0.25,T&S UK - Public Transport
BEIS,UKRI - AHRC,06/12/2019,T&S UK - Public Transport,International Partnership and Engagement,Corporate Travel Management (North) Ltd,98650562,114.4,T&S UK - Public Transport
BEIS,UKRI - AHRC,06/12/2019,T&S UK - Public Transport,International Partnership and Engagement,Corporate Travel Management (North) Ltd,98650562,-67,T&S UK - Public Transport
BEIS,UKRI - AHRC,06/12/2019,T&S UK - Public Transport,International Partnership and Engagement,Corporate Travel Management (North) Ltd,98650562,0.5,T&S UK - Public Transport
BEIS,UKRI - AHRC,06/12/2019,T&S UK - Public Transport,International Partnership and Engagement,Corporate Travel Management (North) Ltd,98650562,72.6,T&S UK - Public Transport
BEIS,UKRI - AHRC,06/12/2019,T&S UK - Public Transport,International Partnership and Engagement,Corporate Travel Management (North) Ltd,98650562,51,T&S UK - Public Transport
BEIS,UKRI - AHRC,06/12/2019,T&S UK - Public Transport,International Partnership and Engagement,Corporate Travel Management (North) Ltd,98650562,0.25,T&S UK - Public Transport
BEIS,UKRI - AHRC,06/12/2019,T&S UK - Public Transport,International Partnership and Engagement,Corporate Travel Management (North) Ltd,98650562,36,T&S UK - Public Transport
BEIS,UKRI - AHRC,06/12/2019,T&S UK - Public Transport,International Partnership and Engagement,Corporate Travel Management (North) Ltd,98650562,0.25,T&S UK - Public Transport
BEIS,UKRI - AHRC,06/12/2019,T&S UK - Public Transport,International Partnership and Engagement,Corporate Travel Management (North) Ltd,98650562,91.8,T&S UK - Public Transport
BEIS,UKRI - AHRC,06/12/2019,T&S UK - Public Transport,International Partnership and Engagement,Corporate Travel Management (North) Ltd,98650562,0.25,T&S UK - Public Transport
BEIS,UKRI - AHRC,06/12/2019,T&S UK - Public Transport,International Partnership and Engagement,Corporate Travel Management (North) Ltd,98650562,79.6,T&S UK - Public Transport
BEIS,UKRI - AHRC,06/12/2019,T&S UK - Public Transport,International Partnership and Engagement,Corporate Travel Management (North) Ltd,98650562,0.25,T&S UK - Public Transport
BEIS,UKRI - AHRC,06/12/2019,T&S UK - Public Transport,International Partnership and Engagement,Corporate Travel Management (North) Ltd,98650562,42.4,T&S UK - Public Transport
BEIS,UKRI - AHRC,06/12/2019,T&S UK - Public Transport,International Partnership and Engagement,Corporate Travel Management (North) Ltd,98650562,0.25,T&S UK - Public Transport
BEIS,UKRI - AHRC,06/12/2019,T&S UK - Public Transport,International Partnership and Engagement,Corporate Travel Management (North) Ltd,98650562,11.9,T&S UK - Public Transport
BEIS,UKRI - AHRC,06/12/2019,T&S UK - Public Transport,JPI Cultural Heritage Project,Corporate Travel Management (North) Ltd,98650562,5,T&S UK - Public Transport
BEIS,UKRI - AHRC,06/12/2019,T&S UK - Public Transport,JPI Cultural Heritage Project,Corporate Travel Management (North) Ltd,98650562,-34.4,T&S UK - Public Transport
BEIS,UKRI - AHRC,06/12/2019,T&S UK - Public Transport,Newton Programme Delivery,Corporate Travel Management (North) Ltd,98650562,0.25,T&S UK - Public Transport
BEIS,UKRI - AHRC,06/12/2019,T&S UK - Public Transport,Newton Programme Delivery,Corporate Travel Management (North) Ltd,98650562,114.4,T&S UK - Public Transport
BEIS,UKRI - AHRC,06/12/2019,T&S UK - Public Transport,Newton Programme Delivery,Corporate Travel Management (North) Ltd,98650562,0.25,T&S UK - Public Transport
BEIS,UKRI - AHRC,06/12/2019,T&S UK - Public Transport,Newton Programme Delivery,Corporate Travel Management (North) Ltd,98650562,69.9,T&S UK - Public Transport
BEIS,UKRI - AHRC,06/12/2019,T&S UK - Public Transport,Newton Programme Delivery,Corporate Travel Management (North) Ltd,98650562,0.25,T&S UK - Public Transport
BEIS,UKRI - AHRC,06/12/2019,T&S UK - Public Transport,Newton Programme Delivery,Corporate Travel Management (North) Ltd,98650562,69.9,T&S UK - Public Transport
BEIS,UKRI - AHRC,06/12/2019,T&S UK - Public Transport,Newton Programme Delivery,Corporate Travel Management (North) Ltd,98650562,0.25,T&S UK - Public Transport
BEIS,UKRI - AHRC,06/12/2019,T&S UK - Public Transport,Newton Programme Delivery,Corporate Travel Management (North) Ltd,98650562,144,T&S UK - Public Transport
BEIS,UKRI - AHRC,06/12/2019,T&S UK - Public Transport,Newton Programme Delivery,Corporate Travel Management (North) Ltd,98650562,0.25,T&S UK - Public Transport
BEIS,UKRI - AHRC,06/12/2019,T&S UK - Public Transport,Newton Programme Delivery,Corporate Travel Management (North) Ltd,98650562,73,T&S UK - Public Transport
BEIS,UKRI - AHRC,06/12/2019,T&S UK - Public Transport,Newton Programme Delivery,Corporate Travel Management (North) Ltd,98650562,0.25,T&S UK - Public Transport
BEIS,UKRI - AHRC,06/12/2019,T&S UK - Public Transport,Newton Programme Delivery,Corporate Travel Management (North) Ltd,98650562,69.9,T&S UK - Public Transport
BEIS,UKRI - AHRC,06/12/2019,T&S UK - Public Transport,Operations,Corporate Travel Management (North) Ltd,98650562,15,T&S UK - Public Transport
BEIS,UKRI - AHRC,06/12/2019,T&S UK - Public Transport,Operations,Corporate Travel Management (North) Ltd,98650562,-95.9,T&S UK - Public Transport
BEIS,UKRI - AHRC,06/12/2019,T&S UK - Public Transport,Operations,Corporate Travel Management (North) Ltd,98650562,0.12,T&S UK - Public Transport
BEIS,UKRI - AHRC,06/12/2019,T&S UK - Public Transport,Operations,Corporate Travel Management (North) Ltd,98650562,36,T&S UK - Public Transport
BEIS,UKRI - AHRC,06/12/2019,T&S UK - Public Transport,Operations,Corporate Travel Management (North) Ltd,98650562,0.25,T&S UK - Public Transport
BEIS,UKRI - AHRC,06/12/2019,T&S UK - Public Transport,Operations,Corporate Travel Management (North) Ltd,98650562,36,T&S UK - Public Transport
BEIS,UKRI - AHRC,06/12/2019,T&S UK - Public Transport,Operations,Corporate Travel Management (North) Ltd,98650562,0.25,T&S UK - Public Transport
BEIS,UKRI - AHRC,06/12/2019,T&S UK - Public Transport,Operations,Corporate Travel Management (North) Ltd,98650562,36,T&S UK - Public Transport
BEIS,UKRI - AHRC,06/12/2019,T&S UK - Public Transport,Operations,Corporate Travel Management (North) Ltd,98650562,0.13,T&S UK - Public Transport
BEIS,UKRI - AHRC,06/12/2019,T&S UK - Public Transport,Operations,Corporate Travel Management (North) Ltd,98650562,23.75,T&S UK - Public Transport
BEIS,UKRI - AHRC,06/12/2019,T&S UK - Public Transport,Operations,Corporate Travel Management (North) Ltd,98650562,-104.4,T&S UK - Public Transport
BEIS,UKRI - AHRC,06/12/2019,T&S UK - Public Transport,Operations,Corporate Travel Management (North) Ltd,98650562,-104.4,T&S UK - Public Transport
BEIS,UKRI - AHRC,06/12/2019,T&S UK - Public Transport,Operations,Corporate Travel Management (North) Ltd,98650562,0.25,T&S UK - Public Transport
BEIS,UKRI - AHRC,06/12/2019,T&S UK - Public Transport,Operations,Corporate Travel Management (North) Ltd,98650562,137.95,T&S UK - Public Transport
BEIS,UKRI - AHRC,06/12/2019,T&S UK - Public Transport,PSU Project Office,Corporate Travel Management (North) Ltd,98650562,0.25,T&S UK - Public Transport
BEIS,UKRI - AHRC,06/12/2019,T&S UK - Public Transport,PSU Project Office,Corporate Travel Management (North) Ltd,98650562,144.7,T&S UK - Public Transport
BEIS,UKRI - AHRC,06/12/2019,T&S UK - Public Transport,PSU Project Office,Corporate Travel Management (North) Ltd,98650562,12.67,T&S UK - Public Transport
BEIS,UKRI - AHRC,06/12/2019,T&S UK - Public Transport,Public and Stakeholder Engagement,Corporate Travel Management (North) Ltd,98650562,0.25,T&S UK - Public Transport
BEIS,UKRI - AHRC,06/12/2019,T&S UK - Public Transport,Public and Stakeholder Engagement,Corporate Travel Management (North) Ltd,98650562,11.1,T&S UK - Public Transport
BEIS,UKRI - AHRC,06/12/2019,T&S UK - Public Transport,Public and Stakeholder Engagement,Corporate Travel Management (North) Ltd,98650562,0.25,T&S UK - Public Transport
BEIS,UKRI - AHRC,06/12/2019,T&S UK - Public Transport,Public and Stakeholder Engagement,Corporate Travel Management (North) Ltd,98650562,10.9,T&S UK - Public Transport
BEIS,UKRI - AHRC,06/12/2019,T&S UK - Public Transport,Public and Stakeholder Engagement,Corporate Travel Management (North) Ltd,98650562,0.25,T&S UK - Public Transport
BEIS,UKRI - AHRC,06/12/2019,T&S UK - Public Transport,Public and Stakeholder Engagement,Corporate Travel Management (North) Ltd,98650562,12,T&S UK - Public Transport
BEIS,UKRI - AHRC,06/12/2019,T&S UK - Public Transport,Public and Stakeholder Engagement,Corporate Travel Management (North) Ltd,98650562,0.5,T&S UK - Public Transport
BEIS,UKRI - AHRC,06/12/2019,T&S UK - Public Transport,Public and Stakeholder Engagement,Corporate Travel Management (North) Ltd,98650562,25.9,T&S UK - Public Transport
BEIS,UKRI - AHRC,06/12/2019,T&S UK - Public Transport,Public and Stakeholder Engagement,Corporate Travel Management (North) Ltd,98650562,0.25,T&S UK - Public Transport
BEIS,UKRI - AHRC,06/12/2019,T&S UK - Public Transport,Public and Stakeholder Engagement,Corporate Travel Management (North) Ltd,98650562,164.7,T&S UK - Public Transport
BEIS,UKRI - AHRC,06/12/2019,T&S UK - Public Transport,Public and Stakeholder Engagement,Corporate Travel Management (North) Ltd,98650562,0.25,T&S UK - Public Transport
BEIS,UKRI - AHRC,06/12/2019,T&S UK - Public Transport,Public and Stakeholder Engagement,Corporate Travel Management (North) Ltd,98650562,12,T&S UK - Public Transport
BEIS,UKRI - AHRC,06/12/2019,T&S UK - Public Transport,Public and Stakeholder Engagement,Corporate Travel Management (North) Ltd,98650562,0.25,T&S UK - Public Transport
BEIS,UKRI - AHRC,06/12/2019,T&S UK - Public Transport,Public and Stakeholder Engagement,Corporate Travel Management (North) Ltd,98650562,24.8,T&S UK - Public Transport
BEIS,UKRI - AHRC,06/12/2019,T&S UK - Public Transport,Public and Stakeholder Engagement,Corporate Travel Management (North) Ltd,98650562,0.25,T&S UK - Public Transport
BEIS,UKRI - AHRC,06/12/2019,T&S UK - Public Transport,Public and Stakeholder Engagement,Corporate Travel Management (North) Ltd,98650562,26.5,T&S UK - Public Transport
BEIS,UKRI - AHRC,06/12/2019,T&S UK - Public Transport,Public and Stakeholder Engagement,Corporate Travel Management (North) Ltd,98650562,0.25,T&S UK - Public Transport
BEIS,UKRI - AHRC,06/12/2019,T&S UK - Public Transport,Public and Stakeholder Engagement,Corporate Travel Management (North) Ltd,98650562,35.7,T&S UK - Public Transport
BEIS,UKRI - AHRC,06/12/2019,T&S UK - Public Transport,Public and Stakeholder Engagement,Corporate Travel Management (North) Ltd,98650562,0.25,T&S UK - Public Transport
BEIS,UKRI - AHRC,06/12/2019,T&S UK - Public Transport,Public and Stakeholder Engagement,Corporate Travel Management (North) Ltd,98650562,40.55,T&S UK - Public Transport
BEIS,UKRI - AHRC,06/12/2019,T&S UK - Public Transport,Public and Stakeholder Engagement,Corporate Travel Management (North) Ltd,98650562,0.25,T&S UK - Public Transport
BEIS,UKRI - AHRC,06/12/2019,T&S UK - Public Transport,Public and Stakeholder Engagement,Corporate Travel Management (North) Ltd,98650562,78.5,T&S UK - Public Transport
BEIS,UKRI - AHRC,06/12/2019,T&S UK - Public Transport,Public and Stakeholder Engagement,Corporate Travel Management (North) Ltd,98650562,0.5,T&S UK - Public Transport
BEIS,UKRI - AHRC,06/12/2019,T&S UK - Public Transport,Public and Stakeholder Engagement,Corporate Travel Management (North) Ltd,98650562,32.1,T&S UK - Public Transport
BEIS,UKRI - AHRC,06/12/2019,T&S UK - Public Transport,Public and Stakeholder Engagement,Corporate Travel Management (North) Ltd,98650562,12.5,T&S UK - Public Transport
BEIS,UKRI - AHRC,06/12/2019,T&S UK - Public Transport,Public and Stakeholder Engagement,Corporate Travel Management (North) Ltd,98650562,0.25,T&S UK - Public Transport
BEIS,UKRI - AHRC,06/12/2019,T&S UK - Public Transport,Public and Stakeholder Engagement,Corporate Travel Management (North) Ltd,98650562,54.1,T&S UK - Public Transport
BEIS,UKRI - AHRC,06/12/2019,T&S UK - Public Transport,Public and Stakeholder Engagement,Corporate Travel Management (North) Ltd,98650562,0.25,T&S UK - Public Transport
BEIS,UKRI - AHRC,06/12/2019,T&S UK - Public Transport,Public and Stakeholder Engagement,Corporate Travel Management (North) Ltd,98650562,43.65,T&S UK - Public Transport
BEIS,UKRI - AHRC,06/12/2019,T&S UK - Public Transport,Public and Stakeholder Engagement,Corporate Travel Management (North) Ltd,98650562,0.25,T&S UK - Public Transport
BEIS,UKRI - AHRC,06/12/2019,T&S UK - Public Transport,Public and Stakeholder Engagement,Corporate Travel Management (North) Ltd,98650562,35.7,T&S UK - Public Transport
BEIS,UKRI - AHRC,06/12/2019,T&S UK - Public Transport,Public and Stakeholder Engagement,Corporate Travel Management (North) Ltd,98650562,0.25,T&S UK - Public Transport
BEIS,UKRI - AHRC,06/12/2019,T&S UK - Public Transport,Public and Stakeholder Engagement,Corporate Travel Management (North) Ltd,98650562,61.4,T&S UK - Public Transport
BEIS,UKRI - AHRC,06/12/2019,T&S UK - Public Transport,Public and Stakeholder Engagement,Corporate Travel Management (North) Ltd,98650562,0.25,T&S UK - Public Transport
BEIS,UKRI - AHRC,06/12/2019,T&S UK - Public Transport,Public and Stakeholder Engagement,Corporate Travel Management (North) Ltd,98650562,87,T&S UK - Public Transport
BEIS,UKRI - AHRC,06/12/2019,T&S UK - Public Transport,Public and Stakeholder Engagement,Corporate Travel Management (North) Ltd,98650562,10,T&S UK - Public Transport
BEIS,UKRI - AHRC,06/12/2019,T&S UK - Public Transport,Public and Stakeholder Engagement,Corporate Travel Management (North) Ltd,98650562,-211.6,T&S UK - Public Transport
BEIS,UKRI - AHRC,06/12/2019,T&S UK - Public Transport,Public and Stakeholder Engagement,Corporate Travel Management (North) Ltd,98650562,0.25,T&S UK - Public Transport
BEIS,UKRI - AHRC,06/12/2019,T&S UK - Public Transport,Public and Stakeholder Engagement,Corporate Travel Management (North) Ltd,98650562,95.5,T&S UK - Public Transport
BEIS,UKRI - AHRC,06/12/2019,T&S UK - Public Transport,Public and Stakeholder Engagement,Corporate Travel Management (North) Ltd,98650562,0.25,T&S UK - Public Transport
BEIS,UKRI - AHRC,06/12/2019,T&S UK - Public Transport,Public and Stakeholder Engagement,Corporate Travel Management (North) Ltd,98650562,209.7,T&S UK - Public Transport
BEIS,UKRI - AHRC,06/12/2019,T&S UK - Public Transport,SMT,Corporate Travel Management (North) Ltd,98650562,10,T&S UK - Public Transport
BEIS,UKRI - AHRC,06/12/2019,T&S UK - Public Transport,SMT,Corporate Travel Management (North) Ltd,98650562,-66.7,T&S UK - Public Transport
BEIS,UKRI - AHRC,06/12/2019,T&S UK - Public Transport,SMT,Corporate Travel Management (North) Ltd,98650562,5,T&S UK - Public Transport
BEIS,UKRI - AHRC,06/12/2019,T&S UK - Public Transport,SMT,Corporate Travel Management (North) Ltd,98650562,-15.5,T&S UK - Public Transport
BEIS,UKRI - AHRC,06/12/2019,T&S UK - Public Transport,SMT,Corporate Travel Management (North) Ltd,98650562,0.25,T&S UK - Public Transport
BEIS,UKRI - AHRC,06/12/2019,T&S UK - Public Transport,SMT,Corporate Travel Management (North) Ltd,98650562,89,T&S UK - Public Transport
BEIS,UKRI - AHRC,06/12/2019,T&S UK - Public Transport,SMT,Corporate Travel Management (North) Ltd,98650562,0.25,T&S UK - Public Transport
BEIS,UKRI - AHRC,06/12/2019,T&S UK - Public Transport,SMT,Corporate Travel Management (North) Ltd,98650562,133,T&S UK - Public Transport
BEIS,UKRI - AHRC,06/12/2019,T&S UK - Public Transport,SMT,Corporate Travel Management (North) Ltd,98650562,0.25,T&S UK - Public Transport
BEIS,UKRI - AHRC,06/12/2019,T&S UK - Public Transport,SMT,Corporate Travel Management (North) Ltd,98650562,89,T&S UK - Public Transport
BEIS,UKRI - AHRC,06/12/2019,T&S UK - Public Transport,SMT,Corporate Travel Management (North) Ltd,98650562,0.25,T&S UK - Public Transport
BEIS,UKRI - AHRC,06/12/2019,T&S UK - Public Transport,SMT,Corporate Travel Management (North) Ltd,98650562,47.2,T&S UK - Public Transport
BEIS,UKRI - AHRC,06/12/2019,T&S UK - Public Transport,SMT,Corporate Travel Management (North) Ltd,98650562,0.25,T&S UK - Public Transport
BEIS,UKRI - AHRC,06/12/2019,T&S UK - Public Transport,SMT,Corporate Travel Management (North) Ltd,98650562,97.8,T&S UK - Public Transport
BEIS,UKRI - AHRC,06/12/2019,T&S UK - Public Transport,SMT,Corporate Travel Management (North) Ltd,98650562,0.25,T&S UK - Public Transport
BEIS,UKRI - AHRC,06/12/2019,T&S UK - Public Transport,SMT,Corporate Travel Management (North) Ltd,98650562,33.7,T&S UK - Public Transport
BEIS,UKRI - AHRC,06/12/2019,T&S UK - Public Transport,SMT,Corporate Travel Management (North) Ltd,98650562,0.25,T&S UK - Public Transport
BEIS,UKRI - AHRC,06/12/2019,T&S UK - Public Transport,SMT,Corporate Travel Management (North) Ltd,98650562,134,T&S UK - Public Transport
BEIS,UKRI - AHRC,06/12/2019,T&S UK - Public Transport,SMT,Corporate Travel Management (North) Ltd,98650562,0.25,T&S UK - Public Transport
BEIS,UKRI - AHRC,06/12/2019,T&S UK - Public Transport,SMT,Corporate Travel Management (North) Ltd,98650562,236.6,T&S UK - Public Transport
BEIS,UKRI - AHRC,06/12/2019,T&S UK - Public Transport,SMT,Corporate Travel Management (North) Ltd,98650562,0.5,T&S UK - Public Transport
BEIS,UKRI - AHRC,06/12/2019,T&S UK - Public Transport,SMT,Corporate Travel Management (North) Ltd,98650562,72,T&S UK - Public Transport
BEIS,UKRI - AHRC,06/12/2019,T&S UK - Public Transport,SMT,Corporate Travel Management (North) Ltd,98650562,0.25,T&S UK - Public Transport
BEIS,UKRI - AHRC,06/12/2019,T&S UK - Public Transport,SMT,Corporate Travel Management (North) Ltd,98650562,28.8,T&S UK - Public Transport
BEIS,UKRI - AHRC,06/12/2019,T&S UK - Public Transport,SMT,Corporate Travel Management (North) Ltd,98650562,0.25,T&S UK - Public Transport
BEIS,UKRI - AHRC,06/12/2019,T&S UK - Public Transport,SMT,Corporate Travel Management (North) Ltd,98650562,156.6,T&S UK - Public Transport
BEIS,UKRI - AHRC,06/12/2019,T&S UK - Public Transport,SMT,Corporate Travel Management (North) Ltd,98650562,0.25,T&S UK - Public Transport
BEIS,UKRI - AHRC,06/12/2019,T&S UK - Public Transport,SMT,Corporate Travel Management (North) Ltd,98650562,27.3,T&S UK - Public Transport
BEIS,UKRI - AHRC,06/12/2019,T&S UK - Public Transport,SMT,Corporate Travel Management (North) Ltd,98650562,10,T&S UK - Public Transport
BEIS,UKRI - AHRC,06/12/2019,T&S UK - Public Transport,SMT,Corporate Travel Management (North) Ltd,98650562,-168,T&S UK - Public Transport
BEIS,UKRI - AHRC,06/12/2019,T&S UK - Public Transport,SMT,Corporate Travel Management (North) Ltd,98650562,0.25,T&S UK - Public Transport
BEIS,UKRI - AHRC,06/12/2019,T&S UK - Public Transport,SMT,Corporate Travel Management (North) Ltd,98650562,108.5,T&S UK - Public Transport
BEIS,UKRI - AHRC,06/12/2019,T&S UK - Public Transport,SMT,Corporate Travel Management (North) Ltd,98650562,144.41,T&S UK - Public Transport
BEIS,UKRI - AHRC,06/12/2019,T&S UK - Public Transport,SMT,Corporate Travel Management (North) Ltd,98650562,0.25,T&S UK - Public Transport
BEIS,UKRI - AHRC,06/12/2019,T&S UK - Public Transport,SMT,Corporate Travel Management (North) Ltd,98650562,20.5,T&S UK - Public Transport
BEIS,UKRI - AHRC,06/12/2019,T&S UK - Public Transport,SMT,Corporate Travel Management (North) Ltd,98650562,0.25,T&S UK - Public Transport
BEIS,UKRI - AHRC,06/12/2019,T&S UK - Public Transport,SMT,Corporate Travel Management (North) Ltd,98650562,128.3,T&S UK - Public Transport
BEIS,UKRI - AHRC,06/12/2019,T&S UK - Public Transport,SMT,Corporate Travel Management (North) Ltd,98650562,0.5,T&S UK - Public Transport
BEIS,UKRI - AHRC,06/12/2019,T&S UK - Public Transport,SMT,Corporate Travel Management (North) Ltd,98650562,172.5,T&S UK - Public Transport
BEIS,UKRI - AHRC,06/12/2019,T&S UK - Public Transport,SMT,Corporate Travel Management (North) Ltd,98650562,87.77,T&S UK - Public Transport
BEIS,UKRI - AHRC,06/12/2019,T&S UK - Public Transport,SMT,Corporate Travel Management (North) Ltd,98650562,0.25,T&S UK - Public Transport
BEIS,UKRI - AHRC,06/12/2019,T&S UK - Public Transport,SMT,Corporate Travel Management (North) Ltd,98650562,109,T&S UK - Public Transport
BEIS,UKRI - AHRC,06/12/2019,T&S UK - Public Transport,SMT,Corporate Travel Management (North) Ltd,98650562,0.25,T&S UK - Public Transport
BEIS,UKRI - AHRC,06/12/2019,T&S UK - Public Transport,SMT,Corporate Travel Management (North) Ltd,98650562,57.6,T&S UK - Public Transport
BEIS,UKRI - AHRC,06/12/2019,T&S UK - Public Transport,SMT,Corporate Travel Management (North) Ltd,98650562,0.25,T&S UK - Public Transport
BEIS,UKRI - AHRC,06/12/2019,T&S UK - Public Transport,SMT,Corporate Travel Management (North) Ltd,98650562,49.4,T&S UK - Public Transport
BEIS,UKRI - AHRC,06/12/2019,T&S UK - Public Transport,SMT,Corporate Travel Management (North) Ltd,98650562,0.25,T&S UK - Public Transport
BEIS,UKRI - AHRC,06/12/2019,T&S UK - Public Transport,SMT,Corporate Travel Management (North) Ltd,98650562,71.1,T&S UK - Public Transport
BEIS,UKRI - AHRC,06/12/2019,T&S UK - Public Transport,SMT,Corporate Travel Management (North) Ltd,98650562,0.25,T&S UK - Public Transport
BEIS,UKRI - AHRC,06/12/2019,T&S UK - Public Transport,SMT,Corporate Travel Management (North) Ltd,98650562,89,T&S UK - Public Transport
BEIS,UKRI - AHRC,06/12/2019,T&S UK - Public Transport,SMT,Corporate Travel Management (North) Ltd,98650562,0.25,T&S UK - Public Transport
BEIS,UKRI - AHRC,06/12/2019,T&S UK - Public Transport,SMT,Corporate Travel Management (North) Ltd,98650562,27.4,T&S UK - Public Transport
BEIS,UKRI - AHRC,06/12/2019,T&S UK - Public Transport,SMT,Corporate Travel Management (North) Ltd,98650562,0.25,T&S UK - Public Transport
BEIS,UKRI - AHRC,06/12/2019,T&S UK - Public Transport,SMT,Corporate Travel Management (North) Ltd,98650562,218,T&S UK - Public Transport
BEIS,UKRI - AHRC,06/12/2019,T&S UK - Public Transport,SMT,Corporate Travel Management (North) Ltd,98650562,0.25,T&S UK - Public Transport
BEIS,UKRI - AHRC,06/12/2019,T&S UK - Public Transport,SMT,Corporate Travel Management (North) Ltd,98650562,102.05,T&S UK - Public Transport
BEIS,UKRI - AHRC,06/12/2019,T&S UK - Public Transport,SMT,Corporate Travel Management (North) Ltd,98650562,0.25,T&S UK - Public Transport
BEIS,UKRI - AHRC,06/12/2019,T&S UK - Public Transport,SMT,Corporate Travel Management (North) Ltd,98650562,89,T&S UK - Public Transport
BEIS,UKRI - AHRC,06/12/2019,T&S UK - Public Transport,SMT,Corporate Travel Management (North) Ltd,98650562,0.25,T&S UK - Public Transport
BEIS,UKRI - AHRC,06/12/2019,T&S UK - Public Transport,SMT,Corporate Travel Management (North) Ltd,98650562,109,T&S UK - Public Transport
BEIS,UKRI - AHRC,06/12/2019,T&S UK - Public Transport,SMT,Corporate Travel Management (North) Ltd,98650562,0.25,T&S UK - Public Transport
BEIS,UKRI - AHRC,06/12/2019,T&S UK - Public Transport,SMT,Corporate Travel Management (North) Ltd,98650562,28.8,T&S UK - Public Transport
BEIS,UKRI - AHRC,06/12/2019,T&S UK - Public Transport,SMT,Corporate Travel Management (North) Ltd,98650562,0.25,T&S UK - Public Transport
BEIS,UKRI - AHRC,06/12/2019,T&S UK - Public Transport,SMT,Corporate Travel Management (North) Ltd,98650562,20.5,T&S UK - Public Transport
BEIS,UKRI - AHRC,06/12/2019,T&S UK - Public Transport,SMT,Corporate Travel Management (North) Ltd,98650562,0.25,T&S UK - Public Transport
BEIS,UKRI - AHRC,06/12/2019,T&S UK - Public Transport,SMT,Corporate Travel Management (North) Ltd,98650562,69,T&S UK - Public Transport
BEIS,UKRI - AHRC,06/12/2019,T&S UK - Public Transport,SMT,Corporate Travel Management (North) Ltd,98650562,0.25,T&S UK - Public Transport
BEIS,UKRI - AHRC,06/12/2019,T&S UK - Public Transport,SMT,Corporate Travel Management (North) Ltd,98650562,133,T&S UK - Public Transport
BEIS,UKRI - AHRC,06/12/2019,T&S UK - Public Transport,SMT,Corporate Travel Management (North) Ltd,98650562,0.25,T&S UK - Public Transport
BEIS,UKRI - AHRC,06/12/2019,T&S UK - Public Transport,SMT,Corporate Travel Management (North) Ltd,98650562,89,T&S UK - Public Transport
BEIS,UKRI - AHRC,06/12/2019,T&S UK - Public Transport,SMT,Corporate Travel Management (North) Ltd,98650562,0.25,T&S UK - Public Transport
BEIS,UKRI - AHRC,06/12/2019,T&S UK - Public Transport,SMT,Corporate Travel Management (North) Ltd,98650562,28.8,T&S UK - Public Transport
BEIS,UKRI - AHRC,06/12/2019,T&S UK - Public Transport,SMT,Corporate Travel Management (North) Ltd,98650562,0.25,T&S UK - Public Transport
BEIS,UKRI - AHRC,06/12/2019,T&S UK - Public Transport,SMT,Corporate Travel Management (North) Ltd,98650562,133,T&S UK - Public Transport
BEIS,UKRI - AHRC,06/12/2019,T&S UK - Public Transport,SMT,Corporate Travel Management (North) Ltd,98650562,0.25,T&S UK - Public Transport
BEIS,UKRI - AHRC,06/12/2019,T&S UK - Public Transport,SMT,Corporate Travel Management (North) Ltd,98650562,108.4,T&S UK - Public Transport
BEIS,UKRI - AHRC,06/12/2019,T&S UK - Public Transport,SMT,Corporate Travel Management (North) Ltd,98650562,0.25,T&S UK - Public Transport
BEIS,UKRI - AHRC,06/12/2019,T&S UK - Public Transport,SMT,Corporate Travel Management (North) Ltd,98650562,153,T&S UK - Public Transport
BEIS,UKRI - AHRC,06/12/2019,T&S UK - Public Transport,SMT,Corporate Travel Management (North) Ltd,98650562,0.25,T&S UK - Public Transport
BEIS,UKRI - AHRC,06/12/2019,T&S UK - Public Transport,SMT,Corporate Travel Management (North) Ltd,98650562,30.6,T&S UK - Public Transport
BEIS,UKRI - AHRC,06/12/2019,T&S UK - Public Transport,SMT,Corporate Travel Management (North) Ltd,98650562,108.43,T&S UK - Public Transport
BEIS,UKRI - AHRC,06/12/2019,T&S UK - Public Transport,SMT,Corporate Travel Management (North) Ltd,98650562,122.83,T&S UK - Public Transport
BEIS,UKRI - AHRC,06/12/2019,T&S UK - Public Transport,SMT,Corporate Travel Management (North) Ltd,98650562,-46.7,T&S UK - Public Transport
BEIS,UKRI - AHRC,06/12/2019,T&S UK - Public Transport,SMT,Corporate Travel Management (North) Ltd,98650562,0.5,T&S UK - Public Transport
BEIS,UKRI - AHRC,06/12/2019,T&S UK - Public Transport,SMT,Corporate Travel Management (North) Ltd,98650562,17.3,T&S UK - Public Transport
BEIS,UKRI - AHRC,06/12/2019,T&S UK - Public Transport,SMT,Corporate Travel Management (North) Ltd,98650562,27.4,T&S UK - Public Transport
BEIS,UKRI - AHRC,06/12/2019,T&S UK - Public Transport,SMT,Corporate Travel Management (North) Ltd,98650562,0.25,T&S UK - Public Transport
BEIS,UKRI - AHRC,06/12/2019,T&S UK - Public Transport,SMT,Corporate Travel Management (North) Ltd,98650562,121.6,T&S UK - Public Transport
BEIS,UKRI - AHRC,06/12/2019,T&S UK - Public Transport,SMT,Corporate Travel Management (North) Ltd,98650562,0.25,T&S UK - Public Transport
BEIS,UKRI - AHRC,06/12/2019,T&S UK - Public Transport,SMT,Corporate Travel Management (North) Ltd,98650562,121.6,T&S UK - Public Transport
BEIS,UKRI - AHRC,06/12/2019,T&S UK - Public Transport,SMT,Corporate Travel Management (North) Ltd,98650562,0.25,T&S UK - Public Transport
BEIS,UKRI - AHRC,06/12/2019,T&S UK - Public Transport,SMT,Corporate Travel Management (North) Ltd,98650562,153,T&S UK - Public Transport
BEIS,UKRI - AHRC,06/12/2019,T&S UK - Public Transport,SMT,Corporate Travel Management (North) Ltd,98650562,0.25,T&S UK - Public Transport
BEIS,UKRI - AHRC,06/12/2019,T&S UK - Public Transport,SMT,Corporate Travel Management (North) Ltd,98650562,133,T&S UK - Public Transport
BEIS,UKRI - AHRC,06/12/2019,T&S UK - Public Transport,SMT,Corporate Travel Management (North) Ltd,98650562,10,T&S UK - Public Transport
BEIS,UKRI - AHRC,06/12/2019,T&S UK - Public Transport,SMT,Corporate Travel Management (North) Ltd,98650562,-143,T&S UK - Public Transport
BEIS,UKRI - AHRC,06/12/2019,T&S UK - Public Transport,SMT,Corporate Travel Management (North) Ltd,98650562,0.25,T&S UK - Public Transport
BEIS,UKRI - AHRC,06/12/2019,T&S UK - Public Transport,SMT,Corporate Travel Management (North) Ltd,98650562,138,T&S UK - Public Transport
BEIS,UKRI - AHRC,06/12/2019,T&S UK - Public Transport,SMT,Corporate Travel Management (North) Ltd,98650562,0.5,T&S UK - Public Transport
BEIS,UKRI - AHRC,06/12/2019,T&S UK - Public Transport,SMT,Corporate Travel Management (North) Ltd,98650562,133,T&S UK - Public Transport
BEIS,UKRI - AHRC,06/12/2019,T&S UK - Public Transport,SMT,Corporate Travel Management (North) Ltd,98650562,33.7,T&S UK - Public Transport
BEIS,UKRI - AHRC,06/12/2019,T&S UK - Public Transport,SMT,Corporate Travel Management (North) Ltd,98650562,0.5,T&S UK - Public Transport
BEIS,UKRI - AHRC,06/12/2019,T&S UK - Public Transport,SMT,Corporate Travel Management (North) Ltd,98650562,27.4,T&S UK - Public Transport
BEIS,UKRI - AHRC,06/12/2019,T&S UK - Public Transport,SMT,Corporate Travel Management (North) Ltd,98650562,107,T&S UK - Public Transport
BEIS,UKRI - AHRC,06/12/2019,T&S UK - Public Transport,SMT,Corporate Travel Management (North) Ltd,98650562,0.25,T&S UK - Public Transport
BEIS,UKRI - AHRC,06/12/2019,T&S UK - Public Transport,SMT,Corporate Travel Management (North) Ltd,98650562,36.7,T&S UK - Public Transport
BEIS,UKRI - AHRC,06/12/2019,T&S UK - Public Transport,SMT,Corporate Travel Management (North) Ltd,98650562,0.25,T&S UK - Public Transport
BEIS,UKRI - AHRC,06/12/2019,T&S UK - Public Transport,SMT,Corporate Travel Management (North) Ltd,98650562,218,T&S UK - Public Transport
BEIS,UKRI - AHRC,06/12/2019,T&S UK - Public Transport,SMT,Corporate Travel Management (North) Ltd,98650562,0.25,T&S UK - Public Transport
BEIS,UKRI - AHRC,06/12/2019,T&S UK - Public Transport,SMT,Corporate Travel Management (North) Ltd,98650562,138,T&S UK - Public Transport
BEIS,UKRI - AHRC,06/12/2019,T&S UK - Public Transport,SMT,Corporate Travel Management (North) Ltd,98650562,0.25,T&S UK - Public Transport
BEIS,UKRI - AHRC,06/12/2019,T&S UK - Public Transport,SMT,Corporate Travel Management (North) Ltd,98650562,107,T&S UK - Public Transport
BEIS,UKRI - AHRC,06/12/2019,T&S UK - Public Transport,SMT,Corporate Travel Management (North) Ltd,98650562,0.13,T&S UK - Public Transport
BEIS,UKRI - AHRC,06/12/2019,T&S UK - Public Transport,SMT,Corporate Travel Management (North) Ltd,98650562,69,T&S UK - Public Transport
BEIS,UKRI - AHRC,06/12/2019,T&S UK - Public Transport,SMT,Corporate Travel Management (North) Ltd,98650562,0.5,T&S UK - Public Transport
BEIS,UKRI - AHRC,06/12/2019,T&S UK - Public Transport,SMT,Corporate Travel Management (North) Ltd,98650562,231.5,T&S UK - Public Transport
BEIS,UKRI - AHRC,06/12/2019,T&S UK - Public Transport,SMT,Corporate Travel Management (North) Ltd,98650562,0.12,T&S UK - Public Transport
BEIS,UKRI - AHRC,06/12/2019,T&S UK - Public Transport,SMT,Corporate Travel Management (North) Ltd,98650562,69,T&S UK - Public Transport
BEIS,UKRI - AHRC,06/12/2019,T&S UK - Public Transport,SMT,Corporate Travel Management (North) Ltd,98650562,0.5,T&S UK - Public Transport
BEIS,UKRI - AHRC,06/12/2019,T&S UK - Public Transport,SMT,Corporate Travel Management (North) Ltd,98650562,89,T&S UK - Public Transport
BEIS,UKRI - AHRC,06/12/2019,T&S UK - Public Transport,SMT,Corporate Travel Management (North) Ltd,98650562,69,T&S UK - Public Transport
BEIS,UKRI - AHRC,06/12/2019,T&S UK - Public Transport,SMT,Corporate Travel Management (North) Ltd,98650562,0.25,T&S UK - Public Transport
BEIS,UKRI - AHRC,06/12/2019,T&S UK - Public Transport,SMT,Corporate Travel Management (North) Ltd,98650562,97.8,T&S UK - Public Transport
BEIS,UKRI - AHRC,06/12/2019,T&S UK - Public Transport,SMT,Corporate Travel Management (North) Ltd,98650562,0.5,T&S UK - Public Transport
BEIS,UKRI - AHRC,06/12/2019,T&S UK - Public Transport,SMT,Corporate Travel Management (North) Ltd,98650562,69,T&S UK - Public Transport
BEIS,UKRI - AHRC,06/12/2019,T&S UK - Public Transport,SMT,Corporate Travel Management (North) Ltd,98650562,69,T&S UK - Public Transport
BEIS,UKRI - AHRC,06/12/2019,T&S UK - Public Transport,SMT,Corporate Travel Management (North) Ltd,98650562,0.5,T&S UK - Public Transport
BEIS,UKRI - AHRC,06/12/2019,T&S UK - Public Transport,SMT,Corporate Travel Management (North) Ltd,98650562,178,T&S UK - Public Transport
BEIS,UKRI - AHRC,06/12/2019,T&S UK - Public Transport,SMT,Corporate Travel Management (North) Ltd,98650562,0.25,T&S UK - Public Transport
BEIS,UKRI - AHRC,06/12/2019,T&S UK - Public Transport,SMT,Corporate Travel Management (North) Ltd,98650562,33.7,T&S UK - Public Transport
BEIS,UKRI - AHRC,06/12/2019,T&S UK - Public Transport,SMT,Corporate Travel Management (North) Ltd,98650562,5,T&S UK - Public Transport
BEIS,UKRI - AHRC,06/12/2019,T&S UK - Public Transport,SMT,Corporate Travel Management (North) Ltd,98650562,-25.5,T&S UK - Public Transport
BEIS,UKRI - AHRC,06/12/2019,T&S UK - Public Transport,SMT,Corporate Travel Management (North) Ltd,98650562,0.25,T&S UK - Public Transport
BEIS,UKRI - AHRC,06/12/2019,T&S UK - Public Transport,SMT,Corporate Travel Management (North) Ltd,98650562,103,T&S UK - Public Transport
BEIS,UKRI - AHRC,06/12/2019,T&S UK - Public Transport,Secretariat,Corporate Travel Management (North) Ltd,98650562,0.25,T&S UK - Public Transport
BEIS,UKRI - AHRC,06/12/2019,T&S UK - Public Transport,Secretariat,Corporate Travel Management (North) Ltd,98650562,49.4,T&S UK - Public Transport
BEIS,UKRI - AHRC,06/12/2019,T&S UK - Public Transport,Secretariat,Corporate Travel Management (North) Ltd,98650562,0.25,T&S UK - Public Transport
BEIS,UKRI - AHRC,06/12/2019,T&S UK - Public Transport,Secretariat,Corporate Travel Management (North) Ltd,98650562,68.2,T&S UK - Public Transport
BEIS,UKRI - AHRC,06/12/2019,T&S UK - Public Transport,Skills Strategy,Corporate Travel Management (North) Ltd,98650562,0.25,T&S UK - Public Transport
BEIS,UKRI - AHRC,06/12/2019,T&S UK - Public Transport,Skills Strategy,Corporate Travel Management (North) Ltd,98650562,27.5,T&S UK - Public Transport
BEIS,UKRI - AHRC,06/12/2019,T&S UK - Public Transport,Skills Strategy,Corporate Travel Management (North) Ltd,98650562,0.25,T&S UK - Public Transport
BEIS,UKRI - AHRC,06/12/2019,T&S UK - Public Transport,Skills Strategy,Corporate Travel Management (North) Ltd,98650562,162.95,T&S UK - Public Transport
BEIS,UKRI - AHRC,06/12/2019,T&S UK - Public Transport,Skills Strategy,Corporate Travel Management (North) Ltd,98650562,0.5,T&S UK - Public Transport
BEIS,UKRI - AHRC,06/12/2019,T&S UK - Public Transport,Skills Strategy,Corporate Travel Management (North) Ltd,98650562,40.5,T&S UK - Public Transport
BEIS,UKRI - AHRC,06/12/2019,T&S UK - Public Transport,Skills Strategy,Corporate Travel Management (North) Ltd,98650562,26,T&S UK - Public Transport
BEIS,UKRI - AHRC,06/12/2019,T&S UK - Public Transport,Skills Strategy,Corporate Travel Management (North) Ltd,98650562,0.5,T&S UK - Public Transport
BEIS,UKRI - AHRC,06/12/2019,T&S UK - Public Transport,Skills Strategy,Corporate Travel Management (North) Ltd,98650562,49.5,T&S UK - Public Transport
BEIS,UKRI - AHRC,06/12/2019,T&S UK - Public Transport,Skills Strategy,Corporate Travel Management (North) Ltd,98650562,53.1,T&S UK - Public Transport
BEIS,UKRI - AHRC,06/12/2019,T&S UK - Public Transport,Skills Strategy,Corporate Travel Management (North) Ltd,98650562,0.25,T&S UK - Public Transport
BEIS,UKRI - AHRC,06/12/2019,T&S UK - Public Transport,Skills Strategy,Corporate Travel Management (North) Ltd,98650562,22.8,T&S UK - Public Transport
BEIS,UKRI - AHRC,06/12/2019,T&S UK - Public Transport,Skills Strategy,Corporate Travel Management (North) Ltd,98650562,20,T&S UK - Public Transport
BEIS,UKRI - AHRC,06/12/2019,T&S UK - Public Transport,Skills Strategy,Corporate Travel Management (North) Ltd,98650562,-149.1,T&S UK - Public Transport
BEIS,UKRI - AHRC,06/12/2019,T&S UK - Public Transport,Skills Strategy,Corporate Travel Management (North) Ltd,98650562,-128,T&S UK - Public Transport
BEIS,UKRI - AHRC,06/12/2019,T&S UK - Public Transport,Skills Strategy,Corporate Travel Management (North) Ltd,98650562,0.5,T&S UK - Public Transport
BEIS,UKRI - AHRC,06/12/2019,T&S UK - Public Transport,Skills Strategy,Corporate Travel Management (North) Ltd,98650562,145.8,T&S UK - Public Transport
BEIS,UKRI - AHRC,06/12/2019,T&S UK - Public Transport,Skills Strategy,Corporate Travel Management (North) Ltd,98650562,0.25,T&S UK - Public Transport
BEIS,UKRI - AHRC,06/12/2019,T&S UK - Public Transport,Skills Strategy,Corporate Travel Management (North) Ltd,98650562,194.1,T&S UK - Public Transport
BEIS,UKRI - AHRC,06/12/2019,T&S UK - Public Transport,Skills Strategy,Corporate Travel Management (North) Ltd,98650562,0.25,T&S UK - Public Transport
BEIS,UKRI - AHRC,06/12/2019,T&S UK - Public Transport,Skills Strategy,Corporate Travel Management (North) Ltd,98650562,134.4,T&S UK - Public Transport
BEIS,UKRI - AHRC,06/12/2019,T&S UK - Public Transport,Skills Strategy,Corporate Travel Management (North) Ltd,98650562,0.5,T&S UK - Public Transport
BEIS,UKRI - AHRC,06/12/2019,T&S UK - Public Transport,Skills Strategy,Corporate Travel Management (North) Ltd,98650562,10,T&S UK - Public Transport
BEIS,UKRI - AHRC,06/12/2019,T&S UK - Public Transport,Skills Strategy,Corporate Travel Management (North) Ltd,98650562,85.2,T&S UK - Public Transport
BEIS,UKRI - AHRC,06/12/2019,T&S UK - Public Transport,Skills Strategy,Corporate Travel Management (North) Ltd,98650562,0.25,T&S UK - Public Transport
BEIS,UKRI - AHRC,06/12/2019,T&S UK - Public Transport,Skills Strategy,Corporate Travel Management (North) Ltd,98650562,169,T&S UK - Public Transport
BEIS,UKRI - AHRC,06/12/2019,T&S UK - Public Transport,Skills Strategy,Corporate Travel Management (North) Ltd,98650562,0.25,T&S UK - Public Transport
BEIS,UKRI - AHRC,06/12/2019,T&S UK - Public Transport,Skills Strategy,Corporate Travel Management (North) Ltd,98650562,11.9,T&S UK - Public Transport
BEIS,UKRI - AHRC,06/12/2019,T&S UK - Public Transport,Skills Strategy,Corporate Travel Management (North) Ltd,98650562,0.25,T&S UK - Public Transport
BEIS,UKRI - AHRC,06/12/2019,T&S UK - Public Transport,Skills Strategy,Corporate Travel Management (North) Ltd,98650562,69.9,T&S UK - Public Transport
BEIS,UKRI - AHRC,06/12/2019,T&S UK - Public Transport,Skills Strategy,Corporate Travel Management (North) Ltd,98650562,0.25,T&S UK - Public Transport
BEIS,UKRI - AHRC,06/12/2019,T&S UK - Public Transport,Skills Strategy,Corporate Travel Management (North) Ltd,98650562,23.5,T&S UK - Public Transport
BEIS,UKRI - AHRC,06/12/2019,T&S UK - Public Transport,Skills Strategy,Corporate Travel Management (North) Ltd,98650562,0.25,T&S UK - Public Transport
BEIS,UKRI - AHRC,06/12/2019,T&S UK - Public Transport,Skills Strategy,Corporate Travel Management (North) Ltd,98650562,110,T&S UK - Public Transport
BEIS,UKRI - AHRC,09/12/2019,Staff Training,Corporate Services,UK Shared Business Services Ltd,98448735,1681.89,Staff Training
BEIS,UKRI - AHRC,09/12/2019,Computing Consumables,Corporate Services,UK Shared Business Services Ltd,98482476,1665.68,Computing Consumables
BEIS,UKRI - AHRC,09/12/2019,Computing Consumables,Corporate Services,UK Shared Business Services Ltd,98482476,2566.47,Computing Consumables
BEIS,UKRI - AHRC,09/12/2019,Recruitment Costs,Corporate Services,UK Shared Business Services Ltd,98599634,32.43,Recruitment Costs
BEIS,UKRI - AHRC,09/12/2019,Recruitment Costs,Corporate Services,Warwick University Services Ltd,98648565,250,Recruitment Costs
BEIS,UKRI - AHRC,09/12/2019,Recruitment Costs,Corporate Services,Warwick University Services Ltd,98648569,250,Recruitment Costs
BEIS,UKRI - AHRC,09/12/2019,Contract Staff,PSU JRS,Alexander Mann Solutions Ltd,98648821,3423.12,Contract Staff
BEIS,UKRI - AHRC,09/12/2019,Non-staff travel and subsistance,SMT,Non Employee Expenses Supplier,98653026,232.7,Non-staff travel and subsistance
BEIS,UKRI - AHRC,09/12/2019,Non-staff travel and subsistance,SMT,Non Employee Expenses Supplier,98653027,137.34,Non-staff travel and subsistance
BEIS,UKRI - AHRC,09/12/2019,Non-staff travel and subsistance,SMT,Non Employee Expenses Supplier,98653028,411.31,Non-staff travel and subsistance
BEIS,UKRI - AHRC,09/12/2019,Health & Safety (inc. Medicals & Opticians),"History, Heritage, Languages and Literature",Unspecified,98653069,12.99,Health & Safety (inc. Medicals & Opticians)
BEIS,UKRI - AHRC,09/12/2019,T&S Overseas - Accommodation,JPI Cultural Heritage Project,Unspecified,98653070,7.32,T&S Overseas - Accommodation
BEIS,UKRI - AHRC,09/12/2019,T&S Overseas - Public Transport,JPI Cultural Heritage Project,Unspecified,98653070,5.43,T&S Overseas - Public Transport
BEIS,UKRI - AHRC,09/12/2019,T&S Overseas - Subsistence,JPI Cultural Heritage Project,Unspecified,98653070,5,T&S Overseas - Subsistence
BEIS,UKRI - AHRC,09/12/2019,T&S Overseas - Subsistence,JPI Cultural Heritage Project,Unspecified,98653070,27.62,T&S Overseas - Subsistence
BEIS,UKRI - AHRC,09/12/2019,T&S Overseas - Subsistence,JPI Cultural Heritage Project,Unspecified,98653070,6.5,T&S Overseas - Subsistence
BEIS,UKRI - AHRC,09/12/2019,Health & Safety (inc. Medicals & Opticians),Digital Arts and Humanities and Creative Industries,Unspecified,98653071,12.99,Health & Safety (inc. Medicals & Opticians)
BEIS,UKRI - AHRC,09/12/2019,T&S UK - Mileage,"History, Heritage, Languages and Literature",Unspecified,98653072,51.48,T&S UK - Mileage
BEIS,UKRI - AHRC,09/12/2019,T&S UK - Parking Tolls Congestion Charges,"History, Heritage, Languages and Literature",Unspecified,98653072,16.4,T&S UK - Parking Tolls Congestion Charges
BEIS,UKRI - AHRC,10/12/2019,Advertising & Promotion,Public and Stakeholder Engagement,Tom James Arthur T/A Tom Arthur Film & Photo,98653828,500,Advertising & Promotion
BEIS,UKRI - AHRC,10/12/2019,Other Programme Costs,Commissioned Research,UKRI - Engineering & Physical Sciences Research Council,98653993,3750,Other Programme Costs
BEIS,UKRI - AHRC,10/12/2019,Health & Safety (inc. Medicals & Opticians),Digital Arts and Humanities and Creative Industries,Unspecified,98654304,100,Health & Safety (inc. Medicals & Opticians)
BEIS,UKRI - AHRC,10/12/2019,T&S UK - Other Charges,Strategy and Evidence,Unspecified,98654305,100,T&S UK - Other Charges
BEIS,UKRI - AHRC,11/12/2019,Marketing & PR,Public and Stakeholder Engagement,ONA Studio Ltd,98652497,2695.5,Marketing & PR
BEIS,UKRI - AHRC,11/12/2019,Printing & Stationery,PSU Project Office,Banner Group Ltd,98652888,30.13,Printing & Stationery
BEIS,UKRI - AHRC,11/12/2019,Printing & Stationery,PSU Project Office,Banner Group Ltd,98652888,21.76,Printing & Stationery
BEIS,UKRI - AHRC,11/12/2019,Printing & Stationery,PSU Project Office,Banner Group Ltd,98652888,71.26,Printing & Stationery
BEIS,UKRI - AHRC,11/12/2019,Printing & Stationery,PSU Project Office,Banner Group Ltd,98652888,162.43,Printing & Stationery
BEIS,UKRI - AHRC,11/12/2019,Printing & Stationery,PSU Project Office,Banner Group Ltd,98652888,26.86,Printing & Stationery
BEIS,UKRI - AHRC,11/12/2019,Printing & Stationery,PSU Project Office,Banner Group Ltd,98652888,21.55,Printing & Stationery
BEIS,UKRI - AHRC,11/12/2019,Printing & Stationery,HR,Banner Group Ltd,98652889,120.48,Printing & Stationery
BEIS,UKRI - AHRC,11/12/2019,Printing & Stationery,HR,Banner Group Ltd,98652892,48.9,Printing & Stationery
BEIS,UKRI - AHRC,11/12/2019,Printing & Stationery,PSU Project Office,Banner Group Ltd,98652893,26.86,Printing & Stationery
BEIS,UKRI - AHRC,11/12/2019,Printing & Stationery,PSU Project Office,Banner Group Ltd,98652893,10.5,Printing & Stationery
BEIS,UKRI - AHRC,11/12/2019,Printing & Stationery,PSU Project Office,Banner Group Ltd,98652893,13.43,Printing & Stationery
BEIS,UKRI - AHRC,11/12/2019,T&S UK - Mileage,Digital Arts and Humanities and Creative Industries,Unspecified,98654665,37.8,T&S UK - Mileage
BEIS,UKRI - AHRC,11/12/2019,Health & Safety (inc. Medicals & Opticians),International Development and Area Studies,Unspecified,98654666,12.99,Health & Safety (inc. Medicals & Opticians)
BEIS,UKRI - AHRC,12/12/2019,Provisions ( Food etc),HR,Banner Group Ltd,98652890,7.48,Provisions ( Food etc)
BEIS,UKRI - AHRC,12/12/2019,Provisions ( Food etc),HR,Banner Group Ltd,98652890,41.18,Provisions ( Food etc)
BEIS,UKRI - AHRC,12/12/2019,Provisions ( Food etc),HR,Banner Group Ltd,98652890,24,Provisions ( Food etc)
BEIS,UKRI - AHRC,12/12/2019,Provisions ( Food etc),HR,Banner Group Ltd,98652891,7.48,Provisions ( Food etc)
BEIS,UKRI - AHRC,12/12/2019,Provisions ( Food etc),HR,Banner Group Ltd,98652891,41.18,Provisions ( Food etc)
BEIS,UKRI - AHRC,12/12/2019,NI Payable Salaries,Balance Sheet,HM Revenue & Customs,98654810,55490.97,NI Payable Salaries
BEIS,UKRI - AHRC,12/12/2019,PAYE Payable Salaries,Balance Sheet,HM Revenue & Customs,98654811,41566.93,PAYE Payable Salaries
BEIS,UKRI - AHRC,12/12/2019,Student Loans,Balance Sheet,HM Revenue & Customs,98654812,4874,Student Loans
BEIS,UKRI - AHRC,12/12/2019,Apprenticeship Levy,Corporate Services,HM Revenue & Customs,98654813,1408,Apprenticeship Levy
BEIS,UKRI - AHRC,12/12/2019,Non-staff travel and subsistance,Public and Stakeholder Engagement,Non Employee Expenses Supplier,98657468,19,Non-staff travel and subsistance
BEIS,UKRI - AHRC,13/12/2019,Voluntary Deductions,Balance Sheet,Chargive,98654814,570.83,Voluntary Deductions
BEIS,UKRI - AHRC,13/12/2019,Union Deductions,Balance Sheet,PCS Union,98654816,86.06,Union Deductions
BEIS,UKRI - AHRC,13/12/2019,Partnership Pension Deductions,Balance Sheet,Scottish Widows,98654819,369.68,Partnership Pension Deductions
BEIS,UKRI - AHRC,13/12/2019,Non-staff travel and subsistance,Operations,Non Employee Expenses Supplier,98658343,68.4,Non-staff travel and subsistance
BEIS,UKRI - AHRC,16/12/2019,Recharges From Councils - General,SMT,Victoria and Albert Museum,98634098,12050.5,Recharges From Councils - General
BEIS,UKRI - AHRC,16/12/2019,Secondments,SMT,Victoria and Albert Museum,98634098,4257.5,Secondments
BEIS,UKRI - AHRC,16/12/2019,Ees Pension Deductions - JSS,Balance Sheet,RCPS Pension,98654817,10456.57,Ees Pension Deductions - JSS
BEIS,UKRI - AHRC,16/12/2019,Ers Pension Deductions - JSS,Balance Sheet,RCPS Pension,98654818,46785.22,Ers Pension Deductions - JSS
BEIS,UKRI - AHRC,16/12/2019,Ers Pension Deductions - JSS,Balance Sheet,Cabinet Office RM Shared Services,98654820,12.83,Ers Pension Deductions - JSS
BEIS,UKRI - AHRC,16/12/2019,Ees Pension Deductions - MyCSP,Balance Sheet,Cabinet Office RM Shared Services,98654821,5193.02,Ees Pension Deductions - MyCSP
BEIS,UKRI - AHRC,16/12/2019,Ers Pension Deductions - MyCSP,Balance Sheet,Cabinet Office RM Shared Services,98654822,26127.74,Ers Pension Deductions - MyCSP
BEIS,UKRI - AHRC,16/12/2019,Ees Pension Deductions - MRC,Balance Sheet,UKRI - Medical Research Council,98654823,134.32,Ees Pension Deductions - MRC
BEIS,UKRI - AHRC,16/12/2019,Ers Pension Deductions - MRC,Balance Sheet,UKRI - Medical Research Council,98654824,309.96,Ers Pension Deductions - MRC
BEIS,UKRI - AHRC,16/12/2019,Contract Staff,PSU Project Office,Alexander Mann Solutions Ltd,98659298,3383.03,Contract Staff
BEIS,UKRI - AHRC,16/12/2019,Contract Staff,PSU Project Office,Alexander Mann Solutions Ltd,98659298,1089.9,Contract Staff
BEIS,UKRI - AHRC,16/12/2019,Contract Staff,PSU JRS,Alexander Mann Solutions Ltd,98659399,3423.12,Contract Staff
BEIS,UKRI - AHRC,16/12/2019,Nursery Deductions,Balance Sheet,EDENRED (UK GROUP) LTD,98659503,1680,Nursery Deductions
BEIS,UKRI - AHRC,17/12/2019,T&S UK - Public Transport,FIC- US,Unspecified,98626630,17.41,T&S UK - Public Transport
BEIS,UKRI - AHRC,17/12/2019,T&S UK - Subsistence,FIC- US,Unspecified,98626630,15.65,T&S UK - Subsistence
BEIS,UKRI - AHRC,17/12/2019,T&S UK - Subsistence,FIC- US,Unspecified,98626630,10,T&S UK - Subsistence
BEIS,UKRI - AHRC,17/12/2019,Other Programme Costs,RCUK Other,UKRI - Engineering & Physical Sciences Research Council,98653991,234607.77,Other Programme Costs
BEIS,UKRI - AHRC,17/12/2019,Research Grant Expenditure,NPIF Research Talent (RCUK Innovation Fellowships),UKRI - Engineering & Physical Sciences Research Council,98657886,12445.06,Research Grant Expenditure
BEIS,UKRI - AHRC,17/12/2019,Research Grant Expenditure,NPIF Research Talent (RCUK Innovation Fellowships),UKRI - Engineering & Physical Sciences Research Council,98657910,13937.96,Research Grant Expenditure
BEIS,UKRI - AHRC,17/12/2019,Research Grant Expenditure,NPIF Research Talent (RCUK Innovation Fellowships),UKRI - Engineering & Physical Sciences Research Council,98657912,21690.65,Research Grant Expenditure
BEIS,UKRI - AHRC,17/12/2019,Research Grant Expenditure,NPIF Research Talent (RCUK Innovation Fellowships),UKRI - Engineering & Physical Sciences Research Council,98657915,7063.36,Research Grant Expenditure
BEIS,UKRI - AHRC,17/12/2019,Corporate Events,"History, Heritage, Languages and Literature",Calder Conference Ltd,98658757,450,Corporate Events
BEIS,UKRI - AHRC,17/12/2019,Conferences & Seminars,SMT,Calder Conference Ltd,98658758,900,Conferences & Seminars
BEIS,UKRI - AHRC,17/12/2019,Non-staff travel and subsistance,SMT,Non Employee Expenses Supplier,98658771,36.36,Non-staff travel and subsistance
BEIS,UKRI - AHRC,17/12/2019,Research Grant Expenditure,RCUK Global Challenges Research Fund (RCUK GCRF),UKRI - Natural Environment Research Council,98658814,225687.18,Research Grant Expenditure
BEIS,UKRI - AHRC,17/12/2019,Research Grant Expenditure,RCUK Global Challenges Research Fund (RCUK GCRF),UKRI - Natural Environment Research Council,98658820,17474.25,Research Grant Expenditure
BEIS,UKRI - AHRC,17/12/2019,Research Grant Expenditure,RCUK Global Challenges Research Fund (RCUK GCRF),UKRI - Natural Environment Research Council,98658828,178913.97,Research Grant Expenditure
BEIS,UKRI - AHRC,17/12/2019,Research Grant Expenditure,Digital Economy,UKRI - Engineering & Physical Sciences Research Council,98659181,25804.83,Research Grant Expenditure
BEIS,UKRI - AHRC,17/12/2019,Research Grant Expenditure,Digital Economy,UKRI - Engineering & Physical Sciences Research Council,98659184,25889.87,Research Grant Expenditure
BEIS,UKRI - AHRC,17/12/2019,Research Grant Expenditure,Digital Economy,UKRI - Engineering & Physical Sciences Research Council,98659273,6253.79,Research Grant Expenditure
BEIS,UKRI - AHRC,17/12/2019,Research Grant Expenditure,Digital Economy,UKRI - Engineering & Physical Sciences Research Council,98659278,10570.27,Research Grant Expenditure
BEIS,UKRI - AHRC,17/12/2019,Research Grant Expenditure,Digital Economy,UKRI - Engineering & Physical Sciences Research Council,98659287,17763.22,Research Grant Expenditure
BEIS,UKRI - AHRC,17/12/2019,International Subscriptions,Operations,Smartsurvey Ltd,98661097,720,International Subscriptions
BEIS,UKRI - AHRC,17/12/2019,T&S UK - Mileage,Digital Arts and Humanities and Creative Industries,Unspecified,98661377,5.85,T&S UK - Mileage
BEIS,UKRI - AHRC,17/12/2019,T&S UK - Parking Tolls Congestion Charges,Digital Arts and Humanities and Creative Industries,Unspecified,98661377,12.8,T&S UK - Parking Tolls Congestion Charges
BEIS,UKRI - AHRC,17/12/2019,T&S UK - Subsistence,Digital Arts and Humanities and Creative Industries,Unspecified,98661377,12.9,T&S UK - Subsistence
BEIS,UKRI - AHRC,17/12/2019,T&S UK - Subsistence,Digital Arts and Humanities and Creative Industries,Unspecified,98661377,10,T&S UK - Subsistence
BEIS,UKRI - AHRC,17/12/2019,T&S UK - Mileage,Public and Stakeholder Engagement,Unspecified,98661380,71.1,T&S UK - Mileage
BEIS,UKRI - AHRC,17/12/2019,T&S UK - Subsistence,International Development and Area Studies,Unspecified,98661381,3.7,T&S UK - Subsistence
BEIS,UKRI - AHRC,17/12/2019,T&S UK - Subsistence,International Development and Area Studies,Unspecified,98661381,13.84,T&S UK - Subsistence
BEIS,UKRI - AHRC,17/12/2019,T&S UK - Subsistence,International Development and Area Studies,Unspecified,98661381,5.35,T&S UK - Subsistence
BEIS,UKRI - AHRC,17/12/2019,T&S UK - Subsistence,International Development and Area Studies,Unspecified,98661381,10,T&S UK - Subsistence
BEIS,UKRI - AHRC,17/12/2019,T&S UK - Subsistence,Public and Stakeholder Engagement,Unspecified,98661382,9.6,T&S UK - Subsistence
BEIS,UKRI - AHRC,17/12/2019,Conferences & Seminars,FIC- US,Calder Conference Ltd,98662185,754,Conferences & Seminars
BEIS,UKRI - AHRC,18/12/2019,Overseas - Professional Memberships & Subscriptions,JPI Cultural Heritage Project,"Fondation des Sciences du Patrimoine, Universit� de Cergy Pontoise",98657403,9685.76,Overseas - Professional Memberships & Subscriptions
BEIS,UKRI - AHRC,18/12/2019,T&S UK - Mileage,SMT,Unspecified,98661907,46.35,T&S UK - Mileage
BEIS,UKRI - AHRC,18/12/2019,T&S UK - Other Charges,SMT,Unspecified,98661907,110,T&S UK - Other Charges
BEIS,UKRI - AHRC,18/12/2019,T&S UK - Parking Tolls Congestion Charges,SMT,Unspecified,98661907,4.2,T&S UK - Parking Tolls Congestion Charges
BEIS,UKRI - AHRC,18/12/2019,T&S UK - Public Transport,SMT,Unspecified,98661907,1.76,T&S UK - Public Transport
BEIS,UKRI - AHRC,18/12/2019,T&S UK - Subsistence,SMT,Unspecified,98661907,12.06,T&S UK - Subsistence
BEIS,UKRI - AHRC,18/12/2019,T&S UK - Subsistence,SMT,Unspecified,98661907,25,T&S UK - Subsistence
BEIS,UKRI - AHRC,18/12/2019,T&S UK - Subsistence,Operations,Unspecified,98661908,23,T&S UK - Subsistence
BEIS,UKRI - AHRC,18/12/2019,T&S UK - Subsistence,Public and Stakeholder Engagement,Unspecified,98661910,15,T&S UK - Subsistence
BEIS,UKRI - AHRC,18/12/2019,T&S UK - Mileage,Operations,Unspecified,98661912,39.6,T&S UK - Mileage
BEIS,UKRI - AHRC,19/12/2019,T&S UK - Public Transport,SMT,Unspecified,98663367,33.49,T&S UK - Public Transport
BEIS,UKRI - AHRC,19/12/2019,T&S UK - Public Transport,SMT,Unspecified,98663367,26.2,T&S UK - Public Transport
BEIS,UKRI - AHRC,19/12/2019,T&S UK - Subsistence,SMT,Unspecified,98663367,3.85,T&S UK - Subsistence
BEIS,UKRI - AHRC,19/12/2019,T&S UK - Subsistence,Public and Stakeholder Engagement,Unspecified,98663369,13,T&S UK - Subsistence
BEIS,UKRI - AHRC,19/12/2019,T&S UK - Public Transport,International Development and Area Studies,Unspecified,98663370,20,T&S UK - Public Transport
BEIS,UKRI - AHRC,19/12/2019,T&S UK - Subsistence,International Development and Area Studies,Unspecified,98663370,9.99,T&S UK - Subsistence
BEIS,UKRI - AHRC,19/12/2019,T&S UK - Subsistence,International Development and Area Studies,Unspecified,98663370,8,T&S UK - Subsistence
BEIS,UKRI - AHRC,20/12/2019,Fellowships,Research Fellowships,Keele University,98648466,20365.03,Fellowships
BEIS,UKRI - AHRC,20/12/2019,Fellowships,Research Fellowships,Cardiff University,98648467,20659.9,Fellowships
BEIS,UKRI - AHRC,20/12/2019,Fellowships,Research Fellowships,Northumbria University,98648468,18798.89,Fellowships
BEIS,UKRI - AHRC,20/12/2019,Fellowships,Research Fellowships,University of Leicester,98648469,26679.11,Fellowships
BEIS,UKRI - AHRC,20/12/2019,Fellowships,Research Fellowships,Nottingham Trent University,98648470,32834.18,Fellowships
BEIS,UKRI - AHRC,20/12/2019,Fellowships,Research Fellowships,University of East Anglia,98648471,23498.29,Fellowships
BEIS,UKRI - AHRC,20/12/2019,Fellowships,Research Fellowships,University of Stirling,98648472,30911.72,Fellowships
BEIS,UKRI - AHRC,20/12/2019,Fellowships,Research Fellowships,University of Edinburgh,98648473,22572.99,Fellowships
BEIS,UKRI - AHRC,20/12/2019,Fellowships,Research Fellowships,University of Surrey,98648474,19728.03,Fellowships
BEIS,UKRI - AHRC,20/12/2019,Fellowships,Research Fellowships,University of Birmingham GRANT,98648475,25955.42,Fellowships
BEIS,UKRI - AHRC,20/12/2019,Fellowships,Research Fellowships,Loughborough University,98648476,21865.77,Fellowships
BEIS,UKRI - AHRC,20/12/2019,Fellowships,Research Fellowships,Queen Mary University of London,98648477,24861.25,Fellowships
BEIS,UKRI - AHRC,20/12/2019,Fellowships,Research Fellowships,Liverpool John Moores University,98648478,32808.29,Fellowships
BEIS,UKRI - AHRC,20/12/2019,Fellowships,Research Fellowships,University of Exeter,98648479,32961.2,Fellowships
BEIS,UKRI - AHRC,20/12/2019,Fellowships,Research Fellowships,Goldsmiths College University of London,98648480,28366.51,Fellowships
BEIS,UKRI - AHRC,20/12/2019,Fellowships,Research Fellowships,University of Bristol GRANT,98648481,35063.2,Fellowships
BEIS,UKRI - AHRC,20/12/2019,Fellowships,Research Fellowships,"Royal Holloway, University of London",98648482,30220.28,Fellowships
BEIS,UKRI - AHRC,20/12/2019,Fellowships,Research Fellowships,Bournemouth University GRANT,98648483,26444.03,Fellowships
BEIS,UKRI - AHRC,20/12/2019,Fellowships,Research Fellowships,University of Exeter,98648484,24175.04,Fellowships
BEIS,UKRI - AHRC,20/12/2019,Fellowships,Research Fellowships,University of Brighton,98648485,10721.35,Fellowships
BEIS,UKRI - AHRC,20/12/2019,Fellowships,Research Fellowships,University of Bristol GRANT,98648486,36492.08,Fellowships
BEIS,UKRI - AHRC,20/12/2019,Fellowships,Research Fellowships,University of Kent,98648487,30583.07,Fellowships
BEIS,UKRI - AHRC,20/12/2019,Fellowships,Research Fellowships,University of Newcastle Upon Tyne,98648488,36376.19,Fellowships
BEIS,UKRI - AHRC,20/12/2019,Fellowships,Research Fellowships,Goldsmiths College University of London,98648489,39077.76,Fellowships
BEIS,UKRI - AHRC,20/12/2019,Fellowships,NPIF Research Talent (RCUK Innovation Fellowships),Northumbria University,98648490,23804.54,Fellowships
BEIS,UKRI - AHRC,20/12/2019,Fellowships,NPIF Research Talent (RCUK Innovation Fellowships),University of the West of England,98648491,26746.21,Fellowships
BEIS,UKRI - AHRC,20/12/2019,Fellowships,NPIF Research Talent (RCUK Innovation Fellowships),University of Brighton,98648492,21692.44,Fellowships
BEIS,UKRI - AHRC,20/12/2019,Fellowships,Research Fellowships,Swansea University,98648493,27788.07,Fellowships
BEIS,UKRI - AHRC,20/12/2019,Fellowships,Research Fellowships,University of Leicester,98648494,23673.33,Fellowships
BEIS,UKRI - AHRC,20/12/2019,Fellowships,Research Fellowships,University of St Andrews,98648495,23401.23,Fellowships
BEIS,UKRI - AHRC,20/12/2019,Fellowships,NPIF Research Talent (RCUK Innovation Fellowships),University of Leicester,98648496,25172.3,Fellowships
BEIS,UKRI - AHRC,20/12/2019,Fellowships,NPIF Research Talent (RCUK Innovation Fellowships),Glasgow School of Art,98648497,25171.15,Fellowships
BEIS,UKRI - AHRC,20/12/2019,Fellowships,NPIF Research Talent (RCUK Innovation Fellowships),University of Sheffield,98648498,26010.7,Fellowships
BEIS,UKRI - AHRC,20/12/2019,Fellowships,NPIF Research Talent (RCUK Innovation Fellowships),University College London,98648499,24912.97,Fellowships
BEIS,UKRI - AHRC,20/12/2019,Fellowships,NPIF Research Talent (RCUK Innovation Fellowships),University of Glasgow,98648500,25187.72,Fellowships
BEIS,UKRI - AHRC,20/12/2019,Fellowships,NPIF Research Talent (RCUK Innovation Fellowships),University of Southampton GRANT,98648501,22997.27,Fellowships
BEIS,UKRI - AHRC,20/12/2019,Fellowships,NPIF Research Talent (RCUK Innovation Fellowships),Birmingham City University,98648502,22868.53,Fellowships
BEIS,UKRI - AHRC,20/12/2019,Fellowships,NPIF Research Talent (RCUK Innovation Fellowships),University of Bristol GRANT,98648503,23307.06,Fellowships
BEIS,UKRI - AHRC,20/12/2019,Fellowships,NPIF Research Talent (RCUK Innovation Fellowships),University of Edinburgh,98648504,28248.69,Fellowships
BEIS,UKRI - AHRC,20/12/2019,Fellowships,Research Fellowships,University of Leeds,98648505,34842.52,Fellowships
BEIS,UKRI - AHRC,20/12/2019,Fellowships,Commissioned Research,University of Sussex,98648506,17200.12,Fellowships
BEIS,UKRI - AHRC,20/12/2019,Fellowships,Research Fellowships,University of Surrey,98648507,33785.09,Fellowships
BEIS,UKRI - AHRC,20/12/2019,Fellowships,Research Fellowships,University of Leeds,98648508,26252.47,Fellowships
BEIS,UKRI - AHRC,20/12/2019,Fellowships,Research Fellowships,University of Leeds,98648509,22957.67,Fellowships
BEIS,UKRI - AHRC,20/12/2019,Fellowships,Research Fellowships,University of Birmingham GRANT,98648510,22810.78,Fellowships
BEIS,UKRI - AHRC,20/12/2019,Fellowships,Commissioned Research,University of Liverpool,98648511,26615.46,Fellowships
BEIS,UKRI - AHRC,20/12/2019,Fellowships,Research Fellowships,Queen Mary University of London,98648512,25201.02,Fellowships
BEIS,UKRI - AHRC,20/12/2019,Fellowships,Research Fellowships,Bath Spa University,98648513,36388.72,Fellowships
BEIS,UKRI - AHRC,20/12/2019,Fellowships,Research Fellowships,University of St Andrews,98650544,18673.65,Fellowships
BEIS,UKRI - AHRC,20/12/2019,Fellowships,Research Fellowships,University College London,98650545,17001.52,Fellowships
BEIS,UKRI - AHRC,20/12/2019,Fellowships,Research Fellowships,Keele University,98650546,23234.16,Fellowships
BEIS,UKRI - AHRC,20/12/2019,Fellowships,Research Fellowships,Cardiff Metropolitan University,98650547,20194.6,Fellowships
BEIS,UKRI - AHRC,20/12/2019,Fellowships,Research Fellowships,University of Glasgow,98650548,20785.84,Fellowships
BEIS,UKRI - AHRC,20/12/2019,Fellowships,Research Fellowships,University of Sussex,98650549,25404.35,Fellowships
BEIS,UKRI - AHRC,20/12/2019,Fellowships,Research Fellowships,University of Aberdeen,98650550,16654.42,Fellowships
BEIS,UKRI - AHRC,20/12/2019,Fellowships,Research Fellowships,University of Exeter,98650551,29623.68,Fellowships
BEIS,UKRI - AHRC,20/12/2019,Fellowships,Research Fellowships,University of Birmingham GRANT,98650552,16039.34,Fellowships
BEIS,UKRI - AHRC,20/12/2019,Fellowships,Research Fellowships,University of Glasgow,98650553,15117.94,Fellowships
BEIS,UKRI - AHRC,20/12/2019,Fellowships,Research Fellowships,University of West London,98650554,14074.16,Fellowships
BEIS,UKRI - AHRC,20/12/2019,Fellowships,Research Fellowships,University of Birmingham GRANT,98650555,43081.31,Fellowships
BEIS,UKRI - AHRC,20/12/2019,Fellowships,Research Fellowships,University of Newcastle Upon Tyne,98650556,22504.01,Fellowships
BEIS,UKRI - AHRC,20/12/2019,Voluntary Deductions,Balance Sheet,Swindon Office Sports and Social Club,98654815,40,Voluntary Deductions
BEIS,UKRI - AHRC,20/12/2019,T&S UK - Mileage,Digital Arts and Humanities and Creative Industries,Unspecified,98663368,34.2,T&S UK - Mileage
BEIS,UKRI - AHRC,20/12/2019,T&S UK - Public Transport,Digital Arts and Humanities and Creative Industries,Unspecified,98663368,9.8,T&S UK - Public Transport
BEIS,UKRI - AHRC,20/12/2019,Staff Training,Operations,Wiltshire Council,98663607,140,Staff Training
BEIS,UKRI - AHRC,20/12/2019,Non-staff travel and subsistance,Operations,Non Employee Expenses Supplier,98664107,8,Non-staff travel and subsistance
BEIS,UKRI - AHRC,20/12/2019,Non-staff travel and subsistance,Operations,Non Employee Expenses Supplier,98664108,155.7,Non-staff travel and subsistance
BEIS,UKRI - AHRC,20/12/2019,Non-staff travel and subsistance,Operations,Non Employee Expenses Supplier,98664109,99,Non-staff travel and subsistance
BEIS,UKRI - AHRC,20/12/2019,Non-staff travel and subsistance,Operations,Non Employee Expenses Supplier,98664110,63.79,Non-staff travel and subsistance
BEIS,UKRI - AHRC,20/12/2019,Non-staff travel and subsistance,Operations,Non Employee Expenses Supplier,98664111,117.25,Non-staff travel and subsistance
BEIS,UKRI - AHRC,20/12/2019,Non-staff travel and subsistance,Operations,Non Employee Expenses Supplier,98664112,114.2,Non-staff travel and subsistance
BEIS,UKRI - AHRC,20/12/2019,Non-staff travel and subsistance,Operations,Non Employee Expenses Supplier,98664113,129.25,Non-staff travel and subsistance
BEIS,UKRI - AHRC,20/12/2019,Non-staff travel and subsistance,Operations,Non Employee Expenses Supplier,98664114,74.8,Non-staff travel and subsistance
BEIS,UKRI - AHRC,20/12/2019,Non-staff travel and subsistance,Operations,Non Employee Expenses Supplier,98664115,138,Non-staff travel and subsistance
BEIS,UKRI - AHRC,20/12/2019,Non-staff travel and subsistance,Operations,Non Employee Expenses Supplier,98664116,57.65,Non-staff travel and subsistance
BEIS,UKRI - AHRC,20/12/2019,Non-staff travel and subsistance,Operations,Non Employee Expenses Supplier,98664118,97.66,Non-staff travel and subsistance
BEIS,UKRI - AHRC,20/12/2019,Non-staff travel and subsistance,Funds for International Collaboration (FIC 20 US),Non Employee Expenses Supplier,98664119,106.04,Non-staff travel and subsistance
BEIS,UKRI - AHRC,20/12/2019,Non-staff travel and subsistance,Public and Stakeholder Engagement,Non Employee Expenses Supplier,98664120,2000,Non-staff travel and subsistance
BEIS,UKRI - AHRC,20/12/2019,Non-staff travel and subsistance,Public and Stakeholder Engagement,Non Employee Expenses Supplier,98664121,2000,Non-staff travel and subsistance
BEIS,UKRI - AHRC,20/12/2019,Non-staff travel and subsistance,Public and Stakeholder Engagement,Non Employee Expenses Supplier,98664122,2000,Non-staff travel and subsistance
BEIS,UKRI - AHRC,20/12/2019,Non-staff travel and subsistance,Public and Stakeholder Engagement,Non Employee Expenses Supplier,98664123,2000,Non-staff travel and subsistance
BEIS,UKRI - AHRC,23/12/2019,Research Grant Expenditure,Research Grants,University of Oxford,98648394,3771.36,Research Grant Expenditure
BEIS,UKRI - AHRC,23/12/2019,Research Grant Expenditure,Research Grants,University of Leicester,98648395,5873.27,Research Grant Expenditure
BEIS,UKRI - AHRC,23/12/2019,Research Grant Expenditure,Research Grants,Queen's University Belfast GRANT,98648396,-6369.48,Research Grant Expenditure
BEIS,UKRI - AHRC,23/12/2019,Research Grant Expenditure,Research Grants,Bath Spa University,98648397,-58665.32,Research Grant Expenditure
BEIS,UKRI - AHRC,23/12/2019,Research Grant Expenditure,Research Grants,University of Surrey,98648398,-17074.84,Research Grant Expenditure
BEIS,UKRI - AHRC,23/12/2019,Research Grant Expenditure,Research Grants,University of Reading,98648399,38117.63,Research Grant Expenditure
BEIS,UKRI - AHRC,23/12/2019,Research Grant Expenditure,Research Grants,University College London,98648400,35790.66,Research Grant Expenditure
BEIS,UKRI - AHRC,23/12/2019,Research Grant Expenditure,Research Grants,University of Glasgow,98648401,18095.06,Research Grant Expenditure
BEIS,UKRI - AHRC,23/12/2019,Research Grant Expenditure,Research Grants,The University of Manchester,98648402,59961.79,Research Grant Expenditure
BEIS,UKRI - AHRC,23/12/2019,Research Grant Expenditure,Research Grants,University of Warwick,98648403,20859.06,Research Grant Expenditure
BEIS,UKRI - AHRC,23/12/2019,Research Grant Expenditure,Research Grants,"Royal Holloway, University of London",98648404,8423.39,Research Grant Expenditure
BEIS,UKRI - AHRC,23/12/2019,Research Grant Expenditure,Research Grants,University of Birmingham GRANT,98648405,33531.93,Research Grant Expenditure
BEIS,UKRI - AHRC,23/12/2019,Research Grant Expenditure,Research Grants,University of Surrey,98648406,37470.25,Research Grant Expenditure
BEIS,UKRI - AHRC,23/12/2019,Research Grant Expenditure,Research Grants,The Open University,98648407,50244.86,Research Grant Expenditure
BEIS,UKRI - AHRC,23/12/2019,Research Grant Expenditure,Research Grants,Bournemouth University GRANT,98648408,87688.33,Research Grant Expenditure
BEIS,UKRI - AHRC,23/12/2019,Research Grant Expenditure,Networks & Workshops,University of Liverpool,98648409,-6629.85,Research Grant Expenditure
BEIS,UKRI - AHRC,23/12/2019,Research Grant Expenditure,Global Challenges Research Fund (GCRF),University of York,98648410,-18358.09,Research Grant Expenditure
BEIS,UKRI - AHRC,23/12/2019,Research Grant Expenditure,Networks & Workshops,University of Sussex,98648411,-1024.11,Research Grant Expenditure
BEIS,UKRI - AHRC,23/12/2019,Research Grant Expenditure,Follow-on Fund,University of York,98648412,2591.42,Research Grant Expenditure
BEIS,UKRI - AHRC,23/12/2019,Research Grant Expenditure,RCUK Newton Programme,Lancaster University,98648413,-12105.32,Research Grant Expenditure
BEIS,UKRI - AHRC,23/12/2019,Research Grant Expenditure,Networks & Workshops,University of Leeds,98648414,3741.44,Research Grant Expenditure
BEIS,UKRI - AHRC,23/12/2019,Research Grant Expenditure,Networks & Workshops,University of Newcastle Upon Tyne,98648415,2267.46,Research Grant Expenditure
BEIS,UKRI - AHRC,23/12/2019,Research Grant Expenditure,Networks & Workshops,Loughborough University,98648416,-2829.42,Research Grant Expenditure
BEIS,UKRI - AHRC,23/12/2019,Research Grant Expenditure,Research Grants,Canterbury Christ Church University GRANT,98648417,30371.35,Research Grant Expenditure
BEIS,UKRI - AHRC,23/12/2019,Research Grant Expenditure,Research Grants,University of Sheffield,98648418,31705.34,Research Grant Expenditure
BEIS,UKRI - AHRC,23/12/2019,Research Grant Expenditure,Research Grants,University of Sheffield,98648419,28682.21,Research Grant Expenditure
BEIS,UKRI - AHRC,23/12/2019,Research Grant Expenditure,Follow-on Fund,University of Sussex,98648420,12373.15,Research Grant Expenditure
BEIS,UKRI - AHRC,23/12/2019,Research Grant Expenditure,Follow-on Fund,University of Exeter,98648421,19900.6,Research Grant Expenditure
BEIS,UKRI - AHRC,23/12/2019,Research Grant Expenditure,Global Challenges Research Fund (GCRF),The University of Manchester,98648422,-1.83,Research Grant Expenditure
BEIS,UKRI - AHRC,23/12/2019,Research Grant Expenditure,Global Challenges Research Fund (GCRF),University of Birmingham GRANT,98648424,-0.02,Research Grant Expenditure
BEIS,UKRI - AHRC,23/12/2019,Research Grant Expenditure,Networks & Workshops,Manchester Metropolitan University,98648425,-1454.32,Research Grant Expenditure
BEIS,UKRI - AHRC,23/12/2019,Research Grant Expenditure,Follow-on Fund,University of Southampton GRANT,98648426,19574.66,Research Grant Expenditure
BEIS,UKRI - AHRC,23/12/2019,Research Grant Expenditure,Global Challenges Research Fund (GCRF),University of Newcastle Upon Tyne,98648427,-14.69,Research Grant Expenditure
BEIS,UKRI - AHRC,23/12/2019,Research Grant Expenditure,Global Challenges Research Fund (GCRF),University of St Andrews,98648428,4999.98,Research Grant Expenditure
BEIS,UKRI - AHRC,23/12/2019,Research Grant Expenditure,Follow-on Fund,University of Nottingham,98648429,7365.17,Research Grant Expenditure
BEIS,UKRI - AHRC,23/12/2019,Research Grant Expenditure,Follow-on Fund,University of Oxford,98648430,20116.72,Research Grant Expenditure
BEIS,UKRI - AHRC,23/12/2019,Research Grant Expenditure,Follow-on Fund,University of Huddersfield,98648431,20096.56,Research Grant Expenditure
BEIS,UKRI - AHRC,23/12/2019,Research Grant Expenditure,Follow-on Fund,University of Exeter,98648432,21037.66,Research Grant Expenditure
BEIS,UKRI - AHRC,23/12/2019,Research Grant Expenditure,Follow-on Fund,University of York,98648433,41224.85,Research Grant Expenditure
BEIS,UKRI - AHRC,23/12/2019,Research Grant Expenditure,Follow-on Fund,University of Kent,98648434,8487.86,Research Grant Expenditure
BEIS,UKRI - AHRC,23/12/2019,Research Grant Expenditure,Follow-on Fund,University of Birmingham GRANT,98648435,-11205.33,Research Grant Expenditure
BEIS,UKRI - AHRC,23/12/2019,Research Grant Expenditure,Creative Economy,University of Newcastle Upon Tyne,98648437,-1999.57,Research Grant Expenditure
BEIS,UKRI - AHRC,23/12/2019,Research Grant Expenditure,Creative Economy,University of York,98648438,-104.07,Research Grant Expenditure
BEIS,UKRI - AHRC,23/12/2019,Research Grant Expenditure,Research Grants,University of York,98648439,15678.37,Research Grant Expenditure
BEIS,UKRI - AHRC,23/12/2019,Research Grant Expenditure,NPIF Research Talent (RCUK Innovation Fellowships),University of Sheffield,98648440,-1280.47,Research Grant Expenditure
BEIS,UKRI - AHRC,23/12/2019,Research Grant Expenditure,Funds for International Collaboration (FIC 20 US),Royal College of Art,98648441,9756.61,Research Grant Expenditure
BEIS,UKRI - AHRC,23/12/2019,Research Grant Expenditure,Funds for International Collaboration (FIC 20 US),Queen Mary University of London,98648442,-9171.42,Research Grant Expenditure
BEIS,UKRI - AHRC,23/12/2019,Research Grant Expenditure,Funds for International Collaboration (FIC 20 US),University of Liverpool,98648443,-1.62,Research Grant Expenditure
BEIS,UKRI - AHRC,23/12/2019,Research Grant Expenditure,International Other,Northumbria University,98648444,2801.37,Research Grant Expenditure
BEIS,UKRI - AHRC,23/12/2019,Research Grant Expenditure,Care for the Future,University of Nottingham,98650197,4376.04,Research Grant Expenditure
BEIS,UKRI - AHRC,23/12/2019,Research Grant Expenditure,Connected Communities Programme,University of Nottingham,98650197,4376.03,Research Grant Expenditure
BEIS,UKRI - AHRC,23/12/2019,Research Grant Expenditure,Research Grants,The University of Manchester,98650198,45889.89,Research Grant Expenditure
BEIS,UKRI - AHRC,23/12/2019,Research Grant Expenditure,Research Grants,University of Newcastle Upon Tyne,98650199,36951.94,Research Grant Expenditure
BEIS,UKRI - AHRC,23/12/2019,Research Grant Expenditure,Research Grants,University of Leeds,98650200,36360.72,Research Grant Expenditure
BEIS,UKRI - AHRC,23/12/2019,Research Grant Expenditure,Research Grants,University of Stirling,98650201,7075.65,Research Grant Expenditure
BEIS,UKRI - AHRC,23/12/2019,Research Grant Expenditure,Research Grants,University of Oxford,98650202,40502.38,Research Grant Expenditure
BEIS,UKRI - AHRC,23/12/2019,Research Grant Expenditure,Research Grants,The University of Manchester,98650203,48531.02,Research Grant Expenditure
BEIS,UKRI - AHRC,23/12/2019,Research Grant Expenditure,Research Grants,University of Exeter,98650204,42343.14,Research Grant Expenditure
BEIS,UKRI - AHRC,23/12/2019,Research Grant Expenditure,Research Grants,University of Oxford,98650205,45655.42,Research Grant Expenditure
BEIS,UKRI - AHRC,23/12/2019,Research Grant Expenditure,Open World Research Initiative (OWRI).,King's College London,98650206,195850.7,Research Grant Expenditure
BEIS,UKRI - AHRC,23/12/2019,Research Grant Expenditure,Open World Research Initiative (OWRI).,The University of Manchester,98650207,197084.87,Research Grant Expenditure
BEIS,UKRI - AHRC,23/12/2019,Research Grant Expenditure,Open World Research Initiative (OWRI).,University of Oxford,98650208,182904.79,Research Grant Expenditure
BEIS,UKRI - AHRC,23/12/2019,Research Grant Expenditure,Open World Research Initiative (OWRI).,University of Cambridge,98650209,164927.58,Research Grant Expenditure
BEIS,UKRI - AHRC,23/12/2019,Research Grant Expenditure,Research Grants,University of Birmingham GRANT,98650210,52633.81,Research Grant Expenditure
BEIS,UKRI - AHRC,23/12/2019,Research Grant Expenditure,Research Grants,Loughborough University,98650211,47585.88,Research Grant Expenditure
BEIS,UKRI - AHRC,23/12/2019,Research Grant Expenditure,Research Grants,Birkbeck College,98650212,34812.68,Research Grant Expenditure
BEIS,UKRI - AHRC,23/12/2019,Research Grant Expenditure,Research Grants,Historic Environment Scotland (GRANT),98650213,35822.16,Research Grant Expenditure
BEIS,UKRI - AHRC,23/12/2019,Research Grant Expenditure,Research Grants,University of Southampton GRANT,98650214,44484.45,Research Grant Expenditure
BEIS,UKRI - AHRC,23/12/2019,Research Grant Expenditure,Research Grants,University of Warwick,98650215,22923.84,Research Grant Expenditure
BEIS,UKRI - AHRC,23/12/2019,Research Grant Expenditure,Global Uncertainties Programme,University of Oxford,98650216,43064.09,Research Grant Expenditure
BEIS,UKRI - AHRC,23/12/2019,Research Grant Expenditure,Global Uncertainties Programme,Queen's University Belfast GRANT,98650217,40947.6,Research Grant Expenditure
BEIS,UKRI - AHRC,23/12/2019,Research Grant Expenditure,Global Challenges Research Fund (GCRF),University College London,98650218,41309.8,Research Grant Expenditure
BEIS,UKRI - AHRC,23/12/2019,Research Grant Expenditure,Research Grants,University of Surrey,98650219,32213.77,Research Grant Expenditure
BEIS,UKRI - AHRC,23/12/2019,Research Grant Expenditure,Research Grants,University of East Anglia,98650220,46785.49,Research Grant Expenditure
BEIS,UKRI - AHRC,23/12/2019,Research Grant Expenditure,Care for the Future,University of Kent,98650221,3999.49,Research Grant Expenditure
BEIS,UKRI - AHRC,23/12/2019,Research Grant Expenditure,Connected Communities Programme,University of Kent,98650221,3999.48,Research Grant Expenditure
BEIS,UKRI - AHRC,23/12/2019,Research Grant Expenditure,Care for the Future,University of Hertfordshire,98650222,2323.32,Research Grant Expenditure
BEIS,UKRI - AHRC,23/12/2019,Research Grant Expenditure,Connected Communities Programme,University of Hertfordshire,98650222,2323.31,Research Grant Expenditure
BEIS,UKRI - AHRC,23/12/2019,Research Grant Expenditure,Care for the Future,University of Birmingham GRANT,98650223,3303.78,Research Grant Expenditure
BEIS,UKRI - AHRC,23/12/2019,Research Grant Expenditure,Connected Communities Programme,University of Birmingham GRANT,98650223,3303.76,Research Grant Expenditure
BEIS,UKRI - AHRC,23/12/2019,Research Grant Expenditure,Research Grants,University of Liverpool,98650224,49512.01,Research Grant Expenditure
BEIS,UKRI - AHRC,23/12/2019,Research Grant Expenditure,Research Grants,Queen's University Belfast GRANT,98650225,51018.15,Research Grant Expenditure
BEIS,UKRI - AHRC,23/12/2019,Research Grant Expenditure,Research Grants,University of Glasgow,98650226,40744.13,Research Grant Expenditure
BEIS,UKRI - AHRC,23/12/2019,Research Grant Expenditure,Research Grants,University of Surrey,98650227,47325.59,Research Grant Expenditure
BEIS,UKRI - AHRC,23/12/2019,Research Grant Expenditure,Research Grants,University of Birmingham GRANT,98650228,40495.49,Research Grant Expenditure
BEIS,UKRI - AHRC,23/12/2019,Research Grant Expenditure,Research Grants,University of Durham,98650229,59264.75,Research Grant Expenditure
BEIS,UKRI - AHRC,23/12/2019,Research Grant Expenditure,Science and Heritage Programme,University College London,98650230,77341.33,Research Grant Expenditure
BEIS,UKRI - AHRC,23/12/2019,Research Grant Expenditure,Research Grants,Cardiff University,98650231,15782.42,Research Grant Expenditure
BEIS,UKRI - AHRC,23/12/2019,Research Grant Expenditure,Research Grants,University of Kent,98650232,67995.51,Research Grant Expenditure
BEIS,UKRI - AHRC,23/12/2019,Research Grant Expenditure,Research Grants,Cardiff University,98650233,16839.23,Research Grant Expenditure
BEIS,UKRI - AHRC,23/12/2019,Research Grant Expenditure,Research Grants,Queen's University Belfast GRANT,98650234,55040.94,Research Grant Expenditure
BEIS,UKRI - AHRC,23/12/2019,Research Grant Expenditure,Research Grants,University of Leicester,98650235,51183.64,Research Grant Expenditure
BEIS,UKRI - AHRC,23/12/2019,Research Grant Expenditure,Research Grants,National Museums of Scotland,98650236,32787.32,Research Grant Expenditure
BEIS,UKRI - AHRC,23/12/2019,Research Grant Expenditure,Research Grants,University of Wolverhampton,98650237,55086.13,Research Grant Expenditure
BEIS,UKRI - AHRC,23/12/2019,Research Grant Expenditure,Research Grants,University of Sussex,98650238,43506.45,Research Grant Expenditure
BEIS,UKRI - AHRC,23/12/2019,Research Grant Expenditure,Design: Strategic Initiatives,Lancaster University,98650239,57839.62,Research Grant Expenditure
BEIS,UKRI - AHRC,23/12/2019,Research Grant Expenditure,Open World Research Initiative (OWRI).,Queen's University Belfast GRANT,98650240,85515.17,Research Grant Expenditure
BEIS,UKRI - AHRC,23/12/2019,Research Grant Expenditure,Research Grants,University of Exeter,98650241,25812.72,Research Grant Expenditure
BEIS,UKRI - AHRC,23/12/2019,Research Grant Expenditure,Research Grants,Royal College of Music,98650242,82204.43,Research Grant Expenditure
BEIS,UKRI - AHRC,23/12/2019,Research Grant Expenditure,Research Grants,University of Exeter,98650243,53816.33,Research Grant Expenditure
BEIS,UKRI - AHRC,23/12/2019,Research Grant Expenditure,Research Grants,Queen's University Belfast GRANT,98650244,46756.41,Research Grant Expenditure
BEIS,UKRI - AHRC,23/12/2019,Research Grant Expenditure,Research Grants,Aberystwyth University,98650245,48820.32,Research Grant Expenditure
BEIS,UKRI - AHRC,23/12/2019,Research Grant Expenditure,Connected Communities Programme,Bath Spa University,98650246,91367.02,Research Grant Expenditure
BEIS,UKRI - AHRC,23/12/2019,Research Grant Expenditure,Creative Economy,"Royal Holloway, University of London",98650247,74728.65,Research Grant Expenditure
BEIS,UKRI - AHRC,23/12/2019,Research Grant Expenditure,Research Grants,University of Southampton GRANT,98650248,55263.68,Research Grant Expenditure
BEIS,UKRI - AHRC,23/12/2019,Research Grant Expenditure,Research Grants,Lancaster University,98650249,62828.02,Research Grant Expenditure
BEIS,UKRI - AHRC,23/12/2019,Research Grant Expenditure,Research Grants,University of Nottingham,98650250,48221.93,Research Grant Expenditure
BEIS,UKRI - AHRC,23/12/2019,Research Grant Expenditure,Research Grants,Queen Mary University of London,98650251,17074.49,Research Grant Expenditure
BEIS,UKRI - AHRC,23/12/2019,Research Grant Expenditure,Research Grants,University of Leeds,98650252,63826.22,Research Grant Expenditure
BEIS,UKRI - AHRC,23/12/2019,Research Grant Expenditure,Research Grants,King's College London,98650253,68293.84,Research Grant Expenditure
BEIS,UKRI - AHRC,23/12/2019,Research Grant Expenditure,Research Grants,University of Leicester,98650254,63009.05,Research Grant Expenditure
BEIS,UKRI - AHRC,23/12/2019,Research Grant Expenditure,Research Grants,University of the Arts London,98650255,31837.79,Research Grant Expenditure
BEIS,UKRI - AHRC,23/12/2019,Research Grant Expenditure,Research Grants,"SOAS, University of London",98650256,66269.92,Research Grant Expenditure
BEIS,UKRI - AHRC,23/12/2019,Research Grant Expenditure,Research Grants,The University of Manchester,98650257,31082.4,Research Grant Expenditure
BEIS,UKRI - AHRC,23/12/2019,Research Grant Expenditure,Research Grants,University of Hull,98650258,31112.62,Research Grant Expenditure
BEIS,UKRI - AHRC,23/12/2019,Research Grant Expenditure,Research Grants,University of the West of England,98650259,16440.11,Research Grant Expenditure
BEIS,UKRI - AHRC,23/12/2019,Research Grant Expenditure,Research Grants,University of York,98650260,58200.97,Research Grant Expenditure
BEIS,UKRI - AHRC,23/12/2019,Research Grant Expenditure,Research Grants,University of Edinburgh,98650261,8747.93,Research Grant Expenditure
BEIS,UKRI - AHRC,23/12/2019,Research Grant Expenditure,Research Grants,University of Bradford,98650262,10239.27,Research Grant Expenditure
BEIS,UKRI - AHRC,23/12/2019,Research Grant Expenditure,Anti-microbial Resistance (AMR),University of Exeter,98650263,22264.76,Research Grant Expenditure
BEIS,UKRI - AHRC,23/12/2019,Research Grant Expenditure,Research Grants,Birmingham City University,98650264,42903,Research Grant Expenditure
BEIS,UKRI - AHRC,23/12/2019,Research Grant Expenditure,Research Grants,University of Liverpool,98650265,47588.66,Research Grant Expenditure
BEIS,UKRI - AHRC,23/12/2019,Research Grant Expenditure,Research Grants,The Open University,98650266,37292.4,Research Grant Expenditure
BEIS,UKRI - AHRC,23/12/2019,Research Grant Expenditure,Research Grants,University of Nottingham,98650267,53575.46,Research Grant Expenditure
BEIS,UKRI - AHRC,23/12/2019,Research Grant Expenditure,Research Grants,Keele University,98650268,61681.33,Research Grant Expenditure
BEIS,UKRI - AHRC,23/12/2019,Research Grant Expenditure,Research Grants,Cardiff University,98650269,24260.66,Research Grant Expenditure
BEIS,UKRI - AHRC,23/12/2019,Research Grant Expenditure,Research Grants,University of Glasgow,98650270,43094.3,Research Grant Expenditure
BEIS,UKRI - AHRC,23/12/2019,Research Grant Expenditure,Networks & Workshops,University of Chester,98650271,3120.6,Research Grant Expenditure
BEIS,UKRI - AHRC,23/12/2019,Research Grant Expenditure,Networks & Workshops,Cardiff University,98650272,4522,Research Grant Expenditure
BEIS,UKRI - AHRC,23/12/2019,Research Grant Expenditure,Global Challenges Research Fund (GCRF),University of Leeds,98650273,207059.74,Research Grant Expenditure
BEIS,UKRI - AHRC,23/12/2019,Research Grant Expenditure,Global Challenges Research Fund (GCRF),University of Nottingham,98650274,121160.61,Research Grant Expenditure
BEIS,UKRI - AHRC,23/12/2019,Research Grant Expenditure,Global Challenges Research Fund (GCRF),University College London,98650275,116270.84,Research Grant Expenditure
BEIS,UKRI - AHRC,23/12/2019,Research Grant Expenditure,Global Challenges Research Fund (GCRF),University of Liverpool,98650276,140288.43,Research Grant Expenditure
BEIS,UKRI - AHRC,23/12/2019,Research Grant Expenditure,Global Challenges Research Fund (GCRF),"SOAS, University of London",98650277,154824.33,Research Grant Expenditure
BEIS,UKRI - AHRC,23/12/2019,Research Grant Expenditure,RCUK Global Challenges Research Fund (RCUK GCRF),Goldsmiths College University of London,98650278,205502,Research Grant Expenditure
BEIS,UKRI - AHRC,23/12/2019,Research Grant Expenditure,RCUK Global Challenges Research Fund (RCUK GCRF),University of Huddersfield,98650279,267789,Research Grant Expenditure
BEIS,UKRI - AHRC,23/12/2019,Research Grant Expenditure,Global Challenges Research Fund (GCRF),Coventry University,98650280,15137.38,Research Grant Expenditure
BEIS,UKRI - AHRC,23/12/2019,Research Grant Expenditure,Research Grants,University of Durham,98650281,34802.03,Research Grant Expenditure
BEIS,UKRI - AHRC,23/12/2019,Research Grant Expenditure,Research Grants,University of York,98650282,23058.71,Research Grant Expenditure
BEIS,UKRI - AHRC,23/12/2019,Research Grant Expenditure,Research Grants,University of Leicester,98650283,68385.09,Research Grant Expenditure
BEIS,UKRI - AHRC,23/12/2019,Research Grant Expenditure,Research Grants,University College London,98650284,62699.82,Research Grant Expenditure
BEIS,UKRI - AHRC,23/12/2019,Research Grant Expenditure,Research Grants,Goldsmiths College University of London,98650285,71850.04,Research Grant Expenditure
BEIS,UKRI - AHRC,23/12/2019,Research Grant Expenditure,Research Grants,University College London,98650286,34099.53,Research Grant Expenditure
BEIS,UKRI - AHRC,23/12/2019,Research Grant Expenditure,Research Grants,University of Durham,98650287,64234.19,Research Grant Expenditure
BEIS,UKRI - AHRC,23/12/2019,Research Grant Expenditure,Research Grants,University of East Anglia,98650288,33942.7,Research Grant Expenditure
BEIS,UKRI - AHRC,23/12/2019,Research Grant Expenditure,Research Grants,University College London,98650289,20415.77,Research Grant Expenditure
BEIS,UKRI - AHRC,23/12/2019,Research Grant Expenditure,Global Challenges Research Fund (GCRF),University of Leeds,98650290,12873.52,Research Grant Expenditure
BEIS,UKRI - AHRC,23/12/2019,Research Grant Expenditure,Global Challenges Research Fund (GCRF),Liverpool Hope University,98650291,16734.35,Research Grant Expenditure
BEIS,UKRI - AHRC,23/12/2019,Research Grant Expenditure,Global Challenges Research Fund (GCRF),University of Huddersfield,98650292,14531.66,Research Grant Expenditure
BEIS,UKRI - AHRC,23/12/2019,Research Grant Expenditure,Care for the Future,University of Essex,98650293,11413.3,Research Grant Expenditure
BEIS,UKRI - AHRC,23/12/2019,Research Grant Expenditure,Connected Communities Programme,University of Essex,98650293,11413.26,Research Grant Expenditure
BEIS,UKRI - AHRC,23/12/2019,Research Grant Expenditure,Research Grants,London School of Economics and Political Science,98650294,60864.19,Research Grant Expenditure
BEIS,UKRI - AHRC,23/12/2019,Research Grant Expenditure,Global Challenges Research Fund (GCRF),Cardiff University,98650295,14572.76,Research Grant Expenditure
BEIS,UKRI - AHRC,23/12/2019,Research Grant Expenditure,Research Grants,Oxford Brookes University,98650296,61770.61,Research Grant Expenditure
BEIS,UKRI - AHRC,23/12/2019,Research Grant Expenditure,Research Grants,University of Surrey,98650297,34608.12,Research Grant Expenditure
BEIS,UKRI - AHRC,23/12/2019,Research Grant Expenditure,Global Challenges Research Fund (GCRF),University of Bedfordshire,98650298,14528.35,Research Grant Expenditure
BEIS,UKRI - AHRC,23/12/2019,Research Grant Expenditure,Research Grants,University of Sheffield,98650299,52805.84,Research Grant Expenditure
BEIS,UKRI - AHRC,23/12/2019,Research Grant Expenditure,Research Grants,University of Glasgow,98650300,56519.63,Research Grant Expenditure
BEIS,UKRI - AHRC,23/12/2019,Research Grant Expenditure,Research Grants,University of Newcastle Upon Tyne,98650301,53993.05,Research Grant Expenditure
BEIS,UKRI - AHRC,23/12/2019,Research Grant Expenditure,Research Grants,Cardiff University,98650302,22584.42,Research Grant Expenditure
BEIS,UKRI - AHRC,23/12/2019,Research Grant Expenditure,Research Grants,Manchester Metropolitan University,98650303,25849.98,Research Grant Expenditure
BEIS,UKRI - AHRC,23/12/2019,Research Grant Expenditure,Research Grants,University of Dundee,98650304,24229.26,Research Grant Expenditure
BEIS,UKRI - AHRC,23/12/2019,Research Grant Expenditure,Care for the Future,University of Exeter,98650305,79819.72,Research Grant Expenditure
BEIS,UKRI - AHRC,23/12/2019,Research Grant Expenditure,Networks & Workshops,Northumbria University,98650306,4255.32,Research Grant Expenditure
BEIS,UKRI - AHRC,23/12/2019,Research Grant Expenditure,Networks & Workshops,The Open University,98650307,5240.29,Research Grant Expenditure
BEIS,UKRI - AHRC,23/12/2019,Research Grant Expenditure,Networks & Workshops,University of Glasgow,98650308,4171.27,Research Grant Expenditure
BEIS,UKRI - AHRC,23/12/2019,Research Grant Expenditure,Networks & Workshops,Cardiff University,98650309,4248.96,Research Grant Expenditure
BEIS,UKRI - AHRC,23/12/2019,Research Grant Expenditure,Newton Programme,Cardiff University,98650310,13951.47,Research Grant Expenditure
BEIS,UKRI - AHRC,23/12/2019,Research Grant Expenditure,Newton Programme,University of Salford,98650311,11756.86,Research Grant Expenditure
BEIS,UKRI - AHRC,23/12/2019,Research Grant Expenditure,JPI Cultural Heritage,University College London,98650312,8129.83,Research Grant Expenditure
BEIS,UKRI - AHRC,23/12/2019,Research Grant Expenditure,JPI Cultural Heritage,University of Oxford,98650313,11092.96,Research Grant Expenditure
BEIS,UKRI - AHRC,23/12/2019,Research Grant Expenditure,JPI Cultural Heritage,De Montfort University,98650314,13329.15,Research Grant Expenditure
BEIS,UKRI - AHRC,23/12/2019,Research Grant Expenditure,Research Grants,University of Strathclyde,98650315,54983.5,Research Grant Expenditure
BEIS,UKRI - AHRC,23/12/2019,Research Grant Expenditure,Research Grants,The University of Manchester,98650316,57275.09,Research Grant Expenditure
BEIS,UKRI - AHRC,23/12/2019,Research Grant Expenditure,Research Grants,"Royal Holloway, University of London",98650317,33048.33,Research Grant Expenditure
BEIS,UKRI - AHRC,23/12/2019,Research Grant Expenditure,Research Grants,University of Westminster,98650318,40011.3,Research Grant Expenditure
BEIS,UKRI - AHRC,23/12/2019,Research Grant Expenditure,Research Grants,University of the Arts London,98650319,45240.68,Research Grant Expenditure
BEIS,UKRI - AHRC,23/12/2019,Research Grant Expenditure,Research Grants,The University of Manchester,98650320,58389.51,Research Grant Expenditure
BEIS,UKRI - AHRC,23/12/2019,Research Grant Expenditure,JPI Cultural Heritage,The Open University,98650321,13257.2,Research Grant Expenditure
BEIS,UKRI - AHRC,23/12/2019,Research Grant Expenditure,Research Grants,University of Reading,98650322,67688.88,Research Grant Expenditure
BEIS,UKRI - AHRC,23/12/2019,Research Grant Expenditure,JPI Cultural Heritage,University of Warwick,98650323,8885.49,Research Grant Expenditure
BEIS,UKRI - AHRC,23/12/2019,Research Grant Expenditure,Networks & Workshops,Arts University Bournemouth,98650324,3005.46,Research Grant Expenditure
BEIS,UKRI - AHRC,23/12/2019,Research Grant Expenditure,Networks & Workshops,Queen's University Belfast GRANT,98650325,5989.19,Research Grant Expenditure
BEIS,UKRI - AHRC,23/12/2019,Research Grant Expenditure,Networks & Workshops,University of Birmingham GRANT,98650326,3862.78,Research Grant Expenditure
BEIS,UKRI - AHRC,23/12/2019,Research Grant Expenditure,Networks & Workshops,Birmingham City University,98650327,4090.71,Research Grant Expenditure
BEIS,UKRI - AHRC,23/12/2019,Research Grant Expenditure,Research Grants,The University of Manchester,98650328,66859.62,Research Grant Expenditure
BEIS,UKRI - AHRC,23/12/2019,Research Grant Expenditure,Research Grants,University of Warwick,98650329,57524.58,Research Grant Expenditure
BEIS,UKRI - AHRC,23/12/2019,Research Grant Expenditure,Research Grants,The Royal Central School of Speech and Drama,98650330,47959.8,Research Grant Expenditure
BEIS,UKRI - AHRC,23/12/2019,Research Grant Expenditure,Research Grants,Queen's University Belfast GRANT,98650331,20530.44,Research Grant Expenditure
BEIS,UKRI - AHRC,23/12/2019,Research Grant Expenditure,Networks & Workshops,University of Glasgow,98650332,4924.82,Research Grant Expenditure
BEIS,UKRI - AHRC,23/12/2019,Research Grant Expenditure,Networks & Workshops,University of Leeds,98650333,4332.62,Research Grant Expenditure
BEIS,UKRI - AHRC,23/12/2019,Research Grant Expenditure,Research Grants,Northumbria University,98650334,21674.11,Research Grant Expenditure
BEIS,UKRI - AHRC,23/12/2019,Research Grant Expenditure,Research Grants,University of Liverpool,98650335,48561.55,Research Grant Expenditure
BEIS,UKRI - AHRC,23/12/2019,Research Grant Expenditure,Research Grants,University of Newcastle Upon Tyne,98650336,71150.77,Research Grant Expenditure
BEIS,UKRI - AHRC,23/12/2019,Research Grant Expenditure,RCUK Newton Programme,University of Bristol GRANT,98650337,60624.29,Research Grant Expenditure
BEIS,UKRI - AHRC,23/12/2019,Research Grant Expenditure,Research Grants,Queen Mary University of London,98650338,33272.59,Research Grant Expenditure
BEIS,UKRI - AHRC,23/12/2019,Research Grant Expenditure,Research Grants,University of Liverpool,98650339,22013.63,Research Grant Expenditure
BEIS,UKRI - AHRC,23/12/2019,Research Grant Expenditure,Research Grants,King's College London,98650340,65802.91,Research Grant Expenditure
BEIS,UKRI - AHRC,23/12/2019,Research Grant Expenditure,RCUK Newton Programme,"Royal Holloway, University of London",98650341,34585.25,Research Grant Expenditure
BEIS,UKRI - AHRC,23/12/2019,Research Grant Expenditure,Research Grants,University of Sussex,98650342,49996.12,Research Grant Expenditure
BEIS,UKRI - AHRC,23/12/2019,Research Grant Expenditure,Research Grants,University of Southampton GRANT,98650343,70158.94,Research Grant Expenditure
BEIS,UKRI - AHRC,23/12/2019,Research Grant Expenditure,Research Grants,University of Reading,98650344,56174.01,Research Grant Expenditure
BEIS,UKRI - AHRC,23/12/2019,Research Grant Expenditure,Research Grants,University of Exeter,98650345,20051.55,Research Grant Expenditure
BEIS,UKRI - AHRC,23/12/2019,Research Grant Expenditure,Networks & Workshops,Kingston University,98650346,4543.36,Research Grant Expenditure
BEIS,UKRI - AHRC,23/12/2019,Research Grant Expenditure,RCUK Newton Programme,Aberystwyth University,98650347,31207.22,Research Grant Expenditure
BEIS,UKRI - AHRC,23/12/2019,Research Grant Expenditure,RCUK Newton Programme,University of Nottingham,98650348,39434.4,Research Grant Expenditure
BEIS,UKRI - AHRC,23/12/2019,Research Grant Expenditure,Research Grants,The University of Manchester,98650349,27342.62,Research Grant Expenditure
BEIS,UKRI - AHRC,23/12/2019,Research Grant Expenditure,Research Grants,Birkbeck College,98650350,66891.95,Research Grant Expenditure
BEIS,UKRI - AHRC,23/12/2019,Research Grant Expenditure,Research Grants,University of East Anglia,98650351,34726.75,Research Grant Expenditure
BEIS,UKRI - AHRC,23/12/2019,Research Grant Expenditure,Research Grants,University of Chester,98650352,37921.09,Research Grant Expenditure
BEIS,UKRI - AHRC,23/12/2019,Research Grant Expenditure,Newton Programme,Loughborough University,98650353,29893.38,Research Grant Expenditure
BEIS,UKRI - AHRC,23/12/2019,Research Grant Expenditure,Newton Programme,Queen Mary University of London,98650354,32088.41,Research Grant Expenditure
BEIS,UKRI - AHRC,23/12/2019,Research Grant Expenditure,Newton Programme,Lancaster University,98650355,16577.38,Research Grant Expenditure
BEIS,UKRI - AHRC,23/12/2019,Research Grant Expenditure,Newton Programme,Brunel University London,98650356,18629.61,Research Grant Expenditure
BEIS,UKRI - AHRC,23/12/2019,Research Grant Expenditure,Newton Programme,University College London,98650357,25394.55,Research Grant Expenditure
BEIS,UKRI - AHRC,23/12/2019,Research Grant Expenditure,Newton Programme,Liverpool John Moores University,98650358,16618.94,Research Grant Expenditure
BEIS,UKRI - AHRC,23/12/2019,Research Grant Expenditure,Newton Programme,Science Museum Group,98650359,41494.11,Research Grant Expenditure
BEIS,UKRI - AHRC,23/12/2019,Research Grant Expenditure,Research Grants,University of Leeds,98650360,26013.89,Research Grant Expenditure
BEIS,UKRI - AHRC,23/12/2019,Research Grant Expenditure,Research Grants,The University of Manchester,98650361,45247.89,Research Grant Expenditure
BEIS,UKRI - AHRC,23/12/2019,Research Grant Expenditure,Research Grants,University of Kent,98650362,54263.05,Research Grant Expenditure
BEIS,UKRI - AHRC,23/12/2019,Research Grant Expenditure,Research Grants,University of Wales Trinity St David,98650363,62819.51,Research Grant Expenditure
BEIS,UKRI - AHRC,23/12/2019,Research Grant Expenditure,Research Grants,University of Bristol GRANT,98650364,42943.45,Research Grant Expenditure
BEIS,UKRI - AHRC,23/12/2019,Research Grant Expenditure,Research Grants,UNIVERSITY OF ULSTER,98650365,27042.81,Research Grant Expenditure
BEIS,UKRI - AHRC,23/12/2019,Research Grant Expenditure,Research Grants,University of Oxford,98650366,72009.9,Research Grant Expenditure
BEIS,UKRI - AHRC,23/12/2019,Research Grant Expenditure,Research Grants,University of the Arts London,98650367,40126.17,Research Grant Expenditure
BEIS,UKRI - AHRC,23/12/2019,Research Grant Expenditure,Global Challenges Research Fund (GCRF),University of Edinburgh,98650368,64812.63,Research Grant Expenditure
BEIS,UKRI - AHRC,23/12/2019,Research Grant Expenditure,Global Challenges Research Fund (GCRF),University of Edinburgh,98650368,21604.22,Research Grant Expenditure
BEIS,UKRI - AHRC,23/12/2019,Research Grant Expenditure,Industrial Strategy Challenge Fund (ISCF) - Creative Clusters,NESTA,98650369,336335.5,Research Grant Expenditure
BEIS,UKRI - AHRC,23/12/2019,Research Grant Expenditure,Research Grants,University of Exeter,98650370,33414.55,Research Grant Expenditure
BEIS,UKRI - AHRC,23/12/2019,Research Grant Expenditure,Networks & Workshops,Northumbria University,98650371,5938.64,Research Grant Expenditure
BEIS,UKRI - AHRC,23/12/2019,Research Grant Expenditure,Research Grants,The University of Manchester,98650372,67869.47,Research Grant Expenditure
BEIS,UKRI - AHRC,23/12/2019,Research Grant Expenditure,Research Grants,University of the Arts London,98650373,31927.93,Research Grant Expenditure
BEIS,UKRI - AHRC,23/12/2019,Research Grant Expenditure,Research Grants,University of Sussex,98650374,54650.34,Research Grant Expenditure
BEIS,UKRI - AHRC,23/12/2019,Research Grant Expenditure,Research Grants,Birkbeck College,98650375,30168.5,Research Grant Expenditure
BEIS,UKRI - AHRC,23/12/2019,Research Grant Expenditure,Networks & Workshops,Birmingham City University,98650376,3377.71,Research Grant Expenditure
BEIS,UKRI - AHRC,23/12/2019,Research Grant Expenditure,Research Grants,University of Oxford,98650377,56828.64,Research Grant Expenditure
BEIS,UKRI - AHRC,23/12/2019,Research Grant Expenditure,Research Grants,University of Newcastle Upon Tyne,98650378,64573.93,Research Grant Expenditure
BEIS,UKRI - AHRC,23/12/2019,Research Grant Expenditure,Research Grants,University of Exeter,98650379,52199.44,Research Grant Expenditure
BEIS,UKRI - AHRC,23/12/2019,Research Grant Expenditure,Newton Programme,University of Leeds,98650380,16680.08,Research Grant Expenditure
BEIS,UKRI - AHRC,23/12/2019,Research Grant Expenditure,JPI Cultural Heritage,University of Hull,98650381,11282.57,Research Grant Expenditure
BEIS,UKRI - AHRC,23/12/2019,Research Grant Expenditure,Global Challenges Research Fund (GCRF),UNIVERSITY OF ULSTER,98650382,65278.32,Research Grant Expenditure
BEIS,UKRI - AHRC,23/12/2019,Research Grant Expenditure,Global Challenges Research Fund (GCRF),University of York,98650383,43128.29,Research Grant Expenditure
BEIS,UKRI - AHRC,23/12/2019,Research Grant Expenditure,Research Grants,University of Glasgow,98650384,72191.97,Research Grant Expenditure
BEIS,UKRI - AHRC,23/12/2019,Research Grant Expenditure,JPI Cultural Heritage,University of Lincoln,98650385,9743.14,Research Grant Expenditure
BEIS,UKRI - AHRC,23/12/2019,Research Grant Expenditure,Newton Programme,University of Salford,98650386,21060.58,Research Grant Expenditure
BEIS,UKRI - AHRC,23/12/2019,Research Grant Expenditure,JPI Cultural Heritage,University of Bradford,98650387,11740.23,Research Grant Expenditure
BEIS,UKRI - AHRC,23/12/2019,Research Grant Expenditure,Audience of the Future (ISCF 2),The National Film & Television School,98650388,423293.39,Research Grant Expenditure
BEIS,UKRI - AHRC,23/12/2019,Research Grant Expenditure,Industrial Strategy Challenge Fund (ISCF) - Creative Clusters,University of Edinburgh,98650389,280464.29,Research Grant Expenditure
BEIS,UKRI - AHRC,23/12/2019,Research Grant Expenditure,Industrial Strategy Challenge Fund (ISCF) - Creative Clusters,University of Leeds,98650390,275045.29,Research Grant Expenditure
BEIS,UKRI - AHRC,23/12/2019,Research Grant Expenditure,Industrial Strategy Challenge Fund (ISCF) - Creative Clusters,University of the Arts London,98650391,278297,Research Grant Expenditure
BEIS,UKRI - AHRC,23/12/2019,Research Grant Expenditure,Industrial Strategy Challenge Fund (ISCF) - Creative Clusters,UNIVERSITY OF ULSTER,98650392,279909.43,Research Grant Expenditure
BEIS,UKRI - AHRC,23/12/2019,Research Grant Expenditure,Industrial Strategy Challenge Fund (ISCF) - Creative Clusters,Abertay University,98650393,261402.31,Research Grant Expenditure
BEIS,UKRI - AHRC,23/12/2019,Research Grant Expenditure,Industrial Strategy Challenge Fund (ISCF) - Creative Clusters,University of the West of England,98650394,280860.07,Research Grant Expenditure
BEIS,UKRI - AHRC,23/12/2019,Research Grant Expenditure,Innovation Placements (NPIF),Royal College of Art,98650395,7560.75,Research Grant Expenditure
BEIS,UKRI - AHRC,23/12/2019,Research Grant Expenditure,Industrial Strategy Challenge Fund (ISCF) - Creative Clusters,University of York,98650396,275956.03,Research Grant Expenditure
BEIS,UKRI - AHRC,23/12/2019,Research Grant Expenditure,Industrial Strategy Challenge Fund (ISCF) - Creative Clusters,Cardiff University,98650397,268535.64,Research Grant Expenditure
BEIS,UKRI - AHRC,23/12/2019,Research Grant Expenditure,Industrial Strategy Challenge Fund (ISCF) - Creative Clusters,"Royal Holloway, University of London",98650398,279965.63,Research Grant Expenditure
BEIS,UKRI - AHRC,23/12/2019,Research Grant Expenditure,Creative Economy,Falmouth University,98650399,0.4,Research Grant Expenditure
BEIS,UKRI - AHRC,23/12/2019,Research Grant Expenditure,Newton Programme,Nottingham Trent University,98650400,21282.74,Research Grant Expenditure
BEIS,UKRI - AHRC,23/12/2019,Research Grant Expenditure,Creative Economy,Goldsmiths College University of London,98650401,8024.96,Research Grant Expenditure
BEIS,UKRI - AHRC,23/12/2019,Research Grant Expenditure,Innovation Placements (NPIF),University of the West of England,98650402,7560.75,Research Grant Expenditure
BEIS,UKRI - AHRC,23/12/2019,Research Grant Expenditure,Global Challenges Research Fund (GCRF),University of Bristol GRANT,98650403,16373.98,Research Grant Expenditure
BEIS,UKRI - AHRC,23/12/2019,Research Grant Expenditure,Global Challenges Research Fund (GCRF),Goldsmiths College University of London,98650404,13491.54,Research Grant Expenditure
BEIS,UKRI - AHRC,23/12/2019,Research Grant Expenditure,Global Challenges Research Fund (GCRF),Goldsmiths College University of London,98650405,53.62,Research Grant Expenditure
BEIS,UKRI - AHRC,23/12/2019,Research Grant Expenditure,Networks & Workshops,Birkbeck College,98650406,6953.67,Research Grant Expenditure
BEIS,UKRI - AHRC,23/12/2019,Research Grant Expenditure,Networks & Workshops,University of Stirling,98650407,7820.27,Research Grant Expenditure
BEIS,UKRI - AHRC,23/12/2019,Research Grant Expenditure,Global Challenges Research Fund (GCRF),University of Durham,98650408,16516.04,Research Grant Expenditure
BEIS,UKRI - AHRC,23/12/2019,Research Grant Expenditure,Global Challenges Research Fund (GCRF),Manchester Metropolitan University,98650409,13794.06,Research Grant Expenditure
BEIS,UKRI - AHRC,23/12/2019,Research Grant Expenditure,Global Challenges Research Fund (GCRF),University of Leeds,98650410,20548.31,Research Grant Expenditure
BEIS,UKRI - AHRC,23/12/2019,Research Grant Expenditure,Global Challenges Research Fund (GCRF),University of Leeds,98650411,75.9,Research Grant Expenditure
BEIS,UKRI - AHRC,23/12/2019,Research Grant Expenditure,Global Challenges Research Fund (GCRF),University of Glasgow,98650412,0.05,Research Grant Expenditure
BEIS,UKRI - AHRC,23/12/2019,Research Grant Expenditure,Global Challenges Research Fund (GCRF),The Open University,98650413,15711.88,Research Grant Expenditure
BEIS,UKRI - AHRC,23/12/2019,Research Grant Expenditure,Networks & Workshops,University of Birmingham GRANT,98650414,3134.33,Research Grant Expenditure
BEIS,UKRI - AHRC,23/12/2019,Research Grant Expenditure,Networks & Workshops,University of the Arts London,98650415,7037.27,Research Grant Expenditure
BEIS,UKRI - AHRC,23/12/2019,Research Grant Expenditure,Networks & Workshops,Coventry University,98650416,3850.9,Research Grant Expenditure
BEIS,UKRI - AHRC,23/12/2019,Research Grant Expenditure,Networks & Workshops,University of the Arts London,98650417,5913.36,Research Grant Expenditure
BEIS,UKRI - AHRC,23/12/2019,Research Grant Expenditure,Newton Programme,University of Durham,98650418,26911.03,Research Grant Expenditure
BEIS,UKRI - AHRC,23/12/2019,Research Grant Expenditure,Newton Programme,University of Durham,98650419,24019.64,Research Grant Expenditure
BEIS,UKRI - AHRC,23/12/2019,Research Grant Expenditure,Research Grants,University of Leicester,98650420,28295.06,Research Grant Expenditure
BEIS,UKRI - AHRC,23/12/2019,Research Grant Expenditure,Research Grants,University of Stirling,98650421,34949.68,Research Grant Expenditure
BEIS,UKRI - AHRC,23/12/2019,Research Grant Expenditure,Research Grants,University of Oxford,98650422,25198.89,Research Grant Expenditure
BEIS,UKRI - AHRC,23/12/2019,Research Grant Expenditure,Research Grants,University of the Arts London,98650423,63298.08,Research Grant Expenditure
BEIS,UKRI - AHRC,23/12/2019,Research Grant Expenditure,Research Grants,University of Exeter,98650424,39556.32,Research Grant Expenditure
BEIS,UKRI - AHRC,23/12/2019,Research Grant Expenditure,Newton Programme,Oxford Brookes University,98650425,16728.87,Research Grant Expenditure
BEIS,UKRI - AHRC,23/12/2019,Research Grant Expenditure,Research Grants,University of Newcastle Upon Tyne,98650426,50156.21,Research Grant Expenditure
BEIS,UKRI - AHRC,23/12/2019,Research Grant Expenditure,Research Grants,University of Kent,98650427,60010.53,Research Grant Expenditure
BEIS,UKRI - AHRC,23/12/2019,Research Grant Expenditure,Research Grants,University of York,98650428,71659.33,Research Grant Expenditure
BEIS,UKRI - AHRC,23/12/2019,Research Grant Expenditure,Research Grants,Northumbria University,98650429,25201.99,Research Grant Expenditure
BEIS,UKRI - AHRC,23/12/2019,Research Grant Expenditure,Newton Programme,University of Liverpool,98650430,26525.62,Research Grant Expenditure
BEIS,UKRI - AHRC,23/12/2019,Research Grant Expenditure,Research Grants,Bournemouth University GRANT,98650431,20277.06,Research Grant Expenditure
BEIS,UKRI - AHRC,23/12/2019,Research Grant Expenditure,Research Grants,Bournemouth University GRANT,98650431,20277.06,Research Grant Expenditure
BEIS,UKRI - AHRC,23/12/2019,Research Grant Expenditure,Research Grants,Bournemouth University GRANT,98650431,21340,Research Grant Expenditure
BEIS,UKRI - AHRC,23/12/2019,Research Grant Expenditure,Research Grants,Bournemouth University GRANT,98650431,20277.06,Research Grant Expenditure
BEIS,UKRI - AHRC,23/12/2019,Research Grant Expenditure,Living with Machines (SPF),The Alan Turing Institute,98650432,543347.28,Research Grant Expenditure
BEIS,UKRI - AHRC,23/12/2019,Research Grant Expenditure,Newton Programme,Imperial College London,98650433,16754.57,Research Grant Expenditure
BEIS,UKRI - AHRC,23/12/2019,Research Grant Expenditure,Networks & Workshops,Loughborough University,98650434,4730.52,Research Grant Expenditure
BEIS,UKRI - AHRC,23/12/2019,Research Grant Expenditure,Networks & Workshops,University of Southampton GRANT,98650435,4453.38,Research Grant Expenditure
BEIS,UKRI - AHRC,23/12/2019,Research Grant Expenditure,Follow-on Fund,University of Birmingham GRANT,98650436,20130.52,Research Grant Expenditure
BEIS,UKRI - AHRC,23/12/2019,Research Grant Expenditure,Networks & Workshops,University of Kent,98650437,4533.17,Research Grant Expenditure
BEIS,UKRI - AHRC,23/12/2019,Research Grant Expenditure,Networks & Workshops,Liverpool John Moores University,98650438,6110.84,Research Grant Expenditure
BEIS,UKRI - AHRC,23/12/2019,Research Grant Expenditure,RCUK Global Challenges Research Fund (RCUK GCRF),London School of Economics and Political Science,98650439,749270.03,Research Grant Expenditure
BEIS,UKRI - AHRC,23/12/2019,Research Grant Expenditure,Research Grants,Lancaster University,98650440,57172.93,Research Grant Expenditure
BEIS,UKRI - AHRC,23/12/2019,Research Grant Expenditure,Networks & Workshops,University of East Anglia,98650441,4917.38,Research Grant Expenditure
BEIS,UKRI - AHRC,23/12/2019,Research Grant Expenditure,Networks & Workshops,University of London,98650442,11953.32,Research Grant Expenditure
BEIS,UKRI - AHRC,23/12/2019,Research Grant Expenditure,Newton Programme,King's College London,98650443,22732.61,Research Grant Expenditure
BEIS,UKRI - AHRC,23/12/2019,Research Grant Expenditure,Newton Programme,University of Leeds,98650444,26524.73,Research Grant Expenditure
BEIS,UKRI - AHRC,23/12/2019,Research Grant Expenditure,Newton Programme,University of Reading,98650445,25658.72,Research Grant Expenditure
BEIS,UKRI - AHRC,23/12/2019,Research Grant Expenditure,JPI Cultural Heritage,University of Leeds,98650446,13722.37,Research Grant Expenditure
BEIS,UKRI - AHRC,23/12/2019,Research Grant Expenditure,Follow-on Fund,Roehampton University (University of Roehampton),98650447,0.18,Research Grant Expenditure
BEIS,UKRI - AHRC,23/12/2019,Research Grant Expenditure,Research Grants,Lancaster University,98650448,50835.14,Research Grant Expenditure
BEIS,UKRI - AHRC,23/12/2019,Research Grant Expenditure,Research Grants,University College London,98650449,60410.95,Research Grant Expenditure
BEIS,UKRI - AHRC,23/12/2019,Research Grant Expenditure,Research Grants,Museum of London Archaeology,98650450,18477.58,Research Grant Expenditure
BEIS,UKRI - AHRC,23/12/2019,Research Grant Expenditure,RCUK Global Challenges Research Fund (RCUK GCRF),University of Sussex,98650451,62981.94,Research Grant Expenditure
BEIS,UKRI - AHRC,23/12/2019,Research Grant Expenditure,Research Grants,Manchester Metropolitan University,98650452,43638.7,Research Grant Expenditure
BEIS,UKRI - AHRC,23/12/2019,Research Grant Expenditure,Follow-on Fund,London School of Economics and Political Science,98650453,19543.51,Research Grant Expenditure
BEIS,UKRI - AHRC,23/12/2019,Research Grant Expenditure,Research Grants,University of Oxford,98650454,60640.03,Research Grant Expenditure
BEIS,UKRI - AHRC,23/12/2019,Research Grant Expenditure,Research Grants,University of Leeds,98650455,68132.3,Research Grant Expenditure
BEIS,UKRI - AHRC,23/12/2019,Research Grant Expenditure,Research Grants,Cardiff University,98650456,56605.19,Research Grant Expenditure
BEIS,UKRI - AHRC,23/12/2019,Research Grant Expenditure,Research Grants,University of Exeter,98650457,30680.41,Research Grant Expenditure
BEIS,UKRI - AHRC,23/12/2019,Research Grant Expenditure,Research Grants,King's College London,98650458,66532.72,Research Grant Expenditure
BEIS,UKRI - AHRC,23/12/2019,Research Grant Expenditure,Networks & Workshops,University of Northampton,98650459,4018.33,Research Grant Expenditure
BEIS,UKRI - AHRC,23/12/2019,Research Grant Expenditure,Research Grants,University of Sheffield,98650460,22241.13,Research Grant Expenditure
BEIS,UKRI - AHRC,23/12/2019,Research Grant Expenditure,Research Grants,University of Oxford,98650461,71359.98,Research Grant Expenditure
BEIS,UKRI - AHRC,23/12/2019,Research Grant Expenditure,Research Grants,University of Bristol GRANT,98650462,64544.86,Research Grant Expenditure
BEIS,UKRI - AHRC,23/12/2019,Research Grant Expenditure,Research Grants,University of Reading,98650463,57592.32,Research Grant Expenditure
BEIS,UKRI - AHRC,23/12/2019,Research Grant Expenditure,Follow-on Fund,University of York,98650464,80588.33,Research Grant Expenditure
BEIS,UKRI - AHRC,23/12/2019,Research Grant Expenditure,Follow-on Fund,University of Leeds,98650465,20161.23,Research Grant Expenditure
BEIS,UKRI - AHRC,23/12/2019,Research Grant Expenditure,Follow-on Fund,University of Kent,98650466,62415.3,Research Grant Expenditure
BEIS,UKRI - AHRC,23/12/2019,Research Grant Expenditure,Networks & Workshops,University of Exeter,98650467,3775.77,Research Grant Expenditure
BEIS,UKRI - AHRC,23/12/2019,Research Grant Expenditure,Newton Programme,"City, University of London",98650468,26678.76,Research Grant Expenditure
BEIS,UKRI - AHRC,23/12/2019,Research Grant Expenditure,Networks & Workshops,University of Cambridge,98650469,7826.05,Research Grant Expenditure
BEIS,UKRI - AHRC,23/12/2019,Research Grant Expenditure,Follow-on Fund,University of Stirling,98650470,19937.49,Research Grant Expenditure
BEIS,UKRI - AHRC,23/12/2019,Research Grant Expenditure,Networks & Workshops,University of Warwick,98650471,4521.93,Research Grant Expenditure
BEIS,UKRI - AHRC,23/12/2019,Research Grant Expenditure,Networks & Workshops,University of Westminster,98650472,6202.72,Research Grant Expenditure
BEIS,UKRI - AHRC,23/12/2019,Research Grant Expenditure,Networks & Workshops,The University of Manchester,98650473,4828.81,Research Grant Expenditure
BEIS,UKRI - AHRC,23/12/2019,Research Grant Expenditure,Networks & Workshops,University of Reading,98650474,6037.93,Research Grant Expenditure
BEIS,UKRI - AHRC,23/12/2019,Research Grant Expenditure,Networks & Workshops,University of Exeter,98650475,6165.41,Research Grant Expenditure
BEIS,UKRI - AHRC,23/12/2019,Research Grant Expenditure,Networks & Workshops,University of Westminster,98650476,12562.9,Research Grant Expenditure
BEIS,UKRI - AHRC,23/12/2019,Research Grant Expenditure,Networks & Workshops,University of Hull,98650477,5793.35,Research Grant Expenditure
BEIS,UKRI - AHRC,23/12/2019,Research Grant Expenditure,Networks & Workshops,Nottingham Trent University,98650478,4533.87,Research Grant Expenditure
BEIS,UKRI - AHRC,23/12/2019,Research Grant Expenditure,Networks & Workshops,University of Liverpool,98650479,5847.01,Research Grant Expenditure
BEIS,UKRI - AHRC,23/12/2019,Research Grant Expenditure,Networks & Workshops,Loughborough University,98650480,4453.73,Research Grant Expenditure
BEIS,UKRI - AHRC,23/12/2019,Research Grant Expenditure,Networks & Workshops,University College London,98650481,4859.13,Research Grant Expenditure
BEIS,UKRI - AHRC,23/12/2019,Research Grant Expenditure,Networks & Workshops,University of Warwick,98650482,4856.22,Research Grant Expenditure
BEIS,UKRI - AHRC,23/12/2019,Research Grant Expenditure,Networks & Workshops,University of Warwick,98650483,4535.23,Research Grant Expenditure
BEIS,UKRI - AHRC,23/12/2019,Research Grant Expenditure,Networks & Workshops,Science Museum Group,98650484,17979,Research Grant Expenditure
BEIS,UKRI - AHRC,23/12/2019,Research Grant Expenditure,Networks & Workshops,University of Hull,98650485,4918.18,Research Grant Expenditure
BEIS,UKRI - AHRC,23/12/2019,Research Grant Expenditure,Networks & Workshops,University of Hull,98650485,4918.18,Research Grant Expenditure
BEIS,UKRI - AHRC,23/12/2019,Research Grant Expenditure,Follow-on Fund,University of Liverpool,98650486,18040.66,Research Grant Expenditure
BEIS,UKRI - AHRC,23/12/2019,Research Grant Expenditure,Cultural Values Project,University of Leeds,98650487,100809.87,Research Grant Expenditure
BEIS,UKRI - AHRC,23/12/2019,Research Grant Expenditure,Research Grants,University of York,98650488,72454.92,Research Grant Expenditure
BEIS,UKRI - AHRC,23/12/2019,Research Grant Expenditure,Research Grants,University of Oxford,98650489,31321.2,Research Grant Expenditure
BEIS,UKRI - AHRC,23/12/2019,Research Grant Expenditure,Research Grants,The University of Manchester,98650490,17086.75,Research Grant Expenditure
BEIS,UKRI - AHRC,23/12/2019,Research Grant Expenditure,Research Grants,University of Liverpool,98650491,69659.94,Research Grant Expenditure
BEIS,UKRI - AHRC,23/12/2019,Research Grant Expenditure,Follow-on Fund,The Open University,98650492,22556.4,Research Grant Expenditure
BEIS,UKRI - AHRC,23/12/2019,Research Grant Expenditure,Research Grants,University of Durham,98650493,28214.8,Research Grant Expenditure
BEIS,UKRI - AHRC,23/12/2019,Research Grant Expenditure,Networks & Workshops,Historic Royal Palaces,98650494,8248.35,Research Grant Expenditure
BEIS,UKRI - AHRC,23/12/2019,Research Grant Expenditure,Networks & Workshops,University of Leeds,98650495,8089.98,Research Grant Expenditure
BEIS,UKRI - AHRC,23/12/2019,Research Grant Expenditure,Research Grants,University of Reading,98650496,64239.04,Research Grant Expenditure
BEIS,UKRI - AHRC,23/12/2019,Research Grant Expenditure,Research Grants,Queen Mary University of London,98650497,37842.36,Research Grant Expenditure
BEIS,UKRI - AHRC,23/12/2019,Research Grant Expenditure,Follow-on Fund,University of Leeds,98650498,76323.54,Research Grant Expenditure
BEIS,UKRI - AHRC,23/12/2019,Research Grant Expenditure,Follow-on Fund,University of York,98650499,12070.3,Research Grant Expenditure
BEIS,UKRI - AHRC,23/12/2019,Research Grant Expenditure,Follow-on Fund,University of Warwick,98650500,11929.07,Research Grant Expenditure
BEIS,UKRI - AHRC,23/12/2019,Research Grant Expenditure,Follow-on Fund,King's College London,98650501,80459.87,Research Grant Expenditure
BEIS,UKRI - AHRC,23/12/2019,Research Grant Expenditure,Follow-on Fund,University of Exeter,98650502,80004.7,Research Grant Expenditure
BEIS,UKRI - AHRC,23/12/2019,Research Grant Expenditure,Follow-on Fund,University of Leeds,98650503,6048.11,Research Grant Expenditure
BEIS,UKRI - AHRC,23/12/2019,Research Grant Expenditure,Follow-on Fund,University of Exeter,98650504,80164.81,Research Grant Expenditure
BEIS,UKRI - AHRC,23/12/2019,Research Grant Expenditure,Networks & Workshops,Oxford Brookes University,98650505,5353.44,Research Grant Expenditure
BEIS,UKRI - AHRC,23/12/2019,Research Grant Expenditure,Research Grants,Royal College of Music,98650506,55596.78,Research Grant Expenditure
BEIS,UKRI - AHRC,23/12/2019,Research Grant Expenditure,Research Grants,University of Oxford,98650507,45087.91,Research Grant Expenditure
BEIS,UKRI - AHRC,23/12/2019,Research Grant Expenditure,Research Grants,University of Glasgow,98650508,57249.2,Research Grant Expenditure
BEIS,UKRI - AHRC,23/12/2019,Research Grant Expenditure,Global Challenges Research Fund (GCRF),University of Bath,98650509,0.04,Research Grant Expenditure
BEIS,UKRI - AHRC,23/12/2019,Research Grant Expenditure,Follow-on Fund,University of Nottingham,98650510,75823.68,Research Grant Expenditure
BEIS,UKRI - AHRC,23/12/2019,Research Grant Expenditure,Research Grants,University of South Wales,98650511,31917.96,Research Grant Expenditure
BEIS,UKRI - AHRC,23/12/2019,Research Grant Expenditure,RCUK Global Challenges Research Fund (RCUK GCRF),University of Sheffield,98650512,82107.21,Research Grant Expenditure
BEIS,UKRI - AHRC,23/12/2019,Research Grant Expenditure,RCUK Global Challenges Research Fund (RCUK GCRF),University of Nottingham,98650513,86864.31,Research Grant Expenditure
BEIS,UKRI - AHRC,23/12/2019,Research Grant Expenditure,RCUK Global Challenges Research Fund (RCUK GCRF),University College London,98650514,85937.06,Research Grant Expenditure
BEIS,UKRI - AHRC,23/12/2019,Research Grant Expenditure,Networks & Workshops,University of Aberdeen,98650515,6828.84,Research Grant Expenditure
BEIS,UKRI - AHRC,23/12/2019,Research Grant Expenditure,Networks & Workshops,University of Aberdeen,98650515,6828.84,Research Grant Expenditure
BEIS,UKRI - AHRC,23/12/2019,Research Grant Expenditure,Arts and Health,University College London,98650516,120866.68,Research Grant Expenditure
BEIS,UKRI - AHRC,23/12/2019,Research Grant Expenditure,Follow-on Fund,University of Exeter,98650517,55791.33,Research Grant Expenditure
BEIS,UKRI - AHRC,23/12/2019,Research Grant Expenditure,Follow-on Fund,Royal College of Music,98650518,19568.79,Research Grant Expenditure
BEIS,UKRI - AHRC,23/12/2019,Research Grant Expenditure,RCUK Global Challenges Research Fund (RCUK GCRF),International Institute For Environment And Development,98650519,86724.41,Research Grant Expenditure
BEIS,UKRI - AHRC,23/12/2019,Non-staff travel and subsistance,Operations,Non Employee Expenses Supplier,98664117,218.18,Non-staff travel and subsistance
BEIS,UKRI - AHRC,23/12/2019,Meetings & Catering,Modern Slavery and Human Rights (SPF),Harbour & Jones Ltd T/A Dartmouth House,98665043,292.08,Meetings & Catering
BEIS,UKRI - AHRC,23/12/2019,Contract Staff,PSU Project Office,Alexander Mann Solutions Ltd,98665202,2795.58,Contract Staff
BEIS,UKRI - AHRC,23/12/2019,Contract Staff,PSU JRS,Alexander Mann Solutions Ltd,98665204,3423.12,Contract Staff
BEIS,UKRI - AHRC,23/12/2019,T&S Overseas - Public Transport,JPI Cultural Heritage Project,Unspecified,98665351,15,T&S Overseas - Public Transport
BEIS,UKRI - AHRC,23/12/2019,T&S Overseas - Public Transport,JPI Cultural Heritage Project,Unspecified,98665351,91.54,T&S Overseas - Public Transport
BEIS,UKRI - AHRC,23/12/2019,T&S Overseas - Subsistence,JPI Cultural Heritage Project,Unspecified,98665351,46.83,T&S Overseas - Subsistence
BEIS,UKRI - AHRC,23/12/2019,T&S Overseas - Subsistence,JPI Cultural Heritage Project,Unspecified,98665351,12.04,T&S Overseas - Subsistence
BEIS,UKRI - AHRC,23/12/2019,T&S UK - Public Transport,"History, Heritage, Languages and Literature",Unspecified,98665352,27,T&S UK - Public Transport
BEIS,UKRI - AHRC,23/12/2019,T&S UK - Subsistence,"History, Heritage, Languages and Literature",Unspecified,98665352,4.95,T&S UK - Subsistence
BEIS,UKRI - AHRC,23/12/2019,T&S UK - Subsistence,"History, Heritage, Languages and Literature",Unspecified,98665352,5,T&S UK - Subsistence
BEIS,UKRI - AHRC,23/12/2019,T&S UK - Subsistence,Operations,Unspecified,98665353,25,T&S UK - Subsistence
BEIS,UKRI - AHRC,23/12/2019,T&S UK - Vehicle Hire,Operations,Unspecified,98665353,15.97,T&S UK - Vehicle Hire
BEIS,UKRI - AHRC,24/12/2019,T&S UK - Public Transport,"History, Heritage, Languages and Literature",Unspecified,98650184,18,T&S UK - Public Transport
BEIS,UKRI - AHRC,24/12/2019,Research Grant Expenditure,RCUK Global Challenges Research Fund (RCUK GCRF),UKRI - Natural Environment Research Council,98658838,86913.44,Research Grant Expenditure
BEIS,UKRI - AHRC,24/12/2019,Research Grant Expenditure,RCUK Global Challenges Research Fund (RCUK GCRF),UKRI - Medical Research Council,98662553,16622.44,Research Grant Expenditure
BEIS,UKRI - AHRC,24/12/2019,Research Grant Expenditure,Commissioned Research,UKRI - Economic & Social Research Council,98664560,6783.41,Research Grant Expenditure
BEIS,UKRI - AHRC,24/12/2019,Research Grant Expenditure,RCUK Global Challenges Research Fund (RCUK GCRF),UKRI - Economic & Social Research Council,98664582,182346,Research Grant Expenditure
BEIS,UKRI - AHRC,24/12/2019,Research Grant Expenditure,RCUK Global Challenges Research Fund (RCUK GCRF),UKRI - Economic & Social Research Council,98664584,89708.76,Research Grant Expenditure
BEIS,UKRI - AHRC,24/12/2019,Research Grant Expenditure,RCUK Global Challenges Research Fund (RCUK GCRF),UKRI - Economic & Social Research Council,98664590,369297.55,Research Grant Expenditure
BEIS,UKRI - AHRC,24/12/2019,Research Grant Expenditure,RCUK Global Challenges Research Fund (RCUK GCRF),UKRI - Economic & Social Research Council,98664591,19048.8,Research Grant Expenditure
BEIS,UKRI - AHRC,24/12/2019,Research Grant Expenditure,Commissioned Research,UKRI - Economic & Social Research Council,98664596,11563.06,Research Grant Expenditure
BEIS,UKRI - AHRC,24/12/2019,Research Grant Expenditure,Commissioned Research,UKRI - Economic & Social Research Council,98664599,7295.78,Research Grant Expenditure
BEIS,UKRI - AHRC,24/12/2019,Research Grant Expenditure,Commissioned Research,UKRI - Economic & Social Research Council,98664608,6203.48,Research Grant Expenditure
BEIS,UKRI - AHRC,24/12/2019,Research Grant Expenditure,Global Challenges Research Fund (GCRF),UKRI - Economic & Social Research Council,98664644,7309.13,Research Grant Expenditure
BEIS,UKRI - AHRC,24/12/2019,Research Grant Expenditure,Global Challenges Research Fund (GCRF),UKRI - Economic & Social Research Council,98664646,35324.85,Research Grant Expenditure
BEIS,UKRI - AHRC,24/12/2019,Research Grant Expenditure,Global Challenges Research Fund (GCRF),UKRI - Economic & Social Research Council,98664647,14053.51,Research Grant Expenditure
BEIS,UKRI - AHRC,24/12/2019,Research Grant Expenditure,Commissioned Research,UKRI - Economic & Social Research Council,98664648,6741.89,Research Grant Expenditure
BEIS,UKRI - AHRC,24/12/2019,Research Grant Expenditure,Global Uncertainties Programme,UKRI - Economic & Social Research Council,98664649,6125.1,Research Grant Expenditure
BEIS,UKRI - AHRC,24/12/2019,Research Grant Expenditure,Anti-microbial Resistance (AMR),UKRI - Economic & Social Research Council,98664651,22204.51,Research Grant Expenditure
BEIS,UKRI - AHRC,24/12/2019,Research Grant Expenditure,Digital Transformations,UKRI - Economic & Social Research Council,98664652,5349.52,Research Grant Expenditure
BEIS,UKRI - AHRC,24/12/2019,Research Grant Expenditure,Digital Transformations,UKRI - Economic & Social Research Council,98664654,5588.32,Research Grant Expenditure
BEIS,UKRI - AHRC,24/12/2019,Research Grant Expenditure,Digital Transformations,UKRI - Economic & Social Research Council,98664655,6321.46,Research Grant Expenditure
BEIS,UKRI - AHRC,24/12/2019,Research Grant Expenditure,Cross Council Responsive Mode Awards,UKRI - Economic & Social Research Council,98664657,12601.65,Research Grant Expenditure
BEIS,UKRI - AHRC,24/12/2019,Research Grant Expenditure,Digital Transformations,UKRI - Economic & Social Research Council,98664659,5122.49,Research Grant Expenditure
BEIS,UKRI - AHRC,24/12/2019,Research Grant Expenditure,Commissioned Research,UKRI - Economic & Social Research Council,98664660,9032.24,Research Grant Expenditure
BEIS,UKRI - AHRC,24/12/2019,Research Grant Expenditure,Commissioned Research,UKRI - Economic & Social Research Council,98664665,8010.77,Research Grant Expenditure
BEIS,UKRI - AHRC,24/12/2019,Research Grant Expenditure,RCUK Global Challenges Research Fund (RCUK GCRF),UKRI - Economic & Social Research Council,98664666,37040.4,Research Grant Expenditure
BEIS,UKRI - AHRC,24/12/2019,Research Grant Expenditure,RCUK Global Challenges Research Fund (RCUK GCRF),UKRI - Economic & Social Research Council,98664669,39140,Research Grant Expenditure
BEIS,UKRI - AHRC,24/12/2019,Research Grant Expenditure,Commissioned Research,UKRI - Economic & Social Research Council,98664671,6782.02,Research Grant Expenditure
BEIS,UKRI - AHRC,24/12/2019,Research Grant Expenditure,RCUK Global Challenges Research Fund (RCUK GCRF),UKRI - Economic & Social Research Council,98664675,46947.5,Research Grant Expenditure
BEIS,UKRI - AHRC,24/12/2019,Research Grant Expenditure,Global Challenges Research Fund (GCRF),UKRI - Economic & Social Research Council,98664677,6421.66,Research Grant Expenditure
BEIS,UKRI - AHRC,24/12/2019,Research Grant Expenditure,Global Challenges Research Fund (GCRF),UKRI - Economic & Social Research Council,98664679,16694.03,Research Grant Expenditure
BEIS,UKRI - AHRC,24/12/2019,Research Grant Expenditure,Global Challenges Research Fund (GCRF),UKRI - Economic & Social Research Council,98664680,17372.19,Research Grant Expenditure
BEIS,UKRI - AHRC,24/12/2019,Research Grant Expenditure,Global Challenges Research Fund (GCRF),UKRI - Economic & Social Research Council,98664682,14046.82,Research Grant Expenditure
BEIS,UKRI - AHRC,24/12/2019,Research Grant Expenditure,Cross Council Responsive Mode Awards,UKRI - Economic & Social Research Council,98664683,29262.66,Research Grant Expenditure
BEIS,UKRI - AHRC,24/12/2019,Research Grant Expenditure,Commissioned Research,UKRI - Economic & Social Research Council,98664684,26474.5,Research Grant Expenditure
BEIS,UKRI - AHRC,24/12/2019,Research Grant Expenditure,Urban Living,UKRI - Economic & Social Research Council,98664688,7039.17,Research Grant Expenditure
BEIS,UKRI - AHRC,24/12/2019,Research Grant Expenditure,Urban Living,UKRI - Economic & Social Research Council,98664689,3556.22,Research Grant Expenditure
BEIS,UKRI - AHRC,24/12/2019,Research Grant Expenditure,Urban Living,UKRI - Economic & Social Research Council,98664691,7274.73,Research Grant Expenditure
BEIS,UKRI - AHRC,24/12/2019,Research Grant Expenditure,Urban Living,UKRI - Economic & Social Research Council,98664693,2937.97,Research Grant Expenditure
BEIS,UKRI - AHRC,24/12/2019,Research Grant Expenditure,Urban Living,UKRI - Economic & Social Research Council,98664695,2518.36,Research Grant Expenditure
BEIS,UKRI - AHRC,24/12/2019,Research Grant Expenditure,Cross Council Responsive Mode Awards,UKRI - Economic & Social Research Council,98664696,14201.08,Research Grant Expenditure
BEIS,UKRI - AHRC,24/12/2019,Research Grant Expenditure,Urban Living,UKRI - Economic & Social Research Council,98664698,5066.93,Research Grant Expenditure
BEIS,UKRI - AHRC,24/12/2019,Research Grant Expenditure,Urban Living,UKRI - Economic & Social Research Council,98664699,2796.34,Research Grant Expenditure
BEIS,UKRI - AHRC,24/12/2019,Research Grant Expenditure,Urban Living,UKRI - Economic & Social Research Council,98664701,4561.73,Research Grant Expenditure
BEIS,UKRI - AHRC,24/12/2019,Research Grant Expenditure,Urban Living,UKRI - Economic & Social Research Council,98664702,3953.66,Research Grant Expenditure
BEIS,UKRI - AHRC,24/12/2019,Research Grant Expenditure,Urban Living,UKRI - Economic & Social Research Council,98664705,3363.1,Research Grant Expenditure
BEIS,UKRI - AHRC,24/12/2019,Research Grant Expenditure,Urban Living,UKRI - Economic & Social Research Council,98664707,3774.18,Research Grant Expenditure
BEIS,UKRI - AHRC,24/12/2019,Research Grant Expenditure,Cross Council Responsive Mode Awards,UKRI - Economic & Social Research Council,98664711,16018.74,Research Grant Expenditure
BEIS,UKRI - AHRC,24/12/2019,Research Grant Expenditure,Urban Living,UKRI - Economic & Social Research Council,98664714,5128.31,Research Grant Expenditure
BEIS,UKRI - AHRC,24/12/2019,Research Grant Expenditure,Cross Council Responsive Mode Awards,UKRI - Economic & Social Research Council,98664716,14254.28,Research Grant Expenditure
BEIS,UKRI - AHRC,24/12/2019,Research Grant Expenditure,Urban Living,UKRI - Economic & Social Research Council,98664718,6350.72,Research Grant Expenditure
BEIS,UKRI - AHRC,24/12/2019,Research Grant Expenditure,RCUK Global Challenges Research Fund (RCUK GCRF),UKRI - Economic & Social Research Council,98665160,51542.4,Research Grant Expenditure
BEIS,UKRI - AHRC,24/12/2019,Research Grant Expenditure,RCUK Global Challenges Research Fund (RCUK GCRF),UKRI - Economic & Social Research Council,98665162,22004.3,Research Grant Expenditure
BEIS,UKRI - AHRC,24/12/2019,Research Grant Expenditure,RCUK Global Challenges Research Fund (RCUK GCRF),UKRI - Economic & Social Research Council,98665167,22018.95,Research Grant Expenditure
BEIS,UKRI - AHRC,24/12/2019,T&S UK - Public Transport,Executive Office,Unspecified,98665929,8.4,T&S UK - Public Transport
